Ref No,Fund Type,Dept,Cost Centre Description    ,Description    ,Creditor Name    ,GL Code Net Amount,Payment date        
2,Revenue,CCHD,18-25 Year Olds,Permanent Residential,1 St Georges House,13350.08, 04-Aug-2015
3,Revenue,CCHD,18-25 Year Olds,Permanent Residential,5Th Floor Harlech Court,13837.8, 04-Aug-2015
4,Revenue,CCHD,18-25 Year Olds,Permanent Residential,5Th Floor Harlech Court,14114.08, 04-Aug-2015
5,Revenue,CCHD,18-25 Year Olds,Permanent Residential,5Th Floor Harlech Court,12656.32, 04-Aug-2015
6,Revenue,CCHD,18-25 Year Olds,Permanent Residential,5Th Floor Harlech Court,15925.08, 04-Aug-2015
7,Revenue,CCHD,18-25 Year Olds,Permanent Residential,Ash View House,6225.8, 04-Aug-2015
8,Revenue,CCHD,18-25 Year Olds,Permanent Residential,Bradbury House,8855.64, 04-Aug-2015
9,Revenue,CCHD,18-25 Year Olds,Permanent Residential,Citibase Watford,7088.6, 04-Aug-2015
10,Revenue,CCHD,18-25 Year Olds,Permanent Residential,Citibase Watford,5514.44, 04-Aug-2015
11,Revenue,CCHD,18-25 Year Olds,Permanent Residential,Freeways Trust Ltd,3409.64, 04-Aug-2015
12,Revenue,CCHD,18-25 Year Olds,Permanent Residential,Home From Home Care Ltd,9086.16, 04-Aug-2015
13,Revenue,CCHD,18-25 Year Olds,Permanent Residential,Homes Caring For Autism Ltd  Churchill H,13043.96, 04-Aug-2015
14,Revenue,CCHD,18-25 Year Olds,Permanent Residential,Leonard Cheshire  National Account Centr,3231.92, 04-Aug-2015
15,Revenue,CCHD,18-25 Year Olds,Permanent Residential,Park Hall,7259.36, 04-Aug-2015
16,Revenue,CCHD,18-25 Year Olds,Permanent Residential,Small House Homes Limited,18210.08, 04-Aug-2015
17,Revenue,CCHD,18-25 Year Olds,Permanent Nursing,St Roses School,4086, 04-Aug-2015
18,Revenue,CCHD,18-25 Year Olds,Permanent Residential,The Ann Coleman Centre,6122.56, 04-Aug-2015
19,Revenue,CCHD,18-25 Year Olds,Permanent Residential,The David Lewis Centre,5967.52, 04-Aug-2015
20,Revenue,CCHD,18-25 Year Olds,Permanent Residential,Wye House,6822.01, 04-Aug-2015
21,Revenue,CCHD,Alexandra Way,"Provisions (Food, etc)",Brake Bros,710.72, 03-Aug-2015
22,Revenue,CCHD,Alexandra Way,Prop.Serv. General Repairs,George Grimes,1560, 26-Aug-2015
23,Revenue,CCHD,Alexandra Way,Prop.Serv. General Repairs,George Grimes,885.5, 19-Aug-2015
24,Revenue,CCHD,Alexandra Way,Furniture & Fittings Loose,Medaco,807, 24-Aug-2015
25,Revenue,CCHD,Alexandra Way,Furniture & Fittings Loose,Musbury Fabrics,417.6, 25-Aug-2015
26,Revenue,CCHD,Alexandra Way,Agency Staff (Operational)/PCT Pay,Prestige Nursing,434.49, 03-Aug-2015
27,Revenue,CCHD,Alexandra Way,Premises Maintenance by Contractor,Rentokil Specialist Hygiene,20, 05-Aug-2015
28,Revenue,CCHD,Alexandra Way,Radio Pager/Mobile Phones,Telefonica UK Limited,18.22, 11-Aug-2015
29,Revenue,CCHD,Alexandra Way,Radio Pager/Mobile Phones,Telefonica UK Limited,10, 27-Aug-2015
30,Revenue,CCHD,Alexandra Way,Electricity,West Mercia Energy,1377.97, 05-Aug-2015
31,Revenue,CCHD,Alexandra Way,Gas,West Mercia Energy,739.7, 13-Aug-2015
32,Revenue,CCHD,Bed and Breakfast,Bed & Breakfast,Bristol Housing & Support Limited,490, 17-Aug-2015
33,Revenue,CCHD,Bed and Breakfast,Bed & Breakfast,Connolly & Callaghan Limited,686, 11-Aug-2015
34,Revenue,CCHD,Bed and Breakfast,Bed & Breakfast,Connolly & Callaghan Limited,700, 06-Aug-2015
35,Revenue,CCHD,Bed and Breakfast,Bed & Breakfast,Connolly & Callaghan Limited,581, 05-Aug-2015
36,Revenue,CCHD,Bed and Breakfast,Bed & Breakfast,Connolly & Callaghan Limited,686, 05-Aug-2015
37,Revenue,CCHD,Bed and Breakfast,Bed & Breakfast,Connolly & Callaghan Limited,630, 05-Aug-2015
38,Revenue,CCHD,Bed and Breakfast,Bed & Breakfast,Connolly & Callaghan Limited,441, 17-Aug-2015
39,Revenue,CCHD,Bed and Breakfast,Bed & Breakfast,Connolly & Callaghan Limited,700, 11-Aug-2015
40,Revenue,CCHD,Bed and Breakfast,Bed & Breakfast,Connolly & Callaghan Limited,581, 12-Aug-2015
41,Revenue,CCHD,Bed and Breakfast,Bed & Breakfast,Connolly & Callaghan Limited,630, 12-Aug-2015
42,Revenue,CCHD,Bed and Breakfast,Bed & Breakfast,Connolly & Callaghan Limited,441, 20-Aug-2015
43,Revenue,CCHD,Bed and Breakfast,Bed & Breakfast,Connolly & Callaghan Limited,700, 20-Aug-2015
44,Revenue,CCHD,Bed and Breakfast,Bed & Breakfast,Connolly & Callaghan Limited,616, 20-Aug-2015
45,Revenue,CCHD,Bed and Breakfast,Bed & Breakfast,Connolly & Callaghan Limited,476, 20-Aug-2015
46,Revenue,CCHD,Bed and Breakfast,Bed & Breakfast,Connolly & Callaghan Limited,581, 20-Aug-2015
47,Revenue,CCHD,Bed and Breakfast,Bed & Breakfast,Connolly & Callaghan Limited,630, 19-Aug-2015
48,Revenue,CCHD,Bed and Breakfast,Bed & Breakfast,Connolly & Callaghan Limited,686, 20-Aug-2015
49,Revenue,CCHD,Bed and Breakfast,Bed & Breakfast,Connolly & Callaghan Limited,700, 24-Aug-2015
50,Revenue,CCHD,Bed and Breakfast,Bed & Breakfast,Connolly & Callaghan Limited,616, 24-Aug-2015
51,Revenue,CCHD,Bed and Breakfast,Bed & Breakfast,Connolly & Callaghan Limited,630, 24-Aug-2015
52,Revenue,CCHD,Bed and Breakfast,Bed & Breakfast,E J Bartlett,420, 05-Aug-2015
53,Revenue,CCHD,Bed and Breakfast,Bed & Breakfast,E J Bartlett,504, 05-Aug-2015
54,Revenue,CCHD,Bed and Breakfast,Bed & Breakfast,E J Bartlett,574, 05-Aug-2015
55,Revenue,CCHD,Bed and Breakfast,Bed & Breakfast,E J Bartlett,420, 12-Aug-2015
56,Revenue,CCHD,Bed and Breakfast,Bed & Breakfast,E J Bartlett,504, 12-Aug-2015
57,Revenue,CCHD,Bed and Breakfast,Bed & Breakfast,E J Bartlett,574, 12-Aug-2015
58,Revenue,CCHD,Bed and Breakfast,Bed & Breakfast,E J Bartlett,504, 24-Aug-2015
59,Revenue,CCHD,Bed and Breakfast,Bed & Breakfast,E J Bartlett,574, 24-Aug-2015
60,Revenue,CCHD,Bed and Breakfast,Bed & Breakfast,E J Bartlett,504, 24-Aug-2015
61,Revenue,CCHD,Bed and Breakfast,Bed & Breakfast,E J Bartlett,574, 24-Aug-2015
62,Revenue,CCHD,Bed and Breakfast,Bed & Breakfast,Top Drawer Properties Limited,455, 07-Aug-2015
63,Revenue,CCHD,Bed purchasing - Elderly S117 - South,Permanent Residential,Ash View House,6246.76, 04-Aug-2015
64,Revenue,CCHD,Bed purchasing - Elderly S117 - South,Permanent Nursing,Blossom Field,14144, 04-Aug-2015
65,Revenue,CCHD,Bed purchasing - Elderly S117 - South,Permanent Nursing,Blossom Field,2558, 04-Aug-2015
66,Revenue,CCHD,Bed purchasing - Elderly S117 - South,Permanent Nursing,Brunelcare,3135.43, 19-Aug-2015
67,Revenue,CCHD,Bed purchasing - Elderly S117 - South,Permanent Nursing,Fairview Court,2012, 04-Aug-2015
68,Revenue,CCHD,Bed purchasing - Elderly S117 - South,Permanent Residential,Fairview House,1937.56, 04-Aug-2015
69,Revenue,CCHD,Bed purchasing - Elderly S117 - South,Permanent Nursing,Fshc  1St Floor,1904, 04-Aug-2015
70,Revenue,CCHD,Bed purchasing - Elderly S117 - South,Permanent Nursing,Fshc  1St Floor,1904, 04-Aug-2015
71,Revenue,CCHD,Bed purchasing - Elderly S117 - South,Permanent Nursing,Fshc  1St Floor,2080, 04-Aug-2015
72,Revenue,CCHD,Bed purchasing - Elderly S117 - South,Permanent Nursing,Gracefields Nursing Home,2381.88, 04-Aug-2015
73,Revenue,CCHD,Bed purchasing - Elderly S117 - South,Permanent Nursing,Meadow Care Home,2420, 04-Aug-2015
74,Revenue,CCHD,Bed purchasing - Elderly S117 - South,Permanent Nursing,Milestones - Unit 10,2012, 04-Aug-2015
75,Revenue,CCHD,Bed purchasing - Elderly S117 - South,Permanent Nursing,Milestones - Unit 10,2012, 04-Aug-2015
76,Revenue,CCHD,Bed purchasing - Elderly S117 - South,Permanent Residential,Osprey Court,11450.92, 04-Aug-2015
77,Revenue,CCHD,Bed purchasing - Elderly S117 - South,Permanent Nursing,Regent House,3028.8, 04-Aug-2015
78,Revenue,CCHD,Bed purchasing - Elderly S117 - South,Permanent Residential,The Gables Residential Home,2271.16, 04-Aug-2015
79,Revenue,CCHD,Bed purchasing - Elderly S117 - South,Permanent Residential,The Grove,2381.88, 04-Aug-2015
80,Revenue,CCHD,Bed purchasing - Elderly S117 - South,Permanent Residential,The Grove,2830.24, 04-Aug-2015
81,Revenue,CCHD,Bed purchasing - Elderly S117 - South,Permanent Residential,The Old Vicarage Residential Home,2100, 11-Aug-2015
82,Revenue,CCHD,Bed purchasing - Elderly S117 - South,Permanent Residential,The Old Vicarage Residential Home,1875, 11-Aug-2015
83,Revenue,CCHD,Bed purchasing - Elderly S117 - South,Permanent Residential,Wayside Residential Care Home,2122.68, 04-Aug-2015
84,Revenue,CCHD,Bed Purchasing - Elderly S117- North,Permanent Nursing,Beaufort Grange Care Home,4552, 04-Aug-2015
85,Revenue,CCHD,Bed Purchasing - Elderly S117- North,Permanent Nursing,Beaufort Grange Care Home,2113.43, 04-Aug-2015
86,Revenue,CCHD,Bed Purchasing - Elderly S117- North,Permanent Nursing,Beaufort Grange Care Home,2988.36, 04-Aug-2015
87,Revenue,CCHD,Bed Purchasing - Elderly S117- North,Permanent Nursing,Blossom Field,2012, 04-Aug-2015
88,Revenue,CCHD,Bed Purchasing - Elderly S117- North,Permanent Nursing,Brunelcare,3135.43, 19-Aug-2015
89,Revenue,CCHD,Bed Purchasing - Elderly S117- North,Permanent Nursing,Brunelcare,3135.43, 19-Aug-2015
90,Revenue,CCHD,Bed Purchasing - Elderly S117- North,Permanent Nursing,Brunelcare,3135.43, 19-Aug-2015
91,Revenue,CCHD,Bed Purchasing - Elderly S117- North,Permanent Residential,Canjayor,2359.24, 04-Aug-2015
92,Revenue,CCHD,Bed Purchasing - Elderly S117- North,Permanent Residential,Citibase Watford,9028.6, 04-Aug-2015
93,Revenue,CCHD,Bed Purchasing - Elderly S117- North,Permanent Nursing,Danshell Healthcare Group,11653.52, 04-Aug-2015
94,Revenue,CCHD,Bed Purchasing - Elderly S117- North,Permanent Nursing,Fshc  1St Floor,2012, 04-Aug-2015
95,Revenue,CCHD,Bed Purchasing - Elderly S117- North,Permanent Nursing,Meadow Care Home,6242.86, 04-Aug-2015
96,Revenue,CCHD,Bed Purchasing - Elderly S117- North,Permanent Residential,Milestones - Unit 10,1776, 04-Aug-2015
97,Revenue,CCHD,Bed Purchasing - Elderly S117- North,Permanent Residential,Osbourne Court,1948, 04-Aug-2015
98,Revenue,CCHD,Bed Purchasing - Elderly S117- North,Permanent Residential,Real Life Options,6704.28, 04-Aug-2015
99,Revenue,CCHD,Bed Purchasing - Elderly S117- North,Permanent Nursing,Redholme Memory Care Limited,2013.36, 04-Aug-2015
100,Revenue,CCHD,Bed Purchasing - Elderly S117- North,Permanent Residential,Templemore Care Home,2256.68, 04-Aug-2015
101,Revenue,CCHD,Bed Purchasing - Elderly S117- North,Permanent Residential,The Grove,2148.16, 04-Aug-2015
102,Revenue,CCHD,Bed Purchasing - Elderly S117- North,Permanent Residential,The Grove,2800, 04-Aug-2015
103,Revenue,CCHD,Bed Purchasing - Elderly S117- North,Permanent Residential,The Old Vicarage Residential Home,1948, 11-Aug-2015
104,Revenue,CCHD,Bed Purchasing - Elderly S117- North,Permanent Residential,Windmill House,1776, 04-Aug-2015
105,Revenue,CCHD,Bed Purchasing - Elderly S117- North,Permanent Nursing,Woodspring Stadium,2922.24, 04-Aug-2015
106,Revenue,CCHD,Bed Purchasing - Frenchay Hospital,Permanent Nursing,Horfield Care Limited,1366.92, 27-Aug-2015
107,Revenue,CCHD,Bed Purchasing - LD S28A- Over 65- South,Permanent Nursing,Brandon Trust,5190.64, 04-Aug-2015
108,Revenue,CCHD,Bed Purchasing - LD S28A- Over 65- South,Permanent Nursing,Brandon Trust,4904.8, 04-Aug-2015
109,Revenue,CCHD,Bed Purchasing - LD S28A- Over 65- South,Permanent Residential,Brandon Trust,4795.44, 04-Aug-2015
110,Revenue,CCHD,Bed Purchasing - LD S28A- Over 65- South,Permanent Residential,Milestones - Unit 10,4134.48, 04-Aug-2015
111,Revenue,CCHD,Bed Purchasing - LD S28A- Over 65- South,Permanent Residential,Milestones - Unit 10,5142.04, 04-Aug-2015
112,Revenue,CCHD,Bed Purchasing - LD S28A- Over 65- South,Permanent Residential,Milestones - Unit 10,4968.4, 04-Aug-2015
113,Revenue,CCHD,Bed Purchasing - LD S28A- Over 65- South,Permanent Residential,Milestones - Unit 10,5126.08, 04-Aug-2015
114,Revenue,CCHD,Bed Purchasing - LD S28A- Over 65- South,Permanent Residential,Milestones - Unit 10,4396.24, 04-Aug-2015
115,Revenue,CCHD,Bed Purchasing - LD S28A- Over 65- South,Permanent Residential,Milestones - Unit 10,5222, 04-Aug-2015
116,Revenue,CCHD,Bed Purchasing - LD S28A- Over 65- South,Permanent Residential,Milestones - Unit 10,3919.96, 04-Aug-2015
117,Revenue,CCHD,Bed Purchasing - LD S28A- Over 65- South,Permanent Nursing,Milestones - Unit 10,5277.92, 04-Aug-2015
118,Revenue,CCHD,Bed Purchasing - LD S28A- Over 65- South,Permanent Residential,Milestones - Unit 10,4800.72, 04-Aug-2015
119,Revenue,CCHD,Bed Purchasing - LD S28A- Over 65- South,Permanent Residential,Milestones - Unit 10,4645.48, 04-Aug-2015
120,Revenue,CCHD,Bed Purchasing - LD S28A- Over 65- South,Permanent Residential,Milestones - Unit 10,4713.52, 04-Aug-2015
121,Revenue,CCHD,Bed Purchasing - LD S28A- Over 65- South,Permanent Residential,Milestones - Unit 10,3115.32, 04-Aug-2015
122,Revenue,CCHD,Bed Purchasing - LD S28A- Over 65- South,Permanent Residential,Milestones - Unit 10,4396.24, 04-Aug-2015
123,Revenue,CCHD,Bed Purchasing - LD S28A- Over 65- South,Permanent Nursing,Milestones - Unit 10,5277.92, 04-Aug-2015
124,Revenue,CCHD,Bed Purchasing - LD S28A- Over 65- South,Permanent Residential,Milestones - Unit 10,3575.16, 04-Aug-2015
125,Revenue,CCHD,Bed Purchasing - LD S28A- Over 65- South,Permanent Residential,Milestones - Unit 10,4386.24, 04-Aug-2015
126,Revenue,CCHD,Bed Purchasing - LD S28A- Over 65- South,Permanent Nursing,Milestones - Unit 10,3017.84, 04-Aug-2015
127,Revenue,CCHD,Bed Purchasing - LD S28A- Over 65- South,Permanent Nursing,Milestones - Unit 10,2793.28, 04-Aug-2015
128,Revenue,CCHD,Bed Purchasing - LD S28A- Over 65- South,Permanent Residential,Rockleaze,2100.48, 04-Aug-2015
129,Revenue,CCHD,Bed Purchasing - LD S28A- Over 65- South,Permanent Residential,Shaw Healthcare Ltd,4879.2, 04-Aug-2015
130,Revenue,CCHD,Bed Purchasing - LD S28A- Over 65- South,Permanent Residential,Shaw Healthcare Ltd,17013.9, 04-Aug-2015
131,Revenue,CCHD,Bed Purchasing - LD S28A- Over 65- South,Permanent Residential,Shaw Healthcare Ltd,4537.04, 04-Aug-2015
132,Revenue,CCHD,Bed Purchasing - North,Permanent Residential,5Th Floor Harlech Court,16769.2, 04-Aug-2015
133,Revenue,CCHD,Bed Purchasing - North,Permanent Nursing,ABI Development Limited,7046.44, 04-Aug-2015
134,Revenue,CCHD,Bed Purchasing - North,Permanent Residential,Ark Care Homes Ltd,10348.28, 04-Aug-2015
135,Revenue,CCHD,Bed Purchasing - North,Permanent Residential,Aspects 2 Limited,6428.16, 04-Aug-2015
136,Revenue,CCHD,Bed Purchasing - North,Permanent Residential,Beaufort House,1686.44, 04-Aug-2015
137,Revenue,CCHD,Bed Purchasing - North,Permanent Residential,Beaufort House,1839.84, 04-Aug-2015
138,Revenue,CCHD,Bed Purchasing - North,Permanent Residential,Beaufort House,2425.92, 04-Aug-2015
139,Revenue,CCHD,Bed Purchasing - North,Permanent Residential,Beaufort House,1395.68, 04-Aug-2015
140,Revenue,CCHD,Bed Purchasing - North,Permanent Residential,Beaufort House,1822.84, 04-Aug-2015
141,Revenue,CCHD,Bed Purchasing - North,Permanent Residential,Beaufort House,1365.16, 04-Aug-2015
142,Revenue,CCHD,Bed Purchasing - North,Permanent Residential,Beaufort House,1876.68, 04-Aug-2015
143,Revenue,CCHD,Bed Purchasing - North,Respite Planned - Residential,Beaufort House,771.43, 04-Aug-2015
144,Revenue,CCHD,Bed Purchasing - North,Permanent Residential,Beaufort House,1720.8, 04-Aug-2015
145,Revenue,CCHD,Bed Purchasing - North,Permanent Nursing,Beech House,1330.8, 04-Aug-2015
146,Revenue,CCHD,Bed Purchasing - North,Permanent Nursing,Beech House,1663.92, 04-Aug-2015
147,Revenue,CCHD,Bed Purchasing - North,Permanent Nursing,Beech House,2115.56, 04-Aug-2015
148,Revenue,CCHD,Bed Purchasing - North,Permanent Nursing,Beech House,1913.96, 04-Aug-2015
149,Revenue,CCHD,Bed Purchasing - North,Permanent Residential,Beech House,1442.8, 04-Aug-2015
150,Revenue,CCHD,Bed Purchasing - North,Permanent Nursing,Beech House,1958.72, 04-Aug-2015
151,Revenue,CCHD,Bed Purchasing - North,Permanent Residential,Beech House,1413.56, 04-Aug-2015
152,Revenue,CCHD,Bed Purchasing - North,Permanent Nursing,Blossom Field,2747.96, 04-Aug-2015
153,Revenue,CCHD,Bed Purchasing - North,Permanent Nursing,Blossom Field,1835, 04-Aug-2015
154,Revenue,CCHD,Bed Purchasing - North,Permanent Nursing,Blossom Field,1393.52, 04-Aug-2015
155,Revenue,CCHD,Bed Purchasing - North,Permanent Nursing,Blossom Field,2457.4, 04-Aug-2015
156,Revenue,CCHD,Bed Purchasing - North,Permanent Nursing,Blossom Field,2850.96, 04-Aug-2015
157,Revenue,CCHD,Bed Purchasing - North,Permanent Nursing,Blossom Field,2729.24, 04-Aug-2015
158,Revenue,CCHD,Bed Purchasing - North,Permanent Nursing,Blossom Fields,1874.48, 27-Aug-2015
159,Revenue,CCHD,Bed Purchasing - North,Permanent Nursing,Blossom Fields,2616.92, 27-Aug-2015
160,Revenue,CCHD,Bed Purchasing - North,Permanent Residential,Bradley House,1546.32, 04-Aug-2015
161,Revenue,CCHD,Bed Purchasing - North,Permanent Residential,Bridge House Care Home,1533.6, 04-Aug-2015
162,Revenue,CCHD,Bed Purchasing - North,Permanent Residential,Bridge House Care Home,1079.2, 04-Aug-2015
163,Revenue,CCHD,Bed Purchasing - North,Permanent Residential,Bridge House Care Home,1531.48, 04-Aug-2015
164,Revenue,CCHD,Bed Purchasing - North,Permanent Residential,Bridge House Care Home,1544.6, 04-Aug-2015
165,Revenue,CCHD,Bed Purchasing - North,Permanent Residential,Bridgwater Court,37708.8, 27-Aug-2015
166,Revenue,CCHD,Bed Purchasing - North,Permanent Nursing,Brunelcare,2183.15, 19-Aug-2015
167,Revenue,CCHD,Bed Purchasing - North,Permanent Nursing,Brunelcare,2501.61, 19-Aug-2015
168,Revenue,CCHD,Bed Purchasing - North,Permanent Nursing,Brunelcare,2516.31, 19-Aug-2015
169,Revenue,CCHD,Bed Purchasing - North,Permanent Nursing,Brunelcare,2576.1, 19-Aug-2015
170,Revenue,CCHD,Bed Purchasing - North,Permanent Nursing,Bupa Care Services  Bridge House,6002.4, 04-Aug-2015
171,Revenue,CCHD,Bed Purchasing - North,Permanent Residential,Bupa Care Services  Bridge House,2008.72, 04-Aug-2015
172,Revenue,CCHD,Bed Purchasing - North,Permanent Residential,Charlton House,1075.6, 04-Aug-2015
173,Revenue,CCHD,Bed Purchasing - North,Permanent Residential,Charlton House,919.52, 04-Aug-2015
174,Revenue,CCHD,Bed Purchasing - North,Permanent Residential,Church House,10621.16, 04-Aug-2015
175,Revenue,CCHD,Bed Purchasing - North,Permanent Residential,Church House,5984.56, 04-Aug-2015
176,Revenue,CCHD,Bed Purchasing - North,Permanent Residential,Daneswood,9213.64, 04-Aug-2015
177,Revenue,CCHD,Bed Purchasing - North,Permanent Residential,East Court,2238.4, 04-Aug-2015
178,Revenue,CCHD,Bed Purchasing - North,Permanent Residential,Edgecumbe Lodge,1378.2, 04-Aug-2015
179,Revenue,CCHD,Bed Purchasing - North,Permanent Nursing,Edgemont View Nursing Home,1232.16, 04-Aug-2015
180,Revenue,CCHD,Bed Purchasing - North,Permanent Residential,Epworth House,1053.36, 04-Aug-2015
181,Revenue,CCHD,Bed Purchasing - North,Permanent Nursing,Fairview Court,2347.96, 04-Aug-2015
182,Revenue,CCHD,Bed Purchasing - North,Permanent Residential,Fernbank,7790.28, 04-Aug-2015
183,Revenue,CCHD,Bed Purchasing - North,Permanent Residential,Freeways Trust Ltd,2891.96, 04-Aug-2015
184,Revenue,CCHD,Bed Purchasing - North,Permanent Residential,Freeways Trust Ltd,3164.68, 04-Aug-2015
185,Revenue,CCHD,Bed Purchasing - North,Permanent Residential,Freeways Trust Ltd,2312.72, 04-Aug-2015
186,Revenue,CCHD,Bed Purchasing - North,Permanent Residential,Freeways Trust Ltd,2761.92, 04-Aug-2015
187,Revenue,CCHD,Bed Purchasing - North,Permanent Residential,Freeways Trust Ltd,2286.84, 04-Aug-2015
188,Revenue,CCHD,Bed Purchasing - North,Permanent Residential,Freeways Trust Ltd,2761.92, 04-Aug-2015
189,Revenue,CCHD,Bed Purchasing - North,Permanent Residential,Freeways Trust Ltd,3185.76, 04-Aug-2015
190,Revenue,CCHD,Bed Purchasing - North,Permanent Residential,Freeways Trust Ltd,3866.08, 04-Aug-2015
191,Revenue,CCHD,Bed Purchasing - North,Permanent Nursing,Fshc  1St Floor,1904, 04-Aug-2015
192,Revenue,CCHD,Bed Purchasing - North,Permanent Nursing,Fshc  1St Floor,970.77, 04-Aug-2015
193,Revenue,CCHD,Bed Purchasing - North,Permanent Nursing,Fshc  1St Floor,770.9, 04-Aug-2015
194,Revenue,CCHD,Bed Purchasing - North,Permanent Residential,Fshc  1St Floor,1270.8, 04-Aug-2015
195,Revenue,CCHD,Bed Purchasing - North,Permanent Nursing,Fshc  1St Floor,1026.6, 04-Aug-2015
196,Revenue,CCHD,Bed Purchasing - North,Respite Planned - Nursing,Fshc  1St Floor,6120, 04-Aug-2015
197,Revenue,CCHD,Bed Purchasing - North,Respite Planned - Nursing,Fshc  1St Floor,1904, 04-Aug-2015
198,Revenue,CCHD,Bed Purchasing - North,Permanent Residential,Fshc  1St Floor,1248.4, 04-Aug-2015
199,Revenue,CCHD,Bed Purchasing - North,Permanent Nursing,Fshc  1St Floor,545.84, 04-Aug-2015
200,Revenue,CCHD,Bed Purchasing - North,Permanent Nursing,Fshc  1St Floor,11173.8, 04-Aug-2015
201,Revenue,CCHD,Bed Purchasing - North,Permanent Nursing,Fshc  1St Floor,1501.92, 04-Aug-2015
202,Revenue,CCHD,Bed Purchasing - North,Permanent Nursing,Fshc  1St Floor,3996.57, 04-Aug-2015
203,Revenue,CCHD,Bed Purchasing - North,Permanent Nursing,Fshc  1St Floor,1398.8, 04-Aug-2015
204,Revenue,CCHD,Bed Purchasing - North,Permanent Nursing,Fshc  1St Floor,908.28, 04-Aug-2015
205,Revenue,CCHD,Bed Purchasing - North,Respite Planned - Nursing,Fshc  1St Floor,1224, 04-Aug-2015
206,Revenue,CCHD,Bed Purchasing - North,Respite Planned - Nursing,Fshc  1St Floor,680, 04-Aug-2015
207,Revenue,CCHD,Bed Purchasing - North,Permanent Nursing,Fshc  1St Floor,1489, 04-Aug-2015
208,Revenue,CCHD,Bed Purchasing - North,Permanent Residential,Fshc  1St Floor,1421.84, 04-Aug-2015
209,Revenue,CCHD,Bed Purchasing - North,Permanent Nursing,Fshc  1St Floor,1007, 04-Aug-2015
210,Revenue,CCHD,Bed Purchasing - North,Permanent Residential,Fshc  1St Floor,1268.08, 04-Aug-2015
211,Revenue,CCHD,Bed Purchasing - North,Permanent Residential,Fshc  1St Floor,731.16, 04-Aug-2015
212,Revenue,CCHD,Bed Purchasing - North,Permanent Residential,Fshc  1St Floor,1421.6, 04-Aug-2015
213,Revenue,CCHD,Bed Purchasing - North,Permanent Nursing,Fshc  1St Floor,1602.8, 04-Aug-2015
214,Revenue,CCHD,Bed Purchasing - North,Permanent Residential,Fshc  1St Floor,1270.8, 04-Aug-2015
215,Revenue,CCHD,Bed Purchasing - North,Respite Planned - Nursing,Fshc  1St Floor,2176, 04-Aug-2015
216,Revenue,CCHD,Bed Purchasing - North,Permanent Nursing,Fshc  1St Floor,1398.8, 04-Aug-2015
217,Revenue,CCHD,Bed Purchasing - North,Permanent Nursing,Fshc  1St Floor,1019.44, 04-Aug-2015
218,Revenue,CCHD,Bed Purchasing - North,Permanent Nursing,Fshc  1St Floor,1433.84, 04-Aug-2015
219,Revenue,CCHD,Bed Purchasing - North,Permanent Nursing,Fshc  1St Floor,1287.04, 04-Aug-2015
220,Revenue,CCHD,Bed Purchasing - North,Permanent Residential,Fshc  1St Floor,3034.68, 04-Aug-2015
221,Revenue,CCHD,Bed Purchasing - North,Permanent Nursing,Fshc  1St Floor,1405.04, 04-Aug-2015
222,Revenue,CCHD,Bed Purchasing - North,Permanent Residential,Fshc  1St Floor,968.32, 04-Aug-2015
223,Revenue,CCHD,Bed Purchasing - North,Permanent Residential,Fshc  1St Floor,1179.64, 04-Aug-2015
224,Revenue,CCHD,Bed Purchasing - North,Permanent Nursing,Fshc  1St Floor,1144.52, 04-Aug-2015
225,Revenue,CCHD,Bed Purchasing - North,Permanent Residential,Fshc  1St Floor,1233.32, 04-Aug-2015
226,Revenue,CCHD,Bed Purchasing - North,Permanent Nursing,Fshc  1St Floor,1352.04, 04-Aug-2015
227,Revenue,CCHD,Bed Purchasing - North,Respite Emergency - Residential,Fshc  1St Floor,1918.72, 04-Aug-2015
228,Revenue,CCHD,Bed Purchasing - North,Permanent Nursing,Fshc  1St Floor,1364.16, 04-Aug-2015
229,Revenue,CCHD,Bed Purchasing - North,Permanent Nursing,Fshc  1St Floor,845.84, 04-Aug-2015
230,Revenue,CCHD,Bed Purchasing - North,Permanent Nursing,Fshc  1St Floor,1506.8, 04-Aug-2015
231,Revenue,CCHD,Bed Purchasing - North,Permanent Nursing,Fshc  1St Floor,1245.8, 04-Aug-2015
232,Revenue,CCHD,Bed Purchasing - North,Permanent Nursing,Fshc  1St Floor,1374.32, 04-Aug-2015
233,Revenue,CCHD,Bed Purchasing - North,Permanent Residential,Fshc  1St Floor,1128.92, 04-Aug-2015
234,Revenue,CCHD,Bed Purchasing - North,Permanent Residential,Fshc  1St Floor,1070.32, 04-Aug-2015
235,Revenue,CCHD,Bed Purchasing - North,Permanent Residential,Glebe House Nursing Home,2163.16, 04-Aug-2015
236,Revenue,CCHD,Bed Purchasing - North,Permanent Nursing,Glebe House Nursing Home,2985.68, 04-Aug-2015
237,Revenue,CCHD,Bed Purchasing - North,Permanent Nursing,Glebe House Nursing Home,2458.8, 04-Aug-2015
238,Revenue,CCHD,Bed Purchasing - North,Permanent Nursing,Glebe House Nursing Home,8201.1, 04-Aug-2015
239,Revenue,CCHD,Bed Purchasing - North,Permanent Nursing,Glebe House Nursing Home,2186.96, 04-Aug-2015
240,Revenue,CCHD,Bed Purchasing - North,Permanent Nursing,Glebe House Nursing Home,2742.8, 04-Aug-2015
241,Revenue,CCHD,Bed Purchasing - North,Permanent Nursing,Glebe House Nursing Home,1763.23, 04-Aug-2015
242,Revenue,CCHD,Bed Purchasing - North,Permanent Residential,Glebe House Nursing Home,2628.08, 04-Aug-2015
243,Revenue,CCHD,Bed Purchasing - North,Permanent Residential,Gordena Care Limited,4260.48, 04-Aug-2015
244,Revenue,CCHD,Bed Purchasing - North,Permanent Residential,Greensleeves,1344.52, 04-Aug-2015
245,Revenue,CCHD,Bed Purchasing - North,Permanent Nursing,Hambledon House,17995.85, 04-Aug-2015
246,Revenue,CCHD,Bed Purchasing - North,Permanent Nursing,Hc-One Ltd,1511.16, 04-Aug-2015
247,Revenue,CCHD,Bed Purchasing - North,Permanent Residential,Hc-One Ltd,1112.44, 04-Aug-2015
248,Revenue,CCHD,Bed Purchasing - North,Permanent Nursing,Hc-One Ltd,1204.4, 04-Aug-2015
249,Revenue,CCHD,Bed Purchasing - North,Permanent Nursing,Hc-One Ltd,822.84, 04-Aug-2015
250,Revenue,CCHD,Bed Purchasing - North,Permanent Nursing,Hc-One Ltd,1508.32, 04-Aug-2015
251,Revenue,CCHD,Bed Purchasing - North,Permanent Residential,Holmleigh Care Homes Ltd,4115.32, 04-Aug-2015
252,Revenue,CCHD,Bed Purchasing - North,Permanent Residential,Home Farm Trust Ltd  5-6 Brook Office Pa,2221.85, 04-Aug-2015
253,Revenue,CCHD,Bed Purchasing - North,Permanent Residential,Home Farm Trust Ltd  5-6 Brook Office Pa,3480.32, 04-Aug-2015
254,Revenue,CCHD,Bed Purchasing - North,Permanent Residential,Homes Caring For Autism Ltd  Churchill H,10015.24, 04-Aug-2015
255,Revenue,CCHD,Bed Purchasing - North,Respite Planned - Nursing,Horfield Care Limited,2291.08, 27-Aug-2015
256,Revenue,CCHD,Bed Purchasing - North,Permanent Nursing,Kingfisher Lodge Care Centre,2531.88, 04-Aug-2015
257,Revenue,CCHD,Bed Purchasing - North,Permanent Residential,Kisimul Group,11512.8, 04-Aug-2015
258,Revenue,CCHD,Bed Purchasing - North,Permanent Nursing,Leonard Cheshire  National Account Centr,5090.88, 04-Aug-2015
259,Revenue,CCHD,Bed Purchasing - North,Permanent Residential,Leonard Cheshire  National Account Centr,2948.64, 04-Aug-2015
260,Revenue,CCHD,Bed Purchasing - North,Permanent Nursing,Leonard Cheshire  National Account Centr,3559.68, 04-Aug-2015
261,Revenue,CCHD,Bed Purchasing - North,Permanent Nursing,Leonard Cheshire  National Account Centr,2858.32, 04-Aug-2015
262,Revenue,CCHD,Bed Purchasing - North,Permanent Residential,Leonard Cheshire  National Account Centr,6024.88, 04-Aug-2015
263,Revenue,CCHD,Bed Purchasing - North,Permanent Residential,Leonard Cheshire  National Account Centr,6023.32, 04-Aug-2015
264,Revenue,CCHD,Bed Purchasing - North,Permanent Nursing,Leonard Cheshire  National Account Centr,2913.28, 04-Aug-2015
265,Revenue,CCHD,Bed Purchasing - North,Permanent Nursing,Leonard Cheshire  National Account Centr,3912.16, 04-Aug-2015
266,Revenue,CCHD,Bed Purchasing - North,Permanent Residential,Leonard Cheshire  National Account Centr,2965.36, 04-Aug-2015
267,Revenue,CCHD,Bed Purchasing - North,Permanent Nursing,Leonard Cheshire  National Account Centr,3306.84, 04-Aug-2015
268,Revenue,CCHD,Bed Purchasing - North,Permanent Nursing,Leonard Cheshire  National Account Centr,5663.6, 04-Aug-2015
269,Revenue,CCHD,Bed Purchasing - North,Permanent Nursing,Leonard Cheshire  National Account Centr,3363.96, 04-Aug-2015
270,Revenue,CCHD,Bed Purchasing - North,Permanent Nursing,Leonard Cheshire  National Account Centr,4167.96, 04-Aug-2015
271,Revenue,CCHD,Bed Purchasing - North,Permanent Residential,Little Croft,1230.92, 04-Aug-2015
272,Revenue,CCHD,Bed Purchasing - North,Permanent Residential,Little Croft,1408.44, 04-Aug-2015
273,Revenue,CCHD,Bed Purchasing - North,Permanent Residential,Littlecroft Residential Homes  Longcroft,6478.92, 04-Aug-2015
274,Revenue,CCHD,Bed Purchasing - North,Permanent Residential,Manton Hall Residential Home,1542.8, 04-Aug-2015
275,Revenue,CCHD,Bed Purchasing - North,Permanent Residential,Milestones - Unit 10,2677.84, 04-Aug-2015
276,Revenue,CCHD,Bed Purchasing - North,Permanent Residential,Milestones - Unit 10,3496.32, 04-Aug-2015
277,Revenue,CCHD,Bed Purchasing - North,Permanent Nursing,Milestones - Unit 10,1440.08, 04-Aug-2015
278,Revenue,CCHD,Bed Purchasing - North,Respite Emergency - Residential,Milestones - Unit 10,9188.88, 04-Aug-2015
279,Revenue,CCHD,Bed Purchasing - North,Permanent Residential,Milestones - Unit 10,4062.96, 04-Aug-2015
280,Revenue,CCHD,Bed Purchasing - North,Permanent Residential,Milestones - Unit 10,4685.96, 04-Aug-2015
281,Revenue,CCHD,Bed Purchasing - North,Permanent Residential,Milestones - Unit 10,4349.92, 04-Aug-2015
282,Revenue,CCHD,Bed Purchasing - North,Permanent Nursing,Milestones - Unit 10,6971.8, 04-Aug-2015
283,Revenue,CCHD,Bed Purchasing - North,Permanent Nursing,Milestones - Unit 10,1108.84, 04-Aug-2015
284,Revenue,CCHD,Bed Purchasing - North,Permanent Residential,Milestones - Unit 10,6847.36, 04-Aug-2015
285,Revenue,CCHD,Bed Purchasing - North,Permanent Nursing,Milestones - Unit 10,4610.27, 04-Aug-2015
286,Revenue,CCHD,Bed Purchasing - North,Permanent Nursing,Milestones - Unit 10,1330.8, 04-Aug-2015
287,Revenue,CCHD,Bed Purchasing - North,Permanent Nursing,Milestones - Unit 10,1460.24, 04-Aug-2015
288,Revenue,CCHD,Bed Purchasing - North,Permanent Nursing,Milestones - Unit 10,834.36, 04-Aug-2015
289,Revenue,CCHD,Bed Purchasing - North,Permanent Residential,Millennium House,1429.56, 04-Aug-2015
290,Revenue,CCHD,Bed Purchasing - North,Permanent Residential,Mostyn Lodge Residential Home,1239.8, 04-Aug-2015
291,Revenue,CCHD,Bed Purchasing - North,Permanent Residential,National Star College,5035.04, 04-Aug-2015
292,Revenue,CCHD,Bed Purchasing - North,Permanent Residential,Notaro Homes Ltd  Queensmead Court,2406.47, 04-Aug-2015
293,Revenue,CCHD,Bed Purchasing - North,Permanent Residential,Osbourne Court,2204.8, 04-Aug-2015
294,Revenue,CCHD,Bed Purchasing - North,Permanent Residential,Osbourne Court,1831.04, 04-Aug-2015
295,Revenue,CCHD,Bed Purchasing - North,Permanent Residential,Osbourne Court,2063.12, 04-Aug-2015
296,Revenue,CCHD,Bed Purchasing - North,Permanent Residential,Osbourne Court,1268.25, 04-Aug-2015
297,Revenue,CCHD,Bed Purchasing - North,Permanent Residential,Park Hall,5258.76, 04-Aug-2015
298,Revenue,CCHD,Bed Purchasing - North,Permanent Residential,Park Hall,5017.28, 04-Aug-2015
299,Revenue,CCHD,Bed Purchasing - North,Permanent Residential,Park Hall,4371.04, 04-Aug-2015
300,Revenue,CCHD,Bed Purchasing - North,Permanent Nursing,Ravenswood,2218.8, 04-Aug-2015
301,Revenue,CCHD,Bed Purchasing - North,Permanent Nursing,Regent House,2018.2, 04-Aug-2015
302,Revenue,CCHD,Bed Purchasing - North,Permanent Nursing,Regent House,6541.79, 04-Aug-2015
303,Revenue,CCHD,Bed Purchasing - North,Permanent Nursing,Regent House,2081.48, 04-Aug-2015
304,Revenue,CCHD,Bed Purchasing - North,Permanent Nursing,Regent House,2572.92, 04-Aug-2015
305,Revenue,CCHD,Bed Purchasing - North,Permanent Nursing,Regent House,2543.6, 04-Aug-2015
306,Revenue,CCHD,Bed Purchasing - North,Permanent Residential,Shaw Healthcare Ltd,4185.36, 04-Aug-2015
307,Revenue,CCHD,Bed Purchasing - North,Permanent Residential,St George Nursing Home,985.16, 04-Aug-2015
308,Revenue,CCHD,Bed Purchasing - North,Permanent Nursing,St Georges Nursing Home,2902.82, 04-Aug-2015
309,Revenue,CCHD,Bed Purchasing - North,Permanent Nursing,Stanley House,6432.28, 04-Aug-2015
310,Revenue,CCHD,Bed Purchasing - North,Permanent Residential,The Beeches,1473.56, 04-Aug-2015
311,Revenue,CCHD,Bed Purchasing - North,Permanent Residential,The Cidermill,1442.8, 04-Aug-2015
312,Revenue,CCHD,Bed Purchasing - North,Permanent Nursing,The Cidermill,1115.16, 04-Aug-2015
313,Revenue,CCHD,Bed Purchasing - North,Permanent Nursing,The Cidermill,1683.5, 04-Aug-2015
314,Revenue,CCHD,Bed Purchasing - North,Permanent Nursing,The Cidermill,1225.44, 04-Aug-2015
315,Revenue,CCHD,Bed Purchasing - North,Permanent Residential,The Elms,1633.28, 04-Aug-2015
316,Revenue,CCHD,Bed Purchasing - North,Permanent Residential,The Elms,1442.8, 04-Aug-2015
317,Revenue,CCHD,Bed Purchasing - North,Permanent Residential,The Garden House,1905.72, 04-Aug-2015
318,Revenue,CCHD,Bed Purchasing - North,Permanent Residential,The Garden House,1189.76, 04-Aug-2015
319,Revenue,CCHD,Bed Purchasing - North,Permanent Residential,The Garden House,2830.24, 04-Aug-2015
320,Revenue,CCHD,Bed Purchasing - North,Permanent Residential,The Garden House,1280.84, 04-Aug-2015
321,Revenue,CCHD,Bed Purchasing - North,Permanent Residential,The Garden House,2447, 04-Aug-2015
322,Revenue,CCHD,Bed Purchasing - North,Permanent Residential,The Garden House,1328.56, 04-Aug-2015
323,Revenue,CCHD,Bed Purchasing - North,Permanent Residential,The Grove,2138.08, 04-Aug-2015
324,Revenue,CCHD,Bed Purchasing - North,Permanent Residential,The Grove,2163.32, 04-Aug-2015
325,Revenue,CCHD,Bed Purchasing - North,Permanent Residential,The Grove,2354.86, 04-Aug-2015
326,Revenue,CCHD,Bed Purchasing - North,Permanent Residential,The Grove,1932.4, 04-Aug-2015
327,Revenue,CCHD,Bed Purchasing - North,Permanent Residential,The Grove,2082.44, 04-Aug-2015
328,Revenue,CCHD,Bed Purchasing - North,Permanent Residential,The Grove,8642.4, 04-Aug-2015
329,Revenue,CCHD,Bed Purchasing - North,Permanent Residential,The Grove,2304.87, 04-Aug-2015
330,Revenue,CCHD,Bed Purchasing - North,Permanent Residential,The Grove,2015.6, 04-Aug-2015
331,Revenue,CCHD,Bed Purchasing - North,Permanent Nursing,The Heathers,914.8, 04-Aug-2015
332,Revenue,CCHD,Bed Purchasing - North,Permanent Nursing,The Heathers,5192.1, 04-Aug-2015
333,Revenue,CCHD,Bed Purchasing - North,Permanent Nursing,The Heathers,1384.56, 04-Aug-2015
334,Revenue,CCHD,Bed Purchasing - North,Permanent Nursing,The Heathers,1277.64, 04-Aug-2015
335,Revenue,CCHD,Bed Purchasing - North,Permanent Nursing,The Heathers,999.68, 04-Aug-2015
336,Revenue,CCHD,Bed Purchasing - North,Permanent Residential,The Hollies,1330.88, 04-Aug-2015
337,Revenue,CCHD,Bed Purchasing - North,Permanent Nursing,The Hollies Nursing Home,1816.12, 04-Aug-2015
338,Revenue,CCHD,Bed Purchasing - North,Permanent Residential,The Manor House,12683.55, 04-Aug-2015
339,Revenue,CCHD,Bed Purchasing - North,Permanent Residential,The Manor House,3382.28, 04-Aug-2015
340,Revenue,CCHD,Bed Purchasing - North,Permanent Residential,The Manor House,4055.52, 04-Aug-2015
341,Revenue,CCHD,Bed Purchasing - North,Respite Planned - Residential,The Manor House,541.03, 04-Aug-2015
342,Revenue,CCHD,Bed Purchasing - North,Permanent Residential,The Old Vicarage Residential Home,1432.47, 11-Aug-2015
343,Revenue,CCHD,Bed Purchasing - North,Permanent Residential,The Thomas Moore Project,1983.6, 04-Aug-2015
344,Revenue,CCHD,Bed Purchasing - North,Permanent Residential,The Worthies,1377.2, 04-Aug-2015
345,Revenue,CCHD,Bed Purchasing - North,Permanent Residential,The Worthies,1039.68, 04-Aug-2015
346,Revenue,CCHD,Bed Purchasing - North,Permanent Residential,Tracs Group Ltd,6436.4, 04-Aug-2015
347,Revenue,CCHD,Bed Purchasing - North,Permanent Residential,Tracs Group Ltd,4693.32, 04-Aug-2015
348,Revenue,CCHD,Bed Purchasing - North,Permanent Residential,Ty Hafod Tudor,3976.76, 04-Aug-2015
349,Revenue,CCHD,Bed Purchasing - North,Permanent Residential,Victoria Court,8965.88, 04-Aug-2015
350,Revenue,CCHD,Bed Purchasing - North,Permanent Residential,Voyage Care,8461.32, 04-Aug-2015
351,Revenue,CCHD,Bed Purchasing - North,Permanent Nursing,Westbury Nursing Home,2041.16, 04-Aug-2015
352,Revenue,CCHD,Bed Purchasing - North,Permanent Nursing,Westbury Nursing Home,2483.16, 04-Aug-2015
353,Revenue,CCHD,Bed Purchasing - North,Permanent Nursing,Wickwar Nursing Home  Castle House,1325.4, 04-Aug-2015
354,Revenue,CCHD,Bed Purchasing - North,Permanent Nursing,Wickwar Nursing Home  Castle House,1575.16, 04-Aug-2015
355,Revenue,CCHD,Bed Purchasing - North,Permanent Nursing,Wickwar Nursing Home  Castle House,1087.64, 04-Aug-2015
356,Revenue,CCHD,Bed Purchasing - North,Permanent Nursing,Wickwar Nursing Home  Castle House,814.64, 04-Aug-2015
357,Revenue,CCHD,Bed Purchasing - North,Permanent Nursing,Wickwar Nursing Home  Castle House,761.96, 04-Aug-2015
358,Revenue,CCHD,Bed Purchasing - North,Permanent Residential,Wickwar Nursing Home  Castle House,1266.8, 04-Aug-2015
359,Revenue,CCHD,Bed Purchasing - North,Permanent Nursing,Willow Cottage,2082.12, 04-Aug-2015
360,Revenue,CCHD,Bed Purchasing - North,Permanent Nursing,Willow Cottage,2048.56, 04-Aug-2015
361,Revenue,CCHD,Bed Purchasing - North,Permanent Nursing,Willow Cottage,1353.44, 04-Aug-2015
362,Revenue,CCHD,Bed Purchasing - North,Permanent Nursing,Willow Cottage,2950.2, 04-Aug-2015
363,Revenue,CCHD,Bed Purchasing - North,Permanent Nursing,Willow Cottage,1966.8, 04-Aug-2015
364,Revenue,CCHD,Bed Purchasing - North,Respite Planned - Residential,Willows,540, 04-Aug-2015
365,Revenue,CCHD,Bed Purchasing - North,Respite Emergency - Residential,Willows,3780, 04-Aug-2015
366,Revenue,CCHD,Bed Purchasing - North,Respite Planned - Residential,Willows,1800, 04-Aug-2015
367,Revenue,CCHD,Bed Purchasing - North,Permanent Residential,Windmill House,1157.96, 04-Aug-2015
368,Revenue,CCHD,Bed Purchasing - North,Permanent Residential,Windmill House,1077.8, 04-Aug-2015
369,Revenue,CCHD,Bed Purchasing - North,Permanent Residential,Windmill House,1084.52, 04-Aug-2015
370,Revenue,CCHD,Bed Purchasing - North,Permanent Nursing,Woodlands Manor,5030.07, 04-Aug-2015
371,Revenue,CCHD,Bed Purchasing - North,Permanent Nursing,Woodlands Manor,2061.24, 04-Aug-2015
372,Revenue,CCHD,Bed Purchasing - North,Respite Planned - Residential,Yercombe Lodge,1710, 04-Aug-2015
373,Revenue,CCHD,Bed Purchasing - North,Respite Planned - Residential,Yercombe Lodge,1080, 04-Aug-2015
374,Revenue,CCHD,Bed purchasing - Phys Dis - North,Respite Planned - Residential,Yercombe Lodge,1505.71, 04-Aug-2015
375,Revenue,CCHD,Bed purchasing - Phys Dis - North,Respite Planned - Residential,Yercombe Lodge,1080, 04-Aug-2015
376,Revenue,CCHD,Bed purchasing - Phys Dis - North,Respite Planned - Residential,Yercombe Lodge,630, 04-Aug-2015
377,Revenue,CCHD,Bed Purchasing - S28A - Over 65- North,Permanent Residential,Brandon Trust,3126.48, 04-Aug-2015
378,Revenue,CCHD,Bed Purchasing - S28A - Over 65- North,Permanent Residential,Cream Ii Ltd  Longrun House,8102.76, 04-Aug-2015
379,Revenue,CCHD,Bed Purchasing - S28A - Over 65- North,Permanent Residential,Creedy Court,7806.28, 04-Aug-2015
380,Revenue,CCHD,Bed Purchasing - S28A - Over 65- North,Permanent Residential,Milestones - Unit 10,6670, 04-Aug-2015
381,Revenue,CCHD,Bed Purchasing - S28A - Over 65- North,Permanent Residential,Milestones - Unit 10,2902.08, 04-Aug-2015
382,Revenue,CCHD,Bed Purchasing - S28A - Over 65- North,Permanent Residential,Milestones - Unit 10,3633.92, 04-Aug-2015
383,Revenue,CCHD,Bed Purchasing - S28A - Over 65- North,Permanent Residential,Milestones - Unit 10,3245.24, 04-Aug-2015
384,Revenue,CCHD,Bed Purchasing - S28A - Over 65- North,Permanent Residential,Milestones - Unit 10,17911.5, 04-Aug-2015
385,Revenue,CCHD,Bed Purchasing - S28A - Over 65- North,Permanent Residential,Milestones - Unit 10,4776.4, 04-Aug-2015
386,Revenue,CCHD,Bed Purchasing - S28A - Over 65- North,Permanent Residential,Milestones - Unit 10,4634.04, 04-Aug-2015
387,Revenue,CCHD,Bed Purchasing - S28A - Over 65- North,Permanent Residential,Milestones - Unit 10,4806.64, 04-Aug-2015
388,Revenue,CCHD,Bed Purchasing - S28A - Over 65- North,Permanent Residential,Milestones - Unit 10,4547.76, 04-Aug-2015
389,Revenue,CCHD,Bed Purchasing - S28A - Over 65- North,Permanent Residential,Milestones - Unit 10,3464.24, 04-Aug-2015
390,Revenue,CCHD,Bed Purchasing - S28A - Over 65- North,Permanent Nursing,Milestones - Unit 10,3670.84, 04-Aug-2015
391,Revenue,CCHD,Bed Purchasing - S28A - Over 65- North,Permanent Nursing,Milestones - Unit 10,3666.84, 04-Aug-2015
392,Revenue,CCHD,Bed Purchasing - S28A - Over 65- North,Permanent Residential,Shaw Healthcare Ltd,4325.44, 04-Aug-2015
393,Revenue,CCHD,Bed Purchasing - S28A - Over 65- North,Permanent Residential,Shaw Healthcare Ltd,4336.92, 04-Aug-2015
394,Revenue,CCHD,Bed Purchasing - S28A - Over 65- North,Permanent Residential,Shaw Healthcare Ltd,6895.88, 04-Aug-2015
395,Revenue,CCHD,Bed purchasing - S28A Under 65 - South,Permanent Residential,5Th Floor Harlech Court,9854.4, 04-Aug-2015
396,Revenue,CCHD,Bed purchasing - S28A Under 65 - South,Permanent Residential,5Th Floor Harlech Court,10834.28, 04-Aug-2015
397,Revenue,CCHD,Bed purchasing - S28A Under 65 - South,Permanent Nursing,Brandon Trust,20527.65, 04-Aug-2015
398,Revenue,CCHD,Bed purchasing - S28A Under 65 - South,Permanent Nursing,Brandon Trust,5474.04, 04-Aug-2015
399,Revenue,CCHD,Bed purchasing - S28A Under 65 - South,Permanent Residential,Brandon Trust,4956.6, 04-Aug-2015
400,Revenue,CCHD,Bed purchasing - S28A Under 65 - South,Permanent Residential,Brandon Trust,5260, 04-Aug-2015
401,Revenue,CCHD,Bed purchasing - S28A Under 65 - South,Permanent Residential,Brandon Trust,5316.28, 04-Aug-2015
402,Revenue,CCHD,Bed purchasing - S28A Under 65 - South,Permanent Nursing,Brandon Trust,5418.04, 04-Aug-2015
403,Revenue,CCHD,Bed purchasing - S28A Under 65 - South,Permanent Residential,Brandon Trust,5316.28, 04-Aug-2015
404,Revenue,CCHD,Bed purchasing - S28A Under 65 - South,Permanent Residential,Freeways Trust Ltd,2959.48, 04-Aug-2015
405,Revenue,CCHD,Bed purchasing - S28A Under 65 - South,Permanent Residential,Gordena Care Limited,4161.28, 04-Aug-2015
406,Revenue,CCHD,Bed purchasing - S28A Under 65 - South,Permanent Residential,Milestones - Unit 10,5588.64, 04-Aug-2015
407,Revenue,CCHD,Bed purchasing - S28A Under 65 - South,Permanent Nursing,Milestones - Unit 10,7369.04, 04-Aug-2015
408,Revenue,CCHD,Bed purchasing - S28A Under 65 - South,Permanent Residential,Milestones - Unit 10,4575.8, 04-Aug-2015
409,Revenue,CCHD,Bed purchasing - S28A Under 65 - South,Permanent Residential,Milestones - Unit 10,4527.72, 04-Aug-2015
410,Revenue,CCHD,Bed purchasing - S28A Under 65 - South,Permanent Residential,Milestones - Unit 10,3704.6, 04-Aug-2015
411,Revenue,CCHD,Bed purchasing - S28A Under 65 - South,Permanent Residential,Milestones - Unit 10,4988.84, 04-Aug-2015
412,Revenue,CCHD,Bed purchasing - S28A Under 65 - South,Permanent Residential,Milestones - Unit 10,5228.28, 04-Aug-2015
413,Revenue,CCHD,Bed purchasing - S28A Under 65 - South,Permanent Nursing,Milestones - Unit 10,5239.84, 04-Aug-2015
414,Revenue,CCHD,Bed purchasing - S28A Under 65 - South,Permanent Residential,Milestones - Unit 10,6111.04, 04-Aug-2015
415,Revenue,CCHD,Bed purchasing - S28A Under 65 - South,Permanent Residential,Milestones - Unit 10,4808.68, 04-Aug-2015
416,Revenue,CCHD,Bed purchasing - S28A Under 65 - South,Permanent Residential,Milestones - Unit 10,5984.08, 04-Aug-2015
417,Revenue,CCHD,Bed purchasing - S28A Under 65 - South,Permanent Residential,Milestones - Unit 10,6071.04, 04-Aug-2015
418,Revenue,CCHD,Bed purchasing - S28A Under 65 - South,Permanent Residential,Osprey Court,4370.6, 04-Aug-2015
419,Revenue,CCHD,Bed purchasing - S28A Under 65 - South,Permanent Residential,Osprey Court,6461.08, 04-Aug-2015
420,Revenue,CCHD,Bed purchasing - S28A Under 65 - South,Permanent Residential,Park Hall,4734.56, 04-Aug-2015
421,Revenue,CCHD,Bed purchasing - S28A Under 65 - South,Permanent Residential,Park Hall,5733.8, 04-Aug-2015
422,Revenue,CCHD,Bed purchasing - S28A Under 65 - South,Permanent Residential,Penleigh House Care Home,5558.12, 04-Aug-2015
423,Revenue,CCHD,Bed purchasing - S28A Under 65 - South,Permanent Residential,Shaw Healthcare Ltd,9998.32, 04-Aug-2015
424,Revenue,CCHD,Bed purchasing - S28A Under 65 - South,Permanent Residential,Shaw Healthcare Ltd,9865.72, 04-Aug-2015
425,Revenue,CCHD,Bed purchasing - S28A Under 65 - South,Permanent Residential,The Brandon Trust,28719.6, 13-Aug-2015
426,Revenue,CCHD,Bed purchasing - S28A Under 65 - South,Permanent Residential,The Manor House,4884.04, 04-Aug-2015
427,Revenue,CCHD,Bed purchasing - S28A Under 65 - South,Permanent Residential,United Response,26705.92, 11-Aug-2015
428,Revenue,CCHD,Bed Purchasing - South,Permanent Residential,.,1571.88, 04-Aug-2015
429,Revenue,CCHD,Bed Purchasing - South,Permanent Nursing,.,861.32, 04-Aug-2015
430,Revenue,CCHD,Bed Purchasing - South,Permanent Residential,5Th Floor Harlech Court,16236.56, 04-Aug-2015
431,Revenue,CCHD,Bed Purchasing - South,Permanent Residential,5Th Floor Harlech Court,9403.36, 04-Aug-2015
432,Revenue,CCHD,Bed Purchasing - South,Permanent Nursing,5Th Floor Harlech Court,10352.52, 04-Aug-2015
433,Revenue,CCHD,Bed Purchasing - South,Permanent Nursing,Ambleside Nusing Ho!,1526.08, 04-Aug-2015
434,Revenue,CCHD,Bed Purchasing - South,Permanent Residential,Ashbourne House,1128.28, 04-Aug-2015
435,Revenue,CCHD,Bed Purchasing - South,Permanent Residential,Autism Specialised Care Homes,5672.64, 04-Aug-2015
436,Revenue,CCHD,Bed Purchasing - South,Permanent Residential,Beaufort House,1447.4, 04-Aug-2015
437,Revenue,CCHD,Bed Purchasing - South,Respite Planned - Residential,Beaufort House,1009.36, 04-Aug-2015
438,Revenue,CCHD,Bed Purchasing - South,Respite Planned - Residential,Beaufort House,771.43, 04-Aug-2015
439,Revenue,CCHD,Bed Purchasing - South,Permanent Residential,Bedrock Lodge,3186.88, 04-Aug-2015
440,Revenue,CCHD,Bed Purchasing - South,Permanent Residential,Bedrock Lodge,2976.96, 04-Aug-2015
441,Revenue,CCHD,Bed Purchasing - South,Permanent Residential,Beech House,1270.8, 04-Aug-2015
442,Revenue,CCHD,Bed Purchasing - South,Permanent Nursing,Blossom Field,1926.44, 04-Aug-2015
443,Revenue,CCHD,Bed Purchasing - South,Permanent Residential,Brandon Trust,10380.4, 04-Aug-2015
444,Revenue,CCHD,Bed Purchasing - South,Permanent Residential,Brandon Trust,4080.76, 04-Aug-2015
445,Revenue,CCHD,Bed Purchasing - South,Permanent Residential,Brandon Trust,3493.24, 04-Aug-2015
446,Revenue,CCHD,Bed Purchasing - South,Permanent Nursing,Brandon Trust,5092.48, 04-Aug-2015
447,Revenue,CCHD,Bed Purchasing - South,Permanent Residential,Brandon Trust,3309.88, 04-Aug-2015
448,Revenue,CCHD,Bed Purchasing - South,Permanent Residential,Brightbow,2113.88, 04-Aug-2015
449,Revenue,CCHD,Bed Purchasing - South,Permanent Nursing,Brunel Care  Saffron Gardens,2090.64, 04-Aug-2015
450,Revenue,CCHD,Bed Purchasing - South,Permanent Nursing,Brunel Care  Saffron Gardens,4790.77, 04-Aug-2015
451,Revenue,CCHD,Bed Purchasing - South,Permanent Nursing,Brunel Care  Saffron Gardens,1889.32, 04-Aug-2015
452,Revenue,CCHD,Bed Purchasing - South,Permanent Residential,Brunel Care  Saffron Gardens,1308.56, 04-Aug-2015
453,Revenue,CCHD,Bed Purchasing - South,Permanent Nursing,Brunelcare,2483.01, 19-Aug-2015
454,Revenue,CCHD,Bed Purchasing - South,Permanent Nursing,Brunelcare,2147.59, 19-Aug-2015
455,Revenue,CCHD,Bed Purchasing - South,Permanent Nursing,Brunelcare,2530.57, 19-Aug-2015
456,Revenue,CCHD,Bed Purchasing - South,Permanent Nursing,Brunelcare,2576.1, 19-Aug-2015
457,Revenue,CCHD,Bed Purchasing - South,Permanent Nursing,Brunelcare,2320.39, 19-Aug-2015
458,Revenue,CCHD,Bed Purchasing - South,Permanent Nursing,Brunelcare,2576.1, 19-Aug-2015
459,Revenue,CCHD,Bed Purchasing - South,Permanent Nursing,Brunelcare,2285.5, 19-Aug-2015
460,Revenue,CCHD,Bed Purchasing - South,Respite Planned - Nursing,Brunelcare,1112.57, 19-Aug-2015
461,Revenue,CCHD,Bed Purchasing - South,Permanent Residential,Cleeve Lodge,568.08, 04-Aug-2015
462,Revenue,CCHD,Bed Purchasing - South,Permanent Residential,Cleeve Lodge,1827.76, 04-Aug-2015
463,Revenue,CCHD,Bed Purchasing - South,Permanent Residential,Collingwood Residential Home,1379.96, 04-Aug-2015
464,Revenue,CCHD,Bed Purchasing - South,Permanent Residential,Collingwood Residential Home,1456.8, 04-Aug-2015
465,Revenue,CCHD,Bed Purchasing - South,Permanent Residential,Collingwood Residential Home,1466.04, 04-Aug-2015
466,Revenue,CCHD,Bed Purchasing - South,Permanent Residential,Collingwood Residential Home,1079.12, 04-Aug-2015
467,Revenue,CCHD,Bed Purchasing - South,Permanent Residential,Collingwood Residential Home,1333.28, 04-Aug-2015
468,Revenue,CCHD,Bed Purchasing - South,Permanent Residential,Collingwood Residential Home,1327.16, 04-Aug-2015
469,Revenue,CCHD,Bed Purchasing - South,Permanent Nursing,Community Integrated Care,664.84, 04-Aug-2015
470,Revenue,CCHD,Bed Purchasing - South,Permanent Residential,Cream Ii Ltd  Longrun House,5689.32, 04-Aug-2015
471,Revenue,CCHD,Bed Purchasing - South,Permanent Residential,Daneswood,11113.64, 04-Aug-2015
472,Revenue,CCHD,Bed Purchasing - South,Permanent Residential,Devon & Cornwall Autistic Community Trus,8880.84, 04-Aug-2015
473,Revenue,CCHD,Bed Purchasing - South,Permanent Residential,Dimensions  Suite 2,4933.76, 04-Aug-2015
474,Revenue,CCHD,Bed Purchasing - South,Permanent Residential,Edgecumbe Lodge,1060.4, 04-Aug-2015
475,Revenue,CCHD,Bed Purchasing - South,Respite Planned - Residential,Edgecumbe Lodge,525, 04-Aug-2015
476,Revenue,CCHD,Bed Purchasing - South,Permanent Residential,Edgecumbe Lodge,1444.84, 04-Aug-2015
477,Revenue,CCHD,Bed Purchasing - South,Permanent Residential,Edgecumbe Lodge,1145.92, 04-Aug-2015
478,Revenue,CCHD,Bed Purchasing - South,Permanent Residential,Edgemont House Ltd,1150.2, 04-Aug-2015
479,Revenue,CCHD,Bed Purchasing - South,Permanent Residential,Edgemont House Ltd,1311.36, 04-Aug-2015
480,Revenue,CCHD,Bed Purchasing - South,Permanent Nursing,Edgemont View Nursing Home,1763.04, 04-Aug-2015
481,Revenue,CCHD,Bed Purchasing - South,Permanent Nursing,Edgemont View Nursing Home,1457.44, 04-Aug-2015
482,Revenue,CCHD,Bed Purchasing - South,Permanent Nursing,Edgemont View Nursing Home,1648.4, 04-Aug-2015
483,Revenue,CCHD,Bed Purchasing - South,Permanent Nursing,Edgemont View Nursing Home,1209.88, 04-Aug-2015
484,Revenue,CCHD,Bed Purchasing - South,Permanent Nursing,Fairview Court,1655.12, 04-Aug-2015
485,Revenue,CCHD,Bed Purchasing - South,Permanent Nursing,Fairview Court,1786.36, 04-Aug-2015
486,Revenue,CCHD,Bed Purchasing - South,Permanent Nursing,Fairview Court,2019.04, 04-Aug-2015
487,Revenue,CCHD,Bed Purchasing - South,Permanent Residential,Fairview House,868.8, 04-Aug-2015
488,Revenue,CCHD,Bed Purchasing - South,Permanent Residential,Fairview House,1270.8, 04-Aug-2015
489,Revenue,CCHD,Bed Purchasing - South,Permanent Residential,Fairview House,1270.8, 04-Aug-2015
490,Revenue,CCHD,Bed Purchasing - South,Permanent Residential,Fairview House,1210.28, 04-Aug-2015
491,Revenue,CCHD,Bed Purchasing - South,Permanent Residential,Fairview House,1134.96, 04-Aug-2015
492,Revenue,CCHD,Bed Purchasing - South,Permanent Residential,Fairview House,1044, 04-Aug-2015
493,Revenue,CCHD,Bed Purchasing - South,Permanent Residential,Fairview House,1455.56, 04-Aug-2015
494,Revenue,CCHD,Bed Purchasing - South,Permanent Residential,Freeways Trust Ltd,3375.88, 04-Aug-2015
495,Revenue,CCHD,Bed Purchasing - South,Permanent Residential,Freeways Trust Ltd,2426.72, 04-Aug-2015
496,Revenue,CCHD,Bed Purchasing - South,Permanent Nursing,Fshc  1St Floor,900.32, 04-Aug-2015
497,Revenue,CCHD,Bed Purchasing - South,Permanent Nursing,Fshc  1St Floor,1398.8, 04-Aug-2015
498,Revenue,CCHD,Bed Purchasing - South,Permanent Residential,Fshc  1St Floor,1770.04, 04-Aug-2015
499,Revenue,CCHD,Bed Purchasing - South,Permanent Residential,Fshc  1St Floor,1270.8, 04-Aug-2015
500,Revenue,CCHD,Bed Purchasing - South,Permanent Nursing,Fshc  1St Floor,1013.96, 04-Aug-2015
501,Revenue,CCHD,Bed Purchasing - South,Respite Planned - Nursing,Fshc  1St Floor,748, 04-Aug-2015
502,Revenue,CCHD,Bed Purchasing - South,Permanent Nursing,Fshc  1St Floor,1398.8, 04-Aug-2015
503,Revenue,CCHD,Bed Purchasing - South,Permanent Residential,Fshc  1St Floor,1233.08, 04-Aug-2015
504,Revenue,CCHD,Bed Purchasing - South,Permanent Nursing,Fshc  1St Floor,1398.8, 04-Aug-2015
505,Revenue,CCHD,Bed Purchasing - South,Permanent Nursing,Fshc  1St Floor,999.14, 04-Aug-2015
506,Revenue,CCHD,Bed Purchasing - South,Permanent Nursing,Fshc  1St Floor,1292, 04-Aug-2015
507,Revenue,CCHD,Bed Purchasing - South,Permanent Nursing,Fshc  1St Floor,962.96, 04-Aug-2015
508,Revenue,CCHD,Bed Purchasing - South,Permanent Nursing,Fshc  1St Floor,1142.76, 04-Aug-2015
509,Revenue,CCHD,Bed Purchasing - South,Permanent Nursing,Fshc  1St Floor,1398.8, 04-Aug-2015
510,Revenue,CCHD,Bed Purchasing - South,Permanent Nursing,Fshc  1St Floor,1354.2, 04-Aug-2015
511,Revenue,CCHD,Bed Purchasing - South,Permanent Nursing,Fshc  1St Floor,1233.64, 04-Aug-2015
512,Revenue,CCHD,Bed Purchasing - South,Permanent Residential,Fshc  1St Floor,1148.76, 04-Aug-2015
513,Revenue,CCHD,Bed Purchasing - South,Respite Planned - Nursing,Fshc  1St Floor,1632, 04-Aug-2015
514,Revenue,CCHD,Bed Purchasing - South,Permanent Residential,Fshc  1St Floor,1972, 04-Aug-2015
515,Revenue,CCHD,Bed Purchasing - South,Permanent Nursing,Fshc  1St Floor,1398.8, 04-Aug-2015
516,Revenue,CCHD,Bed Purchasing - South,Permanent Residential,Fshc  1St Floor,1213.8, 04-Aug-2015
517,Revenue,CCHD,Bed Purchasing - South,Permanent Nursing,Fshc  1St Floor,1374.8, 04-Aug-2015
518,Revenue,CCHD,Bed Purchasing - South,Permanent Nursing,Fshc  1St Floor,1240.84, 04-Aug-2015
519,Revenue,CCHD,Bed Purchasing - South,Permanent Residential,Fshc  1St Floor,1270.8, 04-Aug-2015
520,Revenue,CCHD,Bed Purchasing - South,Permanent Nursing,Fshc  1St Floor,1240.16, 04-Aug-2015
521,Revenue,CCHD,Bed Purchasing - South,Permanent Nursing,Fshc  1St Floor,1402.52, 04-Aug-2015
522,Revenue,CCHD,Bed Purchasing - South,Permanent Residential,Fshc  1St Floor,1386.96, 04-Aug-2015
523,Revenue,CCHD,Bed Purchasing - South,Respite Planned - Nursing,Fshc  1St Floor,680, 04-Aug-2015
524,Revenue,CCHD,Bed Purchasing - South,Permanent Nursing,Fshc  1St Floor,1267.2, 04-Aug-2015
525,Revenue,CCHD,Bed Purchasing - South,Permanent Nursing,Fshc  1St Floor,1352.12, 04-Aug-2015
526,Revenue,CCHD,Bed Purchasing - South,Permanent Nursing,Fshc  1St Floor,1681.08, 04-Aug-2015
527,Revenue,CCHD,Bed Purchasing - South,Permanent Nursing,Fshc  1St Floor,1132.64, 04-Aug-2015
528,Revenue,CCHD,Bed Purchasing - South,Permanent Nursing,Fshc  1St Floor,1255.12, 04-Aug-2015
529,Revenue,CCHD,Bed Purchasing - South,Permanent Residential,Fshc  1St Floor,2729.36, 04-Aug-2015
530,Revenue,CCHD,Bed Purchasing - South,Permanent Nursing,Fshc  1St Floor,1137.72, 04-Aug-2015
531,Revenue,CCHD,Bed Purchasing - South,Permanent Nursing,Fshc  1St Floor,904.24, 04-Aug-2015
532,Revenue,CCHD,Bed Purchasing - South,Permanent Nursing,Fshc  1St Floor,1221.4, 04-Aug-2015
533,Revenue,CCHD,Bed Purchasing - South,Permanent Residential,Fshc  1St Floor,1368.08, 04-Aug-2015
534,Revenue,CCHD,Bed Purchasing - South,Permanent Residential,Glasallt Fawr,4666.48, 04-Aug-2015
535,Revenue,CCHD,Bed Purchasing - South,Permanent Residential,Glebe House Nursing Home,2073.76, 04-Aug-2015
536,Revenue,CCHD,Bed Purchasing - South,Permanent Residential,Gordena Care Home,2137.52, 04-Aug-2015
537,Revenue,CCHD,Bed Purchasing - South,Permanent Residential,Gordena Care Home,4847.64, 04-Aug-2015
538,Revenue,CCHD,Bed Purchasing - South,Permanent Residential,Gordena Care Home,3189.84, 04-Aug-2015
539,Revenue,CCHD,Bed Purchasing - South,Permanent Residential,Gordena Care Home,2996.16, 04-Aug-2015
540,Revenue,CCHD,Bed Purchasing - South,Permanent Residential,Gordena Care Home,1950.08, 04-Aug-2015
541,Revenue,CCHD,Bed Purchasing - South,Permanent Residential,Gordena Care Limited,4264.6, 04-Aug-2015
542,Revenue,CCHD,Bed Purchasing - South,Permanent Nursing,Gracefields Nursing Home,1712.72, 04-Aug-2015
543,Revenue,CCHD,Bed Purchasing - South,Permanent Nursing,Gracefields Nursing Home,2269.68, 04-Aug-2015
544,Revenue,CCHD,Bed Purchasing - South,Permanent Nursing,Gracefields Nursing Home,2658.88, 04-Aug-2015
545,Revenue,CCHD,Bed Purchasing - South,Permanent Nursing,Gracefields Nursing Home,1601.96, 04-Aug-2015
546,Revenue,CCHD,Bed Purchasing - South,Permanent Residential,Grove Care,1883.4, 04-Aug-2015
547,Revenue,CCHD,Bed Purchasing - South,Permanent Residential,Gwendoline House,955.96, 04-Aug-2015
548,Revenue,CCHD,Bed Purchasing - South,Permanent Residential,Gwendoline House,1159.8, 04-Aug-2015
549,Revenue,CCHD,Bed Purchasing - South,Permanent Residential,Gwendoline House,1526.36, 04-Aug-2015
550,Revenue,CCHD,Bed Purchasing - South,Permanent Residential,Harefield Hall,1219.24, 04-Aug-2015
551,Revenue,CCHD,Bed Purchasing - South,Permanent Residential,Harefield Hall,1150.52, 04-Aug-2015
552,Revenue,CCHD,Bed Purchasing - South,Permanent Residential,Harefield Hall,1039.04, 04-Aug-2015
553,Revenue,CCHD,Bed Purchasing - South,Permanent Residential,Harefield Hall,1313.12, 04-Aug-2015
554,Revenue,CCHD,Bed Purchasing - South,Permanent Residential,Harefield Hall,1532.96, 04-Aug-2015
555,Revenue,CCHD,Bed Purchasing - South,Permanent Residential,Harefield Hall,1254.36, 04-Aug-2015
556,Revenue,CCHD,Bed Purchasing - South,Permanent Residential,Heathwood Rest Home,1116.84, 04-Aug-2015
557,Revenue,CCHD,Bed Purchasing - South,Permanent Residential,Holmleigh Care Homes Ltd,5079.96, 04-Aug-2015
558,Revenue,CCHD,Bed Purchasing - South,Permanent Residential,Home Farm Trust Ltd  5-6 Brook Office Pa,5174.76, 04-Aug-2015
559,Revenue,CCHD,Bed Purchasing - South,Permanent Residential,Home Farm Trust Ltd  5-6 Brook Office Pa,5611.24, 04-Aug-2015
560,Revenue,CCHD,Bed Purchasing - South,Permanent Nursing,Horfield Care Limited,1731.75, 27-Aug-2015
561,Revenue,CCHD,Bed Purchasing - South,Permanent Nursing,Horfield Care Limited,1364.4, 27-Aug-2015
562,Revenue,CCHD,Bed Purchasing - South,Permanent Nursing,Horfield Care Limited,5025.83, 27-Aug-2015
563,Revenue,CCHD,Bed Purchasing - South,Permanent Residential,Julia Simone- Supp. Ind.,4004.36, 04-Aug-2015
564,Revenue,CCHD,Bed Purchasing - South,Permanent Residential,Karenza Ltd,1936.68, 04-Aug-2015
565,Revenue,CCHD,Bed Purchasing - South,Permanent Residential,Kenver House Residential Home,1539.2, 04-Aug-2015
566,Revenue,CCHD,Bed Purchasing - South,Permanent Residential,Kenver House Residential Home,1153, 04-Aug-2015
567,Revenue,CCHD,Bed Purchasing - South,Permanent Residential,Kenver House Residential Home,1388.84, 04-Aug-2015
568,Revenue,CCHD,Bed Purchasing - South,Permanent Residential,Kenver House Residential Home,1712.56, 04-Aug-2015
569,Revenue,CCHD,Bed Purchasing - South,Permanent Residential,Kenver House Residential Home,1442.8, 04-Aug-2015
570,Revenue,CCHD,Bed Purchasing - South,Permanent Residential,Kenver House Residential Home,1294.36, 04-Aug-2015
571,Revenue,CCHD,Bed Purchasing - South,Permanent Residential,Kenver House Residential Home,2190.28, 04-Aug-2015
572,Revenue,CCHD,Bed Purchasing - South,Permanent Residential,Kenver House Residential Home,11802.03, 04-Aug-2015
573,Revenue,CCHD,Bed Purchasing - South,Permanent Residential,Kenver House Residential Home,1277.2, 04-Aug-2015
574,Revenue,CCHD,Bed Purchasing - South,Permanent Residential,Leonard Cheshire  National Account Centr,3376.16, 04-Aug-2015
575,Revenue,CCHD,Bed Purchasing - South,Permanent Residential,Leonard Cheshire  National Account Centr,4544.12, 04-Aug-2015
576,Revenue,CCHD,Bed Purchasing - South,Permanent Nursing,Leonard Cheshire  National Account Centr,2940.92, 04-Aug-2015
577,Revenue,CCHD,Bed Purchasing - South,Permanent Residential,Little Croft,1587.68, 04-Aug-2015
578,Revenue,CCHD,Bed Purchasing - South,Permanent Residential,Little Croft,908.6, 04-Aug-2015
579,Revenue,CCHD,Bed Purchasing - South,Permanent Residential,Little Croft,1241.84, 04-Aug-2015
580,Revenue,CCHD,Bed Purchasing - South,Permanent Residential,Little Croft,1422.92, 04-Aug-2015
581,Revenue,CCHD,Bed Purchasing - South,Permanent Residential,Manor Cottage,1865.68, 04-Aug-2015
582,Revenue,CCHD,Bed Purchasing - South,Permanent Residential,Manor Cottage,1464.2, 04-Aug-2015
583,Revenue,CCHD,Bed Purchasing - South,Permanent Residential,Manor Cottage,1516.4, 04-Aug-2015
584,Revenue,CCHD,Bed Purchasing - South,Permanent Residential,Marsden Healthcare Ltd,1276.04, 04-Aug-2015
585,Revenue,CCHD,Bed Purchasing - South,Permanent Residential,Marsden Healthcare Ltd,3278.84, 04-Aug-2015
586,Revenue,CCHD,Bed Purchasing - South,Permanent Residential,Marsden Healthcare Ltd,1538.08, 04-Aug-2015
587,Revenue,CCHD,Bed Purchasing - South,Permanent Nursing,Meadow Care Home,1552.32, 04-Aug-2015
588,Revenue,CCHD,Bed Purchasing - South,Permanent Residential,Mencap,2277.84, 04-Aug-2015
589,Revenue,CCHD,Bed Purchasing - South,Permanent Residential,Milestones - Unit 10,4921.56, 04-Aug-2015
590,Revenue,CCHD,Bed Purchasing - South,Permanent Residential,Milestones - Unit 10,5502.32, 04-Aug-2015
591,Revenue,CCHD,Bed Purchasing - South,Permanent Nursing,Milestones - Unit 10,2763.44, 04-Aug-2015
592,Revenue,CCHD,Bed Purchasing - South,Permanent Nursing,Milestones - Unit 10,1286.44, 04-Aug-2015
593,Revenue,CCHD,Bed Purchasing - South,Permanent Residential,Milestones - Unit 10,3640.84, 04-Aug-2015
594,Revenue,CCHD,Bed Purchasing - South,Permanent Residential,Milestones - Unit 10,4165.64, 04-Aug-2015
595,Revenue,CCHD,Bed Purchasing - South,Permanent Residential,Milestones - Unit 10,1317.44, 04-Aug-2015
596,Revenue,CCHD,Bed Purchasing - South,Permanent Residential,Milestones - Unit 10,5042.32, 04-Aug-2015
597,Revenue,CCHD,Bed Purchasing - South,Permanent Residential,Milestones - Unit 10,5595.76, 04-Aug-2015
598,Revenue,CCHD,Bed Purchasing - South,Permanent Residential,Milestones - Unit 10,5175.8, 04-Aug-2015
599,Revenue,CCHD,Bed Purchasing - South,Permanent Residential,Milestones - Unit 10,4378.84, 04-Aug-2015
600,Revenue,CCHD,Bed Purchasing - South,Permanent Residential,Milestones - Unit 10,3245.72, 04-Aug-2015
601,Revenue,CCHD,Bed Purchasing - South,Permanent Residential,Milestones - Unit 10,866.8, 04-Aug-2015
602,Revenue,CCHD,Bed Purchasing - South,Permanent Residential,Milestones - Unit 10,4318.72, 04-Aug-2015
603,Revenue,CCHD,Bed Purchasing - South,Permanent Nursing,Milestones - Unit 10,3319.8, 04-Aug-2015
604,Revenue,CCHD,Bed Purchasing - South,Permanent Residential,Milestones - Unit 10,3285.36, 04-Aug-2015
605,Revenue,CCHD,Bed Purchasing - South,Permanent Residential,Milestones - Unit 10,5984.52, 04-Aug-2015
606,Revenue,CCHD,Bed Purchasing - South,Permanent Residential,Milestones - Unit 10,1239.36, 04-Aug-2015
607,Revenue,CCHD,Bed Purchasing - South,Permanent Residential,Milestones - Unit 10,5319.52, 04-Aug-2015
608,Revenue,CCHD,Bed Purchasing - South,Permanent Nursing,Milestones - Unit 10,3399.64, 04-Aug-2015
609,Revenue,CCHD,Bed Purchasing - South,Permanent Nursing,Milestones - Unit 10,9429.95, 04-Aug-2015
610,Revenue,CCHD,Bed Purchasing - South,Permanent Nursing,Milestones - Unit 10,2808.92, 04-Aug-2015
611,Revenue,CCHD,Bed Purchasing - South,Permanent Residential,Norwood   Broadway House,5027.16, 04-Aug-2015
612,Revenue,CCHD,Bed Purchasing - South,Permanent Residential,Notaro Homes Ltd  Queensmead Court,1905.16, 04-Aug-2015
613,Revenue,CCHD,Bed Purchasing - South,Permanent Residential,Nova House Care Home,954.84, 04-Aug-2015
614,Revenue,CCHD,Bed Purchasing - South,Permanent Residential,Osprey Court,7835, 04-Aug-2015
615,Revenue,CCHD,Bed Purchasing - South,Permanent Residential,Park Farm House,1800.16, 04-Aug-2015
616,Revenue,CCHD,Bed Purchasing - South,Permanent Residential,Park Farm House,1627.56, 04-Aug-2015
617,Revenue,CCHD,Bed Purchasing - South,Permanent Residential,Park Hall,5617.76, 04-Aug-2015
618,Revenue,CCHD,Bed Purchasing - South,Permanent Residential,Park Hall,5069.64, 04-Aug-2015
619,Revenue,CCHD,Bed Purchasing - South,Permanent Residential,Park Hall,2579.24, 04-Aug-2015
620,Revenue,CCHD,Bed Purchasing - South,Permanent Residential,Park Hall,5045.36, 04-Aug-2015
621,Revenue,CCHD,Bed Purchasing - South,Permanent Residential,Park Hall,10884.24, 04-Aug-2015
622,Revenue,CCHD,Bed Purchasing - South,Permanent Residential,Penleigh House Care Home,4610.8, 04-Aug-2015
623,Revenue,CCHD,Bed Purchasing - South,Permanent Residential,Penleigh House Care Home,6501.16, 04-Aug-2015
624,Revenue,CCHD,Bed Purchasing - South,Permanent Residential,Penleigh House Care Home,4361.48, 04-Aug-2015
625,Revenue,CCHD,Bed Purchasing - South,Permanent Residential,Penleigh House Care Home,5020.84, 04-Aug-2015
626,Revenue,CCHD,Bed Purchasing - South,Permanent Nursing,Regent House,2121.6, 04-Aug-2015
627,Revenue,CCHD,Bed Purchasing - South,Permanent Nursing,Regent House,2412.72, 04-Aug-2015
628,Revenue,CCHD,Bed Purchasing - South,Permanent Nursing,Regent House,1684.88, 04-Aug-2015
629,Revenue,CCHD,Bed Purchasing - South,Permanent Nursing,Regent House,1992.36, 04-Aug-2015
630,Revenue,CCHD,Bed Purchasing - South,Permanent Nursing,Regent House,7645.65, 04-Aug-2015
631,Revenue,CCHD,Bed Purchasing - South,Permanent Nursing,Regent House,2038.84, 04-Aug-2015
632,Revenue,CCHD,Bed Purchasing - South,Permanent Nursing,Regent House,1695.8, 04-Aug-2015
633,Revenue,CCHD,Bed Purchasing - South,Permanent Nursing,Regent House,883.59, 04-Aug-2015
634,Revenue,CCHD,Bed Purchasing - South,Permanent Nursing,Regent House,757.15, 04-Aug-2015
635,Revenue,CCHD,Bed Purchasing - South,Permanent Nursing,Regent House,1687.76, 04-Aug-2015
636,Revenue,CCHD,Bed Purchasing - South,Permanent Nursing,Regent House,1202.68, 04-Aug-2015
637,Revenue,CCHD,Bed Purchasing - South,Permanent Nursing,Regent House,2374.16, 04-Aug-2015
638,Revenue,CCHD,Bed Purchasing - South,Permanent Nursing,Regent House,2056.28, 04-Aug-2015
639,Revenue,CCHD,Bed Purchasing - South,Permanent Nursing,Regent House,1321.89, 04-Aug-2015
640,Revenue,CCHD,Bed Purchasing - South,Permanent Residential,Ridgeway House,3540.96, 04-Aug-2015
641,Revenue,CCHD,Bed Purchasing - South,Permanent Residential,Riverside House,3651.08, 04-Aug-2015
642,Revenue,CCHD,Bed Purchasing - South,Permanent Residential,Rockleaze,1438.16, 04-Aug-2015
643,Revenue,CCHD,Bed Purchasing - South,Permanent Residential,Rockleaze,2437, 04-Aug-2015
644,Revenue,CCHD,Bed Purchasing - South,Permanent Residential,Rockleaze,1438.16, 04-Aug-2015
645,Revenue,CCHD,Bed Purchasing - South,Permanent Residential,Rosedale House,1527.28, 04-Aug-2015
646,Revenue,CCHD,Bed Purchasing - South,Permanent Residential,Rosewood Lodge & Brook House,4620.12, 04-Aug-2015
647,Revenue,CCHD,Bed Purchasing - South,Permanent Residential,Salters Hill Barn,2027.52, 04-Aug-2015
648,Revenue,CCHD,Bed Purchasing - South,Permanent Residential,Scope   Accounts Dept,3107.4, 04-Aug-2015
649,Revenue,CCHD,Bed Purchasing - South,Permanent Residential,Shaldon House (Positive Care Ltd),2252.04, 04-Aug-2015
650,Revenue,CCHD,Bed Purchasing - South,Permanent Nursing,Shaw Healthcare Ltd,10251.83, 04-Aug-2015
651,Revenue,CCHD,Bed Purchasing - South,Permanent Nursing,Shaw Healthcare Ltd,2110.72, 04-Aug-2015
652,Revenue,CCHD,Bed Purchasing - South,Permanent Nursing,Shaw Healthcare Ltd,2100.88, 04-Aug-2015
653,Revenue,CCHD,Bed Purchasing - South,Permanent Residential,Shaw Healthcare Ltd,10013.56, 04-Aug-2015
654,Revenue,CCHD,Bed Purchasing - South,Permanent Residential,Shaw Healthcare Ltd,4001.68, 04-Aug-2015
655,Revenue,CCHD,Bed Purchasing - South,Permanent Residential,St Brigas,2036.64, 04-Aug-2015
656,Revenue,CCHD,Bed Purchasing - South,Permanent Residential,St Brigas,3053.76, 04-Aug-2015
657,Revenue,CCHD,Bed Purchasing - South,Permanent Residential,St Brigas,2056.44, 04-Aug-2015
658,Revenue,CCHD,Bed Purchasing - South,Permanent Nursing,St George Nursing Home,1330.8, 04-Aug-2015
659,Revenue,CCHD,Bed Purchasing - South,Permanent Nursing,Stanley House,7456.12, 04-Aug-2015
660,Revenue,CCHD,Bed Purchasing - South,Permanent Residential,Stepping Stones Re-Sett. Unit,7679.12, 04-Aug-2015
661,Revenue,CCHD,Bed Purchasing - South,Permanent Residential,The Gables Residential Home,1045.8, 04-Aug-2015
662,Revenue,CCHD,Bed Purchasing - South,Permanent Residential,The Garden House,755.44, 04-Aug-2015
663,Revenue,CCHD,Bed Purchasing - South,Permanent Residential,The Garden House,1956.6, 04-Aug-2015
664,Revenue,CCHD,Bed Purchasing - South,Permanent Residential,The Garden House,1202.52, 04-Aug-2015
665,Revenue,CCHD,Bed Purchasing - South,Permanent Residential,The Grove,1714.64, 04-Aug-2015
666,Revenue,CCHD,Bed Purchasing - South,Permanent Nursing,The Heathers,1281.64, 04-Aug-2015
667,Revenue,CCHD,Bed Purchasing - South,Permanent Nursing,The Heathers,1330.8, 04-Aug-2015
668,Revenue,CCHD,Bed Purchasing - South,Permanent Residential,The Manor House,3296.88, 04-Aug-2015
669,Revenue,CCHD,Bed Purchasing - South,Permanent Residential,The Manor House,3054.76, 04-Aug-2015
670,Revenue,CCHD,Bed Purchasing - South,Respite Planned - Residential,The Manor House,3389.16, 04-Aug-2015
671,Revenue,CCHD,Bed Purchasing - South,Respite Planned - Residential,The Manor House,677.98, 04-Aug-2015
672,Revenue,CCHD,Bed Purchasing - South,Respite Planned - Residential,The Manor House,676.28, 04-Aug-2015
673,Revenue,CCHD,Bed Purchasing - South,Respite Planned - Residential,The Manor House,507.21, 04-Aug-2015
674,Revenue,CCHD,Bed Purchasing - South,Permanent Residential,The Manor House,5021.72, 04-Aug-2015
675,Revenue,CCHD,Bed Purchasing - South,Permanent Residential,The Manor House,17801.85, 04-Aug-2015
676,Revenue,CCHD,Bed Purchasing - South,Permanent Residential,The Manor House,4747.16, 04-Aug-2015
677,Revenue,CCHD,Bed Purchasing - South,Permanent Residential,The Manor House,4031.2, 04-Aug-2015
678,Revenue,CCHD,Bed Purchasing - South,Permanent Residential,The Manor House,4893, 04-Aug-2015
679,Revenue,CCHD,Bed Purchasing - South,Permanent Residential,The Manor House,3422.52, 04-Aug-2015
680,Revenue,CCHD,Bed Purchasing - South,Permanent Residential,The Manor House,6149.6, 04-Aug-2015
681,Revenue,CCHD,Bed Purchasing - South,Permanent Residential,The Manor House,12508.2, 04-Aug-2015
682,Revenue,CCHD,Bed Purchasing - South,Permanent Residential,The Manor House,3335.52, 04-Aug-2015
683,Revenue,CCHD,Bed Purchasing - South,Permanent Residential,The Manor House,13011.6, 04-Aug-2015
684,Revenue,CCHD,Bed Purchasing - South,Permanent Residential,The Manor House,3469.76, 04-Aug-2015
685,Revenue,CCHD,Bed Purchasing - South,Permanent Residential,The Manor House,3302.8, 04-Aug-2015
686,Revenue,CCHD,Bed Purchasing - South,Permanent Residential,The Manor House,10837.2, 04-Aug-2015
687,Revenue,CCHD,Bed Purchasing - South,Permanent Residential,The Manor House,4461.48, 04-Aug-2015
688,Revenue,CCHD,Bed Purchasing - South,Permanent Residential,The Manor House,4416.68, 04-Aug-2015
689,Revenue,CCHD,Bed Purchasing - South,Permanent Residential,The Manor House,3315.8, 04-Aug-2015
690,Revenue,CCHD,Bed Purchasing - South,Permanent Residential,The Manor House,2740.16, 04-Aug-2015
691,Revenue,CCHD,Bed Purchasing - South,Permanent Residential,The Manor House,3295.56, 04-Aug-2015
692,Revenue,CCHD,Bed Purchasing - South,Permanent Residential,The Manor House,4823.32, 04-Aug-2015
693,Revenue,CCHD,Bed Purchasing - South,Permanent Residential,The Worthies,1442.8, 04-Aug-2015
694,Revenue,CCHD,Bed Purchasing - South,Permanent Residential,Tracs Group Ltd,6604.2, 04-Aug-2015
695,Revenue,CCHD,Bed Purchasing - South,Permanent Residential,Victoria Court,11596.52, 04-Aug-2015
696,Revenue,CCHD,Bed Purchasing - South,Permanent Residential,Visions,3640.36, 04-Aug-2015
697,Revenue,CCHD,Bed Purchasing - South,Permanent Residential,Voyage Care,3075.64, 04-Aug-2015
698,Revenue,CCHD,Bed Purchasing - South,Permanent Residential,Voyage Care,7145.84, 04-Aug-2015
699,Revenue,CCHD,Bed Purchasing - South,Permanent Residential,Voyage Care,5760.08, 04-Aug-2015
700,Revenue,CCHD,Bed Purchasing - South,Permanent Residential,Voyage Care,5398.8, 04-Aug-2015
701,Revenue,CCHD,Bed Purchasing - South,Permanent Residential,Voyage Care,6354.08, 04-Aug-2015
702,Revenue,CCHD,Bed Purchasing - South,Permanent Residential,Voyage Care,6312.2, 04-Aug-2015
703,Revenue,CCHD,Bed Purchasing - South,Permanent Residential,Voyage Care,5885.6, 04-Aug-2015
704,Revenue,CCHD,Bed Purchasing - South,Permanent Residential,Voyage Care,5326.76, 04-Aug-2015
705,Revenue,CCHD,Bed Purchasing - South,Permanent Residential,Wayside Residential Care Home,1046.68, 04-Aug-2015
706,Revenue,CCHD,Bed Purchasing - South,Permanent Residential,Wayside Residential Care Home,1518.88, 04-Aug-2015
707,Revenue,CCHD,Bed Purchasing - South,Permanent Residential,Wayside Residential Care Home,5605.02, 04-Aug-2015
708,Revenue,CCHD,Bed Purchasing - South,Permanent Residential,Wayside Residential Care Home,1634.8, 04-Aug-2015
709,Revenue,CCHD,Bed Purchasing - South,Permanent Residential,Wayside Residential Care Home,1195, 04-Aug-2015
710,Revenue,CCHD,Bed Purchasing - South,Permanent Nursing,Wayside Residential Care Home,1290.08, 04-Aug-2015
711,Revenue,CCHD,Bed Purchasing - South,Permanent Residential,Wayside Residential Care Home,1183.2, 04-Aug-2015
712,Revenue,CCHD,Bed Purchasing - South,Permanent Residential,Willows,1558.28, 04-Aug-2015
713,Revenue,CCHD,Bed Purchasing - Southmead Hospital,Permanent Nursing,Bayview Nursing & Residential Home,1494.36, 04-Aug-2015
714,Revenue,CCHD,Bed Purchasing - Southmead Hospital,Permanent Residential,Beaufort House,1270.48, 04-Aug-2015
715,Revenue,CCHD,Bed Purchasing - Southmead Hospital,Permanent Residential,Beaufort House,1543.28, 04-Aug-2015
716,Revenue,CCHD,Bed Purchasing - Southmead Hospital,Permanent Nursing,Beech House,2221.52, 04-Aug-2015
717,Revenue,CCHD,Bed Purchasing - Southmead Hospital,Permanent Nursing,Blossom Field,2586.92, 04-Aug-2015
718,Revenue,CCHD,Bed Purchasing - Southmead Hospital,Permanent Nursing,Blossom Fields,2111.72, 27-Aug-2015
719,Revenue,CCHD,Bed Purchasing - Southmead Hospital,Permanent Nursing,Brandon Trust,17261.55, 04-Aug-2015
720,Revenue,CCHD,Bed Purchasing - Southmead Hospital,Permanent Nursing,Brandon Trust,4603.08, 04-Aug-2015
721,Revenue,CCHD,Bed Purchasing - Southmead Hospital,Permanent Nursing,Brunel Care  Saffron Gardens,1653.8, 04-Aug-2015
722,Revenue,CCHD,Bed Purchasing - Southmead Hospital,Permanent Nursing,Brunel Care  Saffron Gardens,1079.08, 04-Aug-2015
723,Revenue,CCHD,Bed Purchasing - Southmead Hospital,Permanent Nursing,Brunel Care  Saffron Gardens,1166.8, 04-Aug-2015
724,Revenue,CCHD,Bed Purchasing - Southmead Hospital,Permanent Nursing,Brunel Care  Saffron Gardens,1409.28, 04-Aug-2015
725,Revenue,CCHD,Bed Purchasing - Southmead Hospital,Permanent Nursing,Brunelcare,2253.74, 19-Aug-2015
726,Revenue,CCHD,Bed Purchasing - Southmead Hospital,Permanent Nursing,Brunelcare,2498.2, 19-Aug-2015
727,Revenue,CCHD,Bed Purchasing - Southmead Hospital,Permanent Nursing,Brunelcare,1435.39, 19-Aug-2015
728,Revenue,CCHD,Bed Purchasing - Southmead Hospital,Permanent Nursing,Brunelcare,2461.13, 19-Aug-2015
729,Revenue,CCHD,Bed Purchasing - Southmead Hospital,Permanent Nursing,Brunelcare,2400.42, 19-Aug-2015
730,Revenue,CCHD,Bed Purchasing - Southmead Hospital,Permanent Nursing,Brunelcare,2576.1, 19-Aug-2015
731,Revenue,CCHD,Bed Purchasing - Southmead Hospital,Permanent Nursing,Brunelcare,2465.25, 19-Aug-2015
732,Revenue,CCHD,Bed Purchasing - Southmead Hospital,Permanent Nursing,Bupa Care Services  Bridge House,1924.68, 04-Aug-2015
733,Revenue,CCHD,Bed Purchasing - Southmead Hospital,Permanent Nursing,Bupa Care Services  Bridge House,1696.32, 04-Aug-2015
734,Revenue,CCHD,Bed Purchasing - Southmead Hospital,Permanent Nursing,Cholwell House Nursing Home Ltd,1989.75, 04-Aug-2015
735,Revenue,CCHD,Bed Purchasing - Southmead Hospital,Permanent Nursing,Churchill Property Services,1698.04, 04-Aug-2015
736,Revenue,CCHD,Bed Purchasing - Southmead Hospital,Permanent Residential,Cleeve Lodge,1475.8, 04-Aug-2015
737,Revenue,CCHD,Bed Purchasing - Southmead Hospital,Permanent Residential,Coombs Wood House,968.8, 04-Aug-2015
738,Revenue,CCHD,Bed Purchasing - Southmead Hospital,Permanent Residential,Edgecumbe Lodge,1270.8, 04-Aug-2015
739,Revenue,CCHD,Bed Purchasing - Southmead Hospital,Permanent Residential,Edgecumbe Lodge,1617.48, 04-Aug-2015
740,Revenue,CCHD,Bed Purchasing - Southmead Hospital,Permanent Residential,Edgecumbe Lodge,1546.32, 04-Aug-2015
741,Revenue,CCHD,Bed Purchasing - Southmead Hospital,Permanent Nursing,Fairview Court,1896.04, 04-Aug-2015
742,Revenue,CCHD,Bed Purchasing - Southmead Hospital,Permanent Nursing,Fairview Court,3013.6, 04-Aug-2015
743,Revenue,CCHD,Bed Purchasing - Southmead Hospital,Permanent Nursing,Fairview Court,1901.48, 04-Aug-2015
744,Revenue,CCHD,Bed Purchasing - Southmead Hospital,Permanent Residential,Fairview House,1043.16, 04-Aug-2015
745,Revenue,CCHD,Bed Purchasing - Southmead Hospital,Permanent Residential,Fairview House,1270.8, 04-Aug-2015
746,Revenue,CCHD,Bed Purchasing - Southmead Hospital,Permanent Residential,Fairview House,1084.4, 04-Aug-2015
747,Revenue,CCHD,Bed Purchasing - Southmead Hospital,Permanent Residential,Fairview House,1407.12, 04-Aug-2015
748,Revenue,CCHD,Bed Purchasing - Southmead Hospital,Permanent Residential,Faith House,1252.12, 04-Aug-2015
749,Revenue,CCHD,Bed Purchasing - Southmead Hospital,Respite Planned - Residential,Field House Care Home,888, 04-Aug-2015
750,Revenue,CCHD,Bed Purchasing - Southmead Hospital,Permanent Nursing,Frenchay Park Nursing Home,3841.9, 04-Aug-2015
751,Revenue,CCHD,Bed Purchasing - Southmead Hospital,Permanent Residential,Fshc  1St Floor,896.92, 04-Aug-2015
752,Revenue,CCHD,Bed Purchasing - Southmead Hospital,Permanent Nursing,Fshc  1St Floor,1308.48, 04-Aug-2015
753,Revenue,CCHD,Bed Purchasing - Southmead Hospital,Permanent Nursing,Fshc  1St Floor,1362.8, 04-Aug-2015
754,Revenue,CCHD,Bed Purchasing - Southmead Hospital,Permanent Nursing,Fshc  1St Floor,1398.8, 04-Aug-2015
755,Revenue,CCHD,Bed Purchasing - Southmead Hospital,Permanent Nursing,Fshc  1St Floor,1398.8, 04-Aug-2015
756,Revenue,CCHD,Bed Purchasing - Southmead Hospital,Permanent Nursing,Fshc  1St Floor,1064.28, 04-Aug-2015
757,Revenue,CCHD,Bed Purchasing - Southmead Hospital,Permanent Nursing,Fshc  1St Floor,1210.12, 04-Aug-2015
758,Revenue,CCHD,Bed Purchasing - Southmead Hospital,Permanent Nursing,Fshc  1St Floor,1143.72, 04-Aug-2015
759,Revenue,CCHD,Bed Purchasing - Southmead Hospital,Permanent Nursing,Fshc  1St Floor,1398.8, 04-Aug-2015
760,Revenue,CCHD,Bed Purchasing - Southmead Hospital,Permanent Nursing,Fshc  1St Floor,1382.44, 04-Aug-2015
761,Revenue,CCHD,Bed Purchasing - Southmead Hospital,Permanent Nursing,Fshc  1St Floor,1398.8, 04-Aug-2015
762,Revenue,CCHD,Bed Purchasing - Southmead Hospital,Permanent Residential,Fshc  1St Floor,4066.95, 04-Aug-2015
763,Revenue,CCHD,Bed Purchasing - Southmead Hospital,Permanent Residential,Fshc  1St Floor,546.36, 04-Aug-2015
764,Revenue,CCHD,Bed Purchasing - Southmead Hospital,Permanent Nursing,Fshc  1St Floor,1207.68, 04-Aug-2015
765,Revenue,CCHD,Bed Purchasing - Southmead Hospital,Permanent Nursing,Fshc  1St Floor,1398.8, 04-Aug-2015
766,Revenue,CCHD,Bed Purchasing - Southmead Hospital,Permanent Nursing,Fshc  1St Floor,902.64, 04-Aug-2015
767,Revenue,CCHD,Bed Purchasing - Southmead Hospital,Permanent Nursing,Fshc  1St Floor,949.6, 04-Aug-2015
768,Revenue,CCHD,Bed Purchasing - Southmead Hospital,Permanent Nursing,Fshc  1St Floor,1622.04, 04-Aug-2015
769,Revenue,CCHD,Bed Purchasing - Southmead Hospital,Permanent Nursing,Fshc  1St Floor,1398.8, 04-Aug-2015
770,Revenue,CCHD,Bed Purchasing - Southmead Hospital,Permanent Residential,Fshc  1St Floor,1158, 04-Aug-2015
771,Revenue,CCHD,Bed Purchasing - Southmead Hospital,Permanent Nursing,Fshc  1St Floor,1112.44, 04-Aug-2015
772,Revenue,CCHD,Bed Purchasing - Southmead Hospital,Permanent Nursing,Fshc  1St Floor,1132.12, 04-Aug-2015
773,Revenue,CCHD,Bed Purchasing - Southmead Hospital,Permanent Nursing,Fshc  1St Floor,1304.24, 04-Aug-2015
774,Revenue,CCHD,Bed Purchasing - Southmead Hospital,Permanent Nursing,Fshc  1St Floor,1398.8, 04-Aug-2015
775,Revenue,CCHD,Bed Purchasing - Southmead Hospital,Permanent Nursing,Fshc  1St Floor,1130.76, 04-Aug-2015
776,Revenue,CCHD,Bed Purchasing - Southmead Hospital,Permanent Nursing,Fshc  1St Floor,1221.08, 04-Aug-2015
777,Revenue,CCHD,Bed Purchasing - Southmead Hospital,Permanent Nursing,Fshc  1St Floor,2080, 04-Aug-2015
778,Revenue,CCHD,Bed Purchasing - Southmead Hospital,Permanent Nursing,Fshc  1St Floor,1393.24, 04-Aug-2015
779,Revenue,CCHD,Bed Purchasing - Southmead Hospital,Permanent Nursing,Fshc  1St Floor,1398.8, 04-Aug-2015
780,Revenue,CCHD,Bed Purchasing - Southmead Hospital,Permanent Residential,Fshc  1St Floor,619.48, 04-Aug-2015
781,Revenue,CCHD,Bed Purchasing - Southmead Hospital,Permanent Nursing,Fshc  1St Floor,2919.91, 04-Aug-2015
782,Revenue,CCHD,Bed Purchasing - Southmead Hospital,Permanent Nursing,Fshc  1St Floor,1385.72, 04-Aug-2015
783,Revenue,CCHD,Bed Purchasing - Southmead Hospital,Permanent Nursing,Fshc  1St Floor,1197.88, 04-Aug-2015
784,Revenue,CCHD,Bed Purchasing - Southmead Hospital,Permanent Nursing,Fshc  1St Floor,1398.8, 04-Aug-2015
785,Revenue,CCHD,Bed Purchasing - Southmead Hospital,Respite Planned - Nursing,Fshc  1St Floor,1904, 04-Aug-2015
786,Revenue,CCHD,Bed Purchasing - Southmead Hospital,Permanent Nursing,Fshc  1St Floor,1344.04, 04-Aug-2015
787,Revenue,CCHD,Bed Purchasing - Southmead Hospital,Permanent Nursing,Fshc  1St Floor,999.14, 04-Aug-2015
788,Revenue,CCHD,Bed Purchasing - Southmead Hospital,Permanent Nursing,Fshc  1St Floor,1398.8, 04-Aug-2015
789,Revenue,CCHD,Bed Purchasing - Southmead Hospital,Permanent Nursing,Fshc  1St Floor,582.08, 04-Aug-2015
790,Revenue,CCHD,Bed Purchasing - Southmead Hospital,Permanent Nursing,Fshc  1St Floor,1398.8, 04-Aug-2015
791,Revenue,CCHD,Bed Purchasing - Southmead Hospital,Permanent Nursing,Fshc  1St Floor,874, 04-Aug-2015
792,Revenue,CCHD,Bed Purchasing - Southmead Hospital,Permanent Nursing,Fshc  1St Floor,1329.4, 04-Aug-2015
793,Revenue,CCHD,Bed Purchasing - Southmead Hospital,Permanent Nursing,Fshc  1St Floor,1271.84, 04-Aug-2015
794,Revenue,CCHD,Bed Purchasing - Southmead Hospital,Permanent Nursing,Fshc  1St Floor,1848.92, 04-Aug-2015
795,Revenue,CCHD,Bed Purchasing - Southmead Hospital,Permanent Residential,Fshc  1St Floor,2533.52, 04-Aug-2015
796,Revenue,CCHD,Bed Purchasing - Southmead Hospital,Permanent Nursing,Fshc  1St Floor,1335.04, 04-Aug-2015
797,Revenue,CCHD,Bed Purchasing - Southmead Hospital,Permanent Nursing,Fshc  1St Floor,1398.6, 04-Aug-2015
798,Revenue,CCHD,Bed Purchasing - Southmead Hospital,Permanent Residential,Fshc  1St Floor,1494.8, 04-Aug-2015
799,Revenue,CCHD,Bed Purchasing - Southmead Hospital,Permanent Nursing,Fshc  1St Floor,1398.8, 04-Aug-2015
800,Revenue,CCHD,Bed Purchasing - Southmead Hospital,Permanent Nursing,Fshc  1St Floor,1398.8, 04-Aug-2015
801,Revenue,CCHD,Bed Purchasing - Southmead Hospital,Permanent Nursing,Fshc  1St Floor,1304.4, 04-Aug-2015
802,Revenue,CCHD,Bed Purchasing - Southmead Hospital,Permanent Residential,Fshc  1St Floor,5500.5, 04-Aug-2015
803,Revenue,CCHD,Bed Purchasing - Southmead Hospital,Permanent Residential,Fshc  1St Floor,1466.8, 04-Aug-2015
804,Revenue,CCHD,Bed Purchasing - Southmead Hospital,Permanent Nursing,Fshc  1St Floor,1398.8, 04-Aug-2015
805,Revenue,CCHD,Bed Purchasing - Southmead Hospital,Permanent Nursing,Fshc  1St Floor,1398.8, 04-Aug-2015
806,Revenue,CCHD,Bed Purchasing - Southmead Hospital,Respite Planned - Nursing,Fshc  1St Floor,4964, 04-Aug-2015
807,Revenue,CCHD,Bed Purchasing - Southmead Hospital,Permanent Nursing,Fshc  1St Floor,1324.72, 04-Aug-2015
808,Revenue,CCHD,Bed Purchasing - Southmead Hospital,Permanent Residential,Fshc  1St Floor,1484.16, 04-Aug-2015
809,Revenue,CCHD,Bed Purchasing - Southmead Hospital,Respite Planned - Residential,Fshc  1St Floor,1776, 04-Aug-2015
810,Revenue,CCHD,Bed Purchasing - Southmead Hospital,Permanent Nursing,Fshc  1St Floor,5245.5, 04-Aug-2015
811,Revenue,CCHD,Bed Purchasing - Southmead Hospital,Permanent Nursing,Fshc  1St Floor,1586.51, 04-Aug-2015
812,Revenue,CCHD,Bed Purchasing - Southmead Hospital,Permanent Nursing,Fshc  1St Floor,1398.8, 04-Aug-2015
813,Revenue,CCHD,Bed Purchasing - Southmead Hospital,Permanent Residential,Fshc  1St Floor,1131.52, 04-Aug-2015
814,Revenue,CCHD,Bed Purchasing - Southmead Hospital,Permanent Nursing,Fshc  1St Floor,813.6, 04-Aug-2015
815,Revenue,CCHD,Bed Purchasing - Southmead Hospital,Permanent Nursing,Fshc  1St Floor,1240.64, 04-Aug-2015
816,Revenue,CCHD,Bed Purchasing - Southmead Hospital,Permanent Nursing,Fshc  1St Floor,956.72, 04-Aug-2015
817,Revenue,CCHD,Bed Purchasing - Southmead Hospital,Permanent Nursing,Fshc  1St Floor,1566.4, 04-Aug-2015
818,Revenue,CCHD,Bed Purchasing - Southmead Hospital,Permanent Nursing,Fshc  1St Floor,1382.48, 04-Aug-2015
819,Revenue,CCHD,Bed Purchasing - Southmead Hospital,Permanent Nursing,Fshc  1St Floor,1398.8, 04-Aug-2015
820,Revenue,CCHD,Bed Purchasing - Southmead Hospital,Permanent Nursing,Fshc  1St Floor,894.72, 04-Aug-2015
821,Revenue,CCHD,Bed Purchasing - Southmead Hospital,Permanent Nursing,Fshc  1St Floor,936.48, 04-Aug-2015
822,Revenue,CCHD,Bed Purchasing - Southmead Hospital,Permanent Nursing,Fshc  1St Floor,1355.76, 04-Aug-2015
823,Revenue,CCHD,Bed Purchasing - Southmead Hospital,Permanent Nursing,Fshc  1St Floor,1506.8, 04-Aug-2015
824,Revenue,CCHD,Bed Purchasing - Southmead Hospital,Permanent Nursing,Fshc  1St Floor,1574.8, 04-Aug-2015
825,Revenue,CCHD,Bed Purchasing - Southmead Hospital,Respite Planned - Nursing,Fshc  1St Floor,1442.57, 04-Aug-2015
826,Revenue,CCHD,Bed Purchasing - Southmead Hospital,Permanent Residential,Fshc  1St Floor,1250.68, 04-Aug-2015
827,Revenue,CCHD,Bed Purchasing - Southmead Hospital,Permanent Nursing,Fshc  1St Floor,2765.6, 04-Aug-2015
828,Revenue,CCHD,Bed Purchasing - Southmead Hospital,Permanent Nursing,Fshc  1St Floor,1382.8, 04-Aug-2015
829,Revenue,CCHD,Bed Purchasing - Southmead Hospital,Permanent Nursing,Fshc  1St Floor,14638.24, 04-Aug-2015
830,Revenue,CCHD,Bed Purchasing - Southmead Hospital,Permanent Nursing,Fshc  1St Floor,1382.28, 04-Aug-2015
831,Revenue,CCHD,Bed Purchasing - Southmead Hospital,Permanent Nursing,Fshc  1St Floor,1289.12, 04-Aug-2015
832,Revenue,CCHD,Bed Purchasing - Southmead Hospital,Permanent Nursing,Fshc  1St Floor,1242.28, 04-Aug-2015
833,Revenue,CCHD,Bed Purchasing - Southmead Hospital,Permanent Nursing,Fshc  1St Floor,1398.8, 04-Aug-2015
834,Revenue,CCHD,Bed Purchasing - Southmead Hospital,Permanent Nursing,Fshc  1St Floor,950.8, 04-Aug-2015
835,Revenue,CCHD,Bed Purchasing - Southmead Hospital,Permanent Nursing,Fshc  1St Floor,1101.28, 04-Aug-2015
836,Revenue,CCHD,Bed Purchasing - Southmead Hospital,Permanent Residential,Fshc  1St Floor,808.44, 04-Aug-2015
837,Revenue,CCHD,Bed Purchasing - Southmead Hospital,Permanent Nursing,Gracefields Nursing Home,2246.8, 04-Aug-2015
838,Revenue,CCHD,Bed Purchasing - Southmead Hospital,Permanent Nursing,Gracefields Nursing Home,1364.13, 04-Aug-2015
839,Revenue,CCHD,Bed Purchasing - Southmead Hospital,Permanent Nursing,Gracefields Nursing Home,1655.96, 04-Aug-2015
840,Revenue,CCHD,Bed Purchasing - Southmead Hospital,Permanent Nursing,Gracefields Nursing Home,871.28, 04-Aug-2015
841,Revenue,CCHD,Bed Purchasing - Southmead Hospital,Permanent Nursing,Gracefields Nursing Home,1586.56, 04-Aug-2015
842,Revenue,CCHD,Bed Purchasing - Southmead Hospital,Permanent Nursing,Gracefields Nursing Home,1539, 04-Aug-2015
843,Revenue,CCHD,Bed Purchasing - Southmead Hospital,Permanent Residential,Gwendoline House,1634.04, 04-Aug-2015
844,Revenue,CCHD,Bed Purchasing - Southmead Hospital,Permanent Nursing,Hc-One Ltd,1648.4, 04-Aug-2015
845,Revenue,CCHD,Bed Purchasing - Southmead Hospital,Permanent Residential,Heathwood Rest Home,1100.32, 04-Aug-2015
846,Revenue,CCHD,Bed Purchasing - Southmead Hospital,Permanent Residential,High Border Lodge,1442.4, 04-Aug-2015
847,Revenue,CCHD,Bed Purchasing - Southmead Hospital,Permanent Residential,Highfield House,2092.56, 04-Aug-2015
848,Revenue,CCHD,Bed Purchasing - Southmead Hospital,Permanent Residential,Highgate Studios,1179.08, 04-Aug-2015
849,Revenue,CCHD,Bed Purchasing - Southmead Hospital,Permanent Nursing,Horfield Care Limited,1977.93, 27-Aug-2015
850,Revenue,CCHD,Bed Purchasing - Southmead Hospital,Respite Planned - Nursing,Horfield Care Limited,665.15, 27-Aug-2015
851,Revenue,CCHD,Bed Purchasing - Southmead Hospital,Permanent Nursing,Horfield Care Limited,1476.22, 27-Aug-2015
852,Revenue,CCHD,Bed Purchasing - Southmead Hospital,Permanent Nursing,Horfield Care Limited,1847.56, 27-Aug-2015
853,Revenue,CCHD,Bed Purchasing - Southmead Hospital,Respite Planned - Nursing,Horfield Care Limited,2291.08, 27-Aug-2015
854,Revenue,CCHD,Bed Purchasing - Southmead Hospital,Permanent Residential,Kenver House Residential Home,1664.04, 04-Aug-2015
855,Revenue,CCHD,Bed Purchasing - Southmead Hospital,Permanent Residential,Kenver House Residential Home,1685.08, 04-Aug-2015
856,Revenue,CCHD,Bed Purchasing - Southmead Hospital,Respite Planned - Residential,Kenver House Residential Home,2190.28, 04-Aug-2015
857,Revenue,CCHD,Bed Purchasing - Southmead Hospital,Permanent Residential,Kenver House Residential Home,1685, 04-Aug-2015
858,Revenue,CCHD,Bed Purchasing - Southmead Hospital,Permanent Nursing,Leonard Cheshire  National Account Centr,3075.12, 04-Aug-2015
859,Revenue,CCHD,Bed Purchasing - Southmead Hospital,Permanent Residential,Little Croft,1085.24, 04-Aug-2015
860,Revenue,CCHD,Bed Purchasing - Southmead Hospital,Permanent Residential,Little Croft,1269.32, 04-Aug-2015
861,Revenue,CCHD,Bed Purchasing - Southmead Hospital,Permanent Residential,Little Croft,1278.8, 04-Aug-2015
862,Revenue,CCHD,Bed Purchasing - Southmead Hospital,Respite Planned - Residential,Little Croft,3850, 04-Aug-2015
863,Revenue,CCHD,Bed Purchasing - Southmead Hospital,Permanent Residential,Little Croft,1763.48, 04-Aug-2015
864,Revenue,CCHD,Bed Purchasing - Southmead Hospital,Permanent Residential,Little Croft,2370.32, 04-Aug-2015
865,Revenue,CCHD,Bed Purchasing - Southmead Hospital,Permanent Residential,Little Croft,1442.8, 04-Aug-2015
866,Revenue,CCHD,Bed Purchasing - Southmead Hospital,Permanent Residential,Little Croft,1442.8, 04-Aug-2015
867,Revenue,CCHD,Bed Purchasing - Southmead Hospital,Permanent Residential,Little Croft,1233.68, 04-Aug-2015
868,Revenue,CCHD,Bed Purchasing - Southmead Hospital,Respite Emergency - Residential,Little Croft,794.2, 04-Aug-2015
869,Revenue,CCHD,Bed Purchasing - Southmead Hospital,Permanent Residential,Little Croft,1270.8, 04-Aug-2015
870,Revenue,CCHD,Bed Purchasing - Southmead Hospital,Permanent Residential,Little Croft,1270.8, 04-Aug-2015
871,Revenue,CCHD,Bed Purchasing - Southmead Hospital,Permanent Nursing,Majestic 3 Limited,1004.2, 04-Aug-2015
872,Revenue,CCHD,Bed Purchasing - Southmead Hospital,Permanent Residential,Manor Cottage,1270.8, 04-Aug-2015
873,Revenue,CCHD,Bed Purchasing - Southmead Hospital,Permanent Residential,Manor Cottage,1041.92, 04-Aug-2015
874,Revenue,CCHD,Bed Purchasing - Southmead Hospital,Permanent Residential,Maria Mallabank 11 Ltd,3094.8, 04-Aug-2015
875,Revenue,CCHD,Bed Purchasing - Southmead Hospital,Permanent Nursing,Milestones - Unit 10,1368.08, 04-Aug-2015
876,Revenue,CCHD,Bed Purchasing - Southmead Hospital,Permanent Residential,Mostyn Lodge Residential Home,1143.2, 04-Aug-2015
877,Revenue,CCHD,Bed Purchasing - Southmead Hospital,Permanent Residential,Nashley House Retirement Home,1270.8, 04-Aug-2015
878,Revenue,CCHD,Bed Purchasing - Southmead Hospital,Respite Emergency - Residential,Notaro Homes Ltd  Queensmead Court,3080, 04-Aug-2015
879,Revenue,CCHD,Bed Purchasing - Southmead Hospital,Permanent Residential,Notaro Homes Ltd  Queensmead Court,1399.96, 04-Aug-2015
880,Revenue,CCHD,Bed Purchasing - Southmead Hospital,Permanent Residential,Osbourne Court,973.08, 04-Aug-2015
881,Revenue,CCHD,Bed Purchasing - Southmead Hospital,Permanent Residential,Osbourne Court,864.02, 04-Aug-2015
882,Revenue,CCHD,Bed Purchasing - Southmead Hospital,Permanent Residential,Osbourne Court,9606.07, 04-Aug-2015
883,Revenue,CCHD,Bed Purchasing - Southmead Hospital,Permanent Residential,Osbourne Court,1554.68, 04-Aug-2015
884,Revenue,CCHD,Bed Purchasing - Southmead Hospital,Permanent Nursing,Palm Court Nursing Home,1617.72, 04-Aug-2015
885,Revenue,CCHD,Bed Purchasing - Southmead Hospital,Permanent Residential,Park Farm House,2600, 04-Aug-2015
886,Revenue,CCHD,Bed Purchasing - Southmead Hospital,Permanent Nursing,Regent House,2658.8, 04-Aug-2015
887,Revenue,CCHD,Bed Purchasing - Southmead Hospital,Permanent Nursing,Regent House,2373.93, 04-Aug-2015
888,Revenue,CCHD,Bed Purchasing - Southmead Hospital,Permanent Nursing,Regent House,2007.4, 04-Aug-2015
889,Revenue,CCHD,Bed Purchasing - Southmead Hospital,Permanent Nursing,Regent House,1036.76, 04-Aug-2015
890,Revenue,CCHD,Bed Purchasing - Southmead Hospital,Permanent Nursing,Riversway Nursing Home,896, 04-Aug-2015
891,Revenue,CCHD,Bed Purchasing - Southmead Hospital,Permanent Nursing,Riversway Nursing Home,2715.32, 04-Aug-2015
892,Revenue,CCHD,Bed Purchasing - Southmead Hospital,Permanent Residential,Sanctuary Care Ltd,1924.64, 04-Aug-2015
893,Revenue,CCHD,Bed Purchasing - Southmead Hospital,Permanent Residential,Shaw Healthcare Ltd,1139.24, 04-Aug-2015
894,Revenue,CCHD,Bed Purchasing - Southmead Hospital,Permanent Nursing,St George Nursing Home,1330.8, 04-Aug-2015
895,Revenue,CCHD,Bed Purchasing - Southmead Hospital,Permanent Nursing,St George Nursing Home,1330.8, 04-Aug-2015
896,Revenue,CCHD,Bed Purchasing - Southmead Hospital,Permanent Nursing,St George Nursing Home,1311.36, 04-Aug-2015
897,Revenue,CCHD,Bed Purchasing - Southmead Hospital,Permanent Nursing,St George Nursing Home,1534.8, 04-Aug-2015
898,Revenue,CCHD,Bed Purchasing - Southmead Hospital,Permanent Nursing,St George Nursing Home,1330.8, 04-Aug-2015
899,Revenue,CCHD,Bed Purchasing - Southmead Hospital,Permanent Nursing,St George Nursing Home,1194.08, 04-Aug-2015
900,Revenue,CCHD,Bed Purchasing - Southmead Hospital,Permanent Nursing,St Teresa`S Nursing Home,2009.88, 04-Aug-2015
901,Revenue,CCHD,Bed Purchasing - Southmead Hospital,Permanent Nursing,St Teresa`S Nursing Home,646.03, 04-Aug-2015
902,Revenue,CCHD,Bed Purchasing - Southmead Hospital,Permanent Nursing,St Teresa`S Nursing Home,919.72, 04-Aug-2015
903,Revenue,CCHD,Bed Purchasing - Southmead Hospital,Permanent Residential,The Beeches,1563.64, 04-Aug-2015
904,Revenue,CCHD,Bed Purchasing - Southmead Hospital,Permanent Residential,The Beeches,1656.36, 04-Aug-2015
905,Revenue,CCHD,Bed Purchasing - Southmead Hospital,Permanent Residential,The Cidermill,978.04, 04-Aug-2015
906,Revenue,CCHD,Bed Purchasing - Southmead Hospital,Permanent Residential,The Gables Residential Home,1385.2, 04-Aug-2015
907,Revenue,CCHD,Bed Purchasing - Southmead Hospital,Respite Planned - Residential,The Gables Residential Home,1285.71, 04-Aug-2015
908,Revenue,CCHD,Bed Purchasing - Southmead Hospital,Permanent Residential,The Gables Residential Home,982.8, 04-Aug-2015
909,Revenue,CCHD,Bed Purchasing - Southmead Hospital,Permanent Residential,The Grove,1997.68, 04-Aug-2015
910,Revenue,CCHD,Bed Purchasing - Southmead Hospital,Permanent Nursing,The Heathers,1346.8, 04-Aug-2015
911,Revenue,CCHD,Bed Purchasing - Southmead Hospital,Permanent Nursing,The Heathers,1230.72, 04-Aug-2015
912,Revenue,CCHD,Bed Purchasing - Southmead Hospital,Permanent Nursing,The Heathers,1330.8, 04-Aug-2015
913,Revenue,CCHD,Bed Purchasing - Southmead Hospital,Permanent Nursing,The Heathers,1330.8, 04-Aug-2015
914,Revenue,CCHD,Bed Purchasing - Southmead Hospital,Permanent Nursing,The Heathers,1511.32, 04-Aug-2015
915,Revenue,CCHD,Bed Purchasing - Southmead Hospital,Permanent Residential,The Worthies,1694.8, 04-Aug-2015
916,Revenue,CCHD,Bed Purchasing - Southmead Hospital,Permanent Residential,The Worthies,1159, 04-Aug-2015
917,Revenue,CCHD,Bed Purchasing - Southmead Hospital,Permanent Residential,The Worthies,1460.48, 04-Aug-2015
918,Revenue,CCHD,Bed Purchasing - Southmead Hospital,Permanent Residential,Warley House,924.72, 04-Aug-2015
919,Revenue,CCHD,Bed Purchasing - Southmead Hospital,Permanent Residential,Wayside Residential Care Home,2465.83, 04-Aug-2015
920,Revenue,CCHD,Bed Purchasing - Southmead Hospital,Permanent Residential,Wayside Residential Care Home,1442.8, 04-Aug-2015
921,Revenue,CCHD,Bed Purchasing - Southmead Hospital,Permanent Nursing,Wickwar Nursing Home  Castle House,1323.88, 04-Aug-2015
922,Revenue,CCHD,Bed Purchasing - Southmead Hospital,Permanent Nursing,Wickwar Nursing Home  Castle House,1459.4, 04-Aug-2015
923,Revenue,CCHD,Bed Purchasing - Southmead Hospital,Permanent Nursing,Wickwar Nursing Home  Castle House,1627.84, 04-Aug-2015
924,Revenue,CCHD,Bed Purchasing - Southmead Hospital,Permanent Nursing,Wickwar Nursing Home  Castle House,1218.16, 04-Aug-2015
925,Revenue,CCHD,Bed Purchasing - Southmead Hospital,Permanent Residential,Wickwar Nursing Home  Castle House,1718.56, 04-Aug-2015
926,Revenue,CCHD,Bed Purchasing - Southmead Hospital,Permanent Nursing,Wickwar Nursing Home  Castle House,1010.84, 04-Aug-2015
927,Revenue,CCHD,Bed Purchasing - Southmead Hospital,Permanent Nursing,Wickwar Nursing Home  Castle House,1052.72, 04-Aug-2015
928,Revenue,CCHD,Bed Purchasing - Southmead Hospital,Permanent Residential,Wickwar Nursing Home  Castle House,1680.88, 04-Aug-2015
929,Revenue,CCHD,Bed Purchasing - Southmead Hospital,Permanent Nursing,Wickwar Nursing Home  Castle House,989.24, 04-Aug-2015
930,Revenue,CCHD,Bed Purchasing - Southmead Hospital,Permanent Nursing,Wickwar Nursing Home  Castle House,832.72, 04-Aug-2015
931,Revenue,CCHD,Bed Purchasing - Southmead Hospital,Permanent Nursing,Willow Cottage,1776.64, 04-Aug-2015
932,Revenue,CCHD,Bed Purchasing - Southmead Hospital,Permanent Nursing,Willow Cottage,2361.68, 04-Aug-2015
933,Revenue,CCHD,Bed Purchasing - Southmead Hospital,Permanent Nursing,Willow Cottage,2401.12, 04-Aug-2015
934,Revenue,CCHD,Bed Purchasing - Southmead Hospital,Permanent Nursing,Willow Cottage,1202.72, 04-Aug-2015
935,Revenue,CCHD,Bed Purchasing - Southmead Hospital,Permanent Nursing,Willow Cottage,1330.4, 04-Aug-2015
936,Revenue,CCHD,Bed Purchasing - Southmead Hospital,Permanent Residential,Willows,1570, 04-Aug-2015
937,Revenue,CCHD,Bed Purchasing - Southmead Hospital,Permanent Residential,Willows,1449.6, 04-Aug-2015
938,Revenue,CCHD,Bed Purchasing - Southmead Hospital,Permanent Residential,Windmill House,1270.8, 04-Aug-2015
939,Revenue,CCHD,Bed Purchasing - Southmead Hospital,Permanent Residential,Windmill House,778.68, 04-Aug-2015
940,Revenue,CCHD,Bed Purchasing - Southmead Hospital,Permanent Nursing,Woodland Health Care  Pinetree Court,1330.8, 04-Aug-2015
941,Revenue,CCHD,Bed Purchasing - Southmead Hospital,Permanent Nursing,Woodlands Manor,1077.84, 04-Aug-2015
942,Revenue,CCHD,Bed purchasing -S28A  Under 65 - North,Permanent Nursing,Brandon Trust,4835.88, 04-Aug-2015
943,Revenue,CCHD,Bed purchasing -S28A  Under 65 - North,Permanent Residential,Chescombe Lodge,8791.96, 04-Aug-2015
944,Revenue,CCHD,Bed purchasing -S28A  Under 65 - North,Permanent Residential,Creedy Court,9392.72, 04-Aug-2015
945,Revenue,CCHD,Bed purchasing -S28A  Under 65 - North,Permanent Residential,Julia Simone- Supp. Ind.,3533.32, 04-Aug-2015
946,Revenue,CCHD,Bed purchasing -S28A  Under 65 - North,Permanent Residential,Milestones - Unit 10,5387.68, 04-Aug-2015
947,Revenue,CCHD,Bed purchasing -S28A  Under 65 - North,Permanent Residential,Milestones - Unit 10,5316.8, 04-Aug-2015
948,Revenue,CCHD,Bed purchasing -S28A  Under 65 - North,Permanent Residential,Milestones - Unit 10,7136, 04-Aug-2015
949,Revenue,CCHD,Bed purchasing -S28A  Under 65 - North,Permanent Nursing,Milestones - Unit 10,5865.04, 04-Aug-2015
950,Revenue,CCHD,Bed purchasing -S28A  Under 65 - North,Permanent Residential,Milestones - Unit 10,6829.12, 04-Aug-2015
951,Revenue,CCHD,Bed purchasing -S28A  Under 65 - North,Permanent Residential,Milestones - Unit 10,7089.2, 04-Aug-2015
952,Revenue,CCHD,Bed purchasing -S28A  Under 65 - North,Permanent Residential,Milestones - Unit 10,7136.2, 04-Aug-2015
953,Revenue,CCHD,Bed purchasing -S28A  Under 65 - North,Permanent Residential,Milestones - Unit 10,5737.92, 04-Aug-2015
954,Revenue,CCHD,Bed purchasing -S28A  Under 65 - North,Permanent Residential,Milestones - Unit 10,7136.2, 04-Aug-2015
955,Revenue,CCHD,Bed purchasing -S28A  Under 65 - North,Permanent Residential,Milestones - Unit 10,3340.76, 04-Aug-2015
956,Revenue,CCHD,Bed purchasing -S28A  Under 65 - North,Permanent Nursing,Milestones - Unit 10,7697.08, 04-Aug-2015
957,Revenue,CCHD,Bed purchasing -S28A  Under 65 - North,Permanent Residential,Orchard End Limited,7645.6, 04-Aug-2015
958,Revenue,CCHD,Bed purchasing -S28A  Under 65 - North,Permanent Residential,Park Hall,5996.24, 04-Aug-2015
959,Revenue,CCHD,Breakthrough and Inclusion Work,Other Supplies & Services,121Turnaround Limited,2196.27, 24-Aug-2015
960,Revenue,CCHD,Breakthrough and Inclusion Work,Membership Fees,Circadian Trust,718.5, 24-Aug-2015
961,Revenue,CCHD,Breakthrough and Inclusion Work,Other Supplies & Services,P3D,3548.58, 12-Aug-2015
962,Revenue,CCHD,CAH Assistant Directors,Agency Staff (Admin/Support Staff) Pay,Gatenby Sanderson Limited,14573, 12-Aug-2015
963,Revenue,CCHD,CAH Assistant Directors,Radio Pager/Mobile Phones,Telefonica UK Limited,10, 11-Aug-2015
964,Revenue,CCHD,CAH Assistant Directors,Radio Pager/Mobile Phones,Telefonica UK Limited,10, 27-Aug-2015
965,Revenue,CCHD,Children & Young People�s Health,Other Small Contracts,Barnardos,8000, 17-Aug-2015
966,Revenue,CCHD,Children & Young People�s Health,Other Small Contracts,North Bristol NHS Trust,40916, 13-Aug-2015
967,Revenue,CCHD,Community Care Contact Centre,Telephones,Telefonica UK Limited,31.02, 11-Aug-2015
968,Revenue,CCHD,Community Care Contact Centre,Radio Pager/Mobile Phones,Telefonica UK Limited,24, 27-Aug-2015
969,Revenue,CCHD,Community Care Contact Centre,Telephones,Vodafone Corporate Limited,3317.28, 21-Aug-2015
970,Revenue,CCHD,Community Support - MH < 65,Preventative Assistance,KCC Cleaning Services Limited,1928, 28-Aug-2015
971,Revenue,CCHD,Community Support - North,Preventative Assistance,1st Choice Removals & Storage Limited,558, 21-Aug-2015
972,Revenue,CCHD,Day Care - North,Day Care / Social Activities,Bristol & Avon Chinese Womens Group,234.96, 19-Aug-2015
973,Revenue,CCHD,Day Care - North,Day Care / Social Activities,Bristol & Avon Chinese Womens Group,293.7, 19-Aug-2015
974,Revenue,CCHD,Day Care - North,Day Care / Social Activities,Helping Hands Homecare,89.93, 04-Aug-2015
975,Revenue,CCHD,Day Care - North,Day Care / Social Activities,Helping Hands Homecare,7.92, 17-Aug-2015
976,Revenue,CCHD,Day Care - North,Day Care / Social Activities,Helping Hands Homecare,95.04, 07-Aug-2015
977,Revenue,CCHD,Day Care - North,Day Care / Social Activities,Helping Hands Homecare,95.04, 07-Aug-2015
978,Revenue,CCHD,Day Care - North,Day Care / Social Activities,Helping Hands Homecare,87.12, 06-Aug-2015
979,Revenue,CCHD,Day Care - North,Day Care / Social Activities,Lifeways Community Care (Gloucester) Ltd,3525.39, 14-Aug-2015
980,Revenue,CCHD,Day Care - North,Day Care / Social Activities,Milestones Supported Living Services,204.32, 19-Aug-2015
981,Revenue,CCHD,Day Care - North,Day Care / Social Activities,Milestones Supported Living Services,207.88, 24-Aug-2015
982,Revenue,CCHD,Day Care - North,Day Care / Social Activities,Milestones Supported Living Services,176.96, 27-Aug-2015
983,Revenue,CCHD,Day Care - North,Day Care / Social Activities,Nestor T/A Allied Healthcare,69.3, 04-Aug-2015
984,Revenue,CCHD,Day Care - North,Day Care / Social Activities,Nestor T/A Allied Healthcare,69.3, 12-Aug-2015
985,Revenue,CCHD,Day Care - North,Day Care / Social Activities,Nestor T/A Allied Healthcare,69.3, 14-Aug-2015
986,Revenue,CCHD,Day Care - North,Day Care / Social Activities,Newcross Healthcare Solutions Limited,1333.96, 14-Aug-2015
987,Revenue,CCHD,Day Care - North,Day Care / Social Activities,Silva Care Limited,993.08, 10-Aug-2015
988,Revenue,CCHD,Day Care - South,Day Care / Social Activities,Brunelcare,24.78, 07-Aug-2015
989,Revenue,CCHD,Day Care - South,Day Care / Social Activities,Brunelcare,28.91, 07-Aug-2015
990,Revenue,CCHD,Day Care - South,Day Care / Social Activities,Headway Bristol,735, 28-Aug-2015
991,Revenue,CCHD,Day Care - South,Day Care / Social Activities,Headway Bristol,718.8, 28-Aug-2015
992,Revenue,CCHD,Day Care - South,Day Care / Social Activities,Headway Bristol,875.65, 28-Aug-2015
993,Revenue,CCHD,Day Care - South,Day Care / Social Activities,Headway Bristol,1030.7, 28-Aug-2015
994,Revenue,CCHD,Day Care - South,Day Care / Social Activities,Kenver House,744, 10-Aug-2015
995,Revenue,CCHD,Day Care - South,Day Care / Social Activities,Milestones Supported Living Services,109.44, 19-Aug-2015
996,Revenue,CCHD,Day Care - South,Day Care / Social Activities,Milestones Supported Living Services,109.44, 24-Aug-2015
997,Revenue,CCHD,Day Care - South,Day Care / Social Activities,Milestones Supported Living Services,109.44, 27-Aug-2015
998,Revenue,CCHD,Day Care - South,Day Care / Social Activities,Moving On,1057.92, 17-Aug-2015
999,Revenue,CCHD,Day Care - South,Day Care / Social Activities,Moving On,1107.51, 17-Aug-2015
1000,Revenue,CCHD,Day Care - South,Day Care / Social Activities,Moving On,1124.04, 17-Aug-2015
1001,Revenue,CCHD,Day Care - South,Day Care / Social Activities,Moving On,1024.86, 17-Aug-2015
1002,Revenue,CCHD,Day Care - South,Day Care / Social Activities,Prestige Nursing,124.04, 04-Aug-2015
1003,Revenue,CCHD,Day Care - South,Day Care / Social Activities,Prestige Nursing,124.04, 04-Aug-2015
1004,Revenue,CCHD,Day Care - South,Day Care / Social Activities,Prestige Nursing,115.18, 21-Aug-2015
1005,Revenue,CCHD,Day Care - South,Day Care / Social Activities,Prestige Nursing,124.04, 21-Aug-2015
1006,Revenue,CCHD,Day Care - South,Day Care / Social Activities,Supporting Options,633.75, 19-Aug-2015
1007,Revenue,CCHD,Day Care - South,Day Care / Social Activities,Supporting Options,2458.95, 04-Aug-2015
1008,Revenue,CCHD,Day Care - South,Day Care / Social Activities,Supporting Options,659.1, 20-Aug-2015
1009,Revenue,CCHD,Day Care - South,Day Care / Social Activities,Supporting Options,2518.1, 20-Aug-2015
1010,Revenue,CCHD,Direct Payments - Phys Dis - North,Grants to Voluntary Bodies,Aquarium Card Management Solutions Ltd,2080.5, 14-Aug-2015
1011,Revenue,CCHD,Drug/Alcohol Residential Rehab,Security Systems,National Security Group,21.67, 13-Aug-2015
1012,Revenue,CCHD,Elderly MH Day Care North,Day Care / Social Activities,Agincare UK Limited,61.6, 04-Aug-2015
1013,Revenue,CCHD,Elderly MH Day Care North,Day Care / Social Activities,Agincare UK Limited,57.75, 04-Aug-2015
1014,Revenue,CCHD,Elderly MH Day Care North,Day Care / Social Activities,Premier Homecare Limited,73.76, 07-Aug-2015
1015,Revenue,CCHD,Elderly MH Day Care North,Day Care / Social Activities,Premier Homecare Limited,73.76, 07-Aug-2015
1016,Revenue,CCHD,Elderly MH Day Care North,Day Care / Social Activities,Premier Homecare Limited,73.76, 17-Aug-2015
1017,Revenue,CCHD,Elderly MH Day Care North,Day Care / Social Activities,Premier Homecare Limited,73.76, 21-Aug-2015
1018,Revenue,CCHD,Elderly MH Day Care North,Day Care / Social Activities,Premier Homecare Limited,73.76, 27-Aug-2015
1019,Revenue,CCHD,Electronic Home Care Monitoring,Other Supplies & Services,Care Monitoring 2000 Limited,9591.52, 21-Aug-2015
1020,Revenue,CCHD,Freeways,Permanent Residential,Freeways Trust Limited,3651.28, 19-Aug-2015
1021,Revenue,CCHD,Freeways,Permanent Residential,Freeways Trust Limited,2294.48, 19-Aug-2015
1022,Revenue,CCHD,Freeways,Permanent Residential,Freeways Trust Limited,2372.68, 19-Aug-2015
1023,Revenue,CCHD,Freeways,Permanent Residential,Freeways Trust Limited,3026.48, 19-Aug-2015
1024,Revenue,CCHD,Freeways,Permanent Residential,Freeways Trust Limited,2372.68, 19-Aug-2015
1025,Revenue,CCHD,Freeways,Permanent Residential,Freeways Trust Limited,3400.72, 19-Aug-2015
1026,Revenue,CCHD,Freeways,Permanent Residential,Freeways Trust Limited,3278.08, 19-Aug-2015
1027,Revenue,CCHD,Freeways,Permanent Residential,Freeways Trust Limited,3560.84, 19-Aug-2015
1028,Revenue,CCHD,Freeways,Permanent Residential,Freeways Trust Limited,2695.08, 19-Aug-2015
1029,Revenue,CCHD,Freeways,Permanent Residential,Freeways Trust Limited,2711.48, 19-Aug-2015
1030,Revenue,CCHD,Freeways,Permanent Residential,Freeways Trust Limited,3261.6, 19-Aug-2015
1031,Revenue,CCHD,Freeways,Permanent Residential,Freeways Trust Limited,3111.64, 19-Aug-2015
1032,Revenue,CCHD,Freeways,Permanent Residential,Freeways Trust Limited,3608.28, 19-Aug-2015
1033,Revenue,CCHD,Freeways,Permanent Residential,Freeways Trust Limited,2451.72, 19-Aug-2015
1034,Revenue,CCHD,Freeways,Permanent Residential,Freeways Trust Limited,2451.72, 19-Aug-2015
1035,Revenue,CCHD,Freeways,Permanent Residential,Freeways Trust Limited,2451.72, 19-Aug-2015
1036,Revenue,CCHD,Freeways,Permanent Residential,Freeways Trust Limited,3651.28, 13-Aug-2015
1037,Revenue,CCHD,Freeways,Permanent Residential,Freeways Trust Limited,2294.48, 13-Aug-2015
1038,Revenue,CCHD,Freeways,Permanent Residential,Freeways Trust Limited,2372.68, 13-Aug-2015
1039,Revenue,CCHD,Freeways,Permanent Residential,Freeways Trust Limited,3026.48, 13-Aug-2015
1040,Revenue,CCHD,Freeways,Permanent Residential,Freeways Trust Limited,2372.68, 13-Aug-2015
1041,Revenue,CCHD,Freeways,Permanent Residential,Freeways Trust Limited,3400.72, 13-Aug-2015
1042,Revenue,CCHD,Freeways,Permanent Residential,Freeways Trust Limited,3278.08, 13-Aug-2015
1043,Revenue,CCHD,Freeways,Permanent Residential,Freeways Trust Limited,3560.84, 13-Aug-2015
1044,Revenue,CCHD,Freeways,Permanent Residential,Freeways Trust Limited,2695.08, 13-Aug-2015
1045,Revenue,CCHD,Freeways,Permanent Residential,Freeways Trust Limited,2711.48, 13-Aug-2015
1046,Revenue,CCHD,Freeways,Permanent Residential,Freeways Trust Limited,3261.6, 13-Aug-2015
1047,Revenue,CCHD,Freeways,Permanent Residential,Freeways Trust Limited,3111.64, 13-Aug-2015
1048,Revenue,CCHD,Freeways,Permanent Residential,Freeways Trust Limited,3608.28, 13-Aug-2015
1049,Revenue,CCHD,Freeways,Permanent Residential,Freeways Trust Limited,2451.72, 13-Aug-2015
1050,Revenue,CCHD,Freeways,Permanent Residential,Freeways Trust Limited,2451.72, 13-Aug-2015
1051,Revenue,CCHD,Freeways,Permanent Residential,Freeways Trust Limited,2451.72, 13-Aug-2015
1052,Revenue,CCHD,Freeways,Permanent Residential,Freeways Trust Limited,1510.56, 13-Aug-2015
1053,Revenue,CCHD,General EPH budgets,Radio Pager/Mobile Phones,Telefonica UK Limited,16.25, 11-Aug-2015
1054,Revenue,CCHD,General EPH budgets,Radio Pager/Mobile Phones,Telefonica UK Limited,10, 27-Aug-2015
1055,Revenue,CCHD,Health Inequalities,Other Small Contracts,Abacus @ Filton Hill,750, 14-Aug-2015
1056,Revenue,CCHD,Health Inequalities,Other Small Contracts,Age Concern South Gloucestershire,750, 18-Aug-2015
1057,Revenue,CCHD,Health Inequalities,Other Small Contracts,Badminton Gardens Social Fund,600, 17-Aug-2015
1058,Revenue,CCHD,Health Inequalities,Other Small Contracts,Banjo Island Community & Sports Association,750, 14-Aug-2015
1059,Revenue,CCHD,Health Inequalities,Other Small Contracts,British Red Cross,750, 17-Aug-2015
1060,Revenue,CCHD,Health Inequalities,Other Small Contracts,Coniston Community Association,700, 14-Aug-2015
1061,Revenue,CCHD,Health Inequalities,Other Small Contracts,Dhek Bhal,500, 14-Aug-2015
1062,Revenue,CCHD,Health Inequalities,Other Small Contracts,K & M A Bennett,746.05, 17-Aug-2015
1063,Revenue,CCHD,Health Inequalities,Other Small Contracts,Kingswood RFC Ltd,700, 17-Aug-2015
1064,Revenue,CCHD,Health Inequalities,Other Small Contracts,Linkcentre,750, 17-Aug-2015
1065,Revenue,CCHD,Health Inequalities,Other Small Contracts,Milestones Trust,750, 14-Aug-2015
1066,Revenue,CCHD,Health Inequalities,Other Small Contracts,Our Place Community Flat,750, 14-Aug-2015
1067,Revenue,CCHD,Health Inequalities,Other Small Contracts,South Gloucestershire Deaf Association,665, 25-Aug-2015
1068,Revenue,CCHD,Health Inequalities,Other Small Contracts,South Gloucestershire Parents and Carers,600, 14-Aug-2015
1069,Revenue,CCHD,Health Inequalities,Other Small Contracts,Survive,729, 18-Aug-2015
1070,Revenue,CCHD,Health Inequalities,Other Small Contracts,The Hive Avon Ltd,684, 14-Aug-2015
1071,Revenue,CCHD,Health Inequalities,Other Small Contracts,Thornbury Lipreaders,650, 17-Aug-2015
1072,Revenue,CCHD,Health Inequalities,Other Small Contracts,Wickwar Playing Fields Association,750, 14-Aug-2015
1073,Revenue,CCHD,Home Care - Elderly - North,Day Care / Social Activities,3 Trees Community Support Ltd,2580.92, 03-Aug-2015
1074,Revenue,CCHD,Home Care - Elderly - North,Other Small Contracts,3 Trees Community Support Ltd,108.48, 03-Aug-2015
1075,Revenue,CCHD,Home Care - Elderly - North,Supported Living,3 Trees Community Support Ltd,7688.16, 03-Aug-2015
1076,Revenue,CCHD,Home Care - Elderly - North,Day Care / Social Activities,3 Trees Community Support Ltd,2626.12, 04-Aug-2015
1077,Revenue,CCHD,Home Care - Elderly - North,Other Small Contracts,3 Trees Community Support Ltd,108.48, 04-Aug-2015
1078,Revenue,CCHD,Home Care - Elderly - North,Supported Living,3 Trees Community Support Ltd,8147, 04-Aug-2015
1079,Revenue,CCHD,Home Care - Elderly - North,Day Care / Social Activities,3 Trees Community Support Ltd,2309.72, 24-Aug-2015
1080,Revenue,CCHD,Home Care - Elderly - North,Supported Living,3 Trees Community Support Ltd,7500.32, 24-Aug-2015
1081,Revenue,CCHD,Home Care - Elderly - North,Day Care / Social Activities,3 Trees Community Support Ltd,3721.3, 21-Aug-2015
1082,Revenue,CCHD,Home Care - Elderly - North,Other Small Contracts,Agincare Chippenham,165.55, 04-Aug-2015
1083,Revenue,CCHD,Home Care - Elderly - North,Other Small Contracts,Agincare Chippenham,165.55, 21-Aug-2015
1084,Revenue,CCHD,Home Care - Elderly - North,Other Small Contracts,Agincare Chippenham,69.3, 25-Aug-2015
1085,Revenue,CCHD,Home Care - Elderly - North,Other Small Contracts,Agincare UK Limited,161.7, 04-Aug-2015
1086,Revenue,CCHD,Home Care - Elderly - North,Other Small Contracts,Agincare UK Limited,157.85, 04-Aug-2015
1087,Revenue,CCHD,Home Care - Elderly - North,Other Small Contracts,Agincare UK Nutfield,1170.4, 04-Aug-2015
1088,Revenue,CCHD,Home Care - Elderly - North,Other Small Contracts,Agincare UK Nutfield,1297.45, 21-Aug-2015
1089,Revenue,CCHD,Home Care - Elderly - North,Other Small Contracts,Agincare UK Nutfield,1228.15, 21-Aug-2015
1090,Revenue,CCHD,Home Care - Elderly - North,Other Small Contracts,Agincare UK Nutfield,1208.9, 25-Aug-2015
1091,Revenue,CCHD,Home Care - Elderly - North,Supported Living,Aspirations Support Bristol Limited,1831.5, 25-Aug-2015
1092,Revenue,CCHD,Home Care - Elderly - North,Day Care / Social Activities,Aspirations Support Bristol Limited,32.56, 27-Aug-2015
1093,Revenue,CCHD,Home Care - Elderly - North,Supported Living,Aspirations Support Bristol Limited,1432.64, 27-Aug-2015
1094,Revenue,CCHD,Home Care - Elderly - North,Day Care / Social Activities,Aspirations Support Bristol Limited,81.4, 25-Aug-2015
1095,Revenue,CCHD,Home Care - Elderly - North,Supported Living,Aspirations Support Bristol Limited,1432.64, 25-Aug-2015
1096,Revenue,CCHD,Home Care - Elderly - North,Day Care / Social Activities,Aspirations Support Bristol Limited,48.84, 27-Aug-2015
1097,Revenue,CCHD,Home Care - Elderly - North,Supported Living,Aspirations Support Bristol Limited,1444.85, 27-Aug-2015
1098,Revenue,CCHD,Home Care - Elderly - North,Day Care / Social Activities,Bibby Factors Bristol Limited,67.2, 25-Aug-2015
1099,Revenue,CCHD,Home Care - Elderly - North,Other Small Contracts,Bibby Factors Bristol Limited,7358.4, 25-Aug-2015
1100,Revenue,CCHD,Home Care - Elderly - North,Day Care / Social Activities,Bibby Factors Bristol Limited,134.4, 25-Aug-2015
1101,Revenue,CCHD,Home Care - Elderly - North,Other Small Contracts,Bibby Factors Bristol Limited,7312.2, 25-Aug-2015
1102,Revenue,CCHD,Home Care - Elderly - North,Day Care / Social Activities,Bibby Factors Bristol Limited,134.4, 25-Aug-2015
1103,Revenue,CCHD,Home Care - Elderly - North,Other Small Contracts,Bibby Factors Bristol Limited,7450.8, 25-Aug-2015
1104,Revenue,CCHD,Home Care - Elderly - North,Other Small Contracts,Bluebird Care (South Gloucestershire),1881.49, 27-Aug-2015
1105,Revenue,CCHD,Home Care - Elderly - North,Other Small Contracts,Bluebird Care (South Gloucestershire),1935.94, 27-Aug-2015
1106,Revenue,CCHD,Home Care - Elderly - North,Other Small Contracts,Bluebird Care (South Gloucestershire),1871.59, 28-Aug-2015
1107,Revenue,CCHD,Home Care - Elderly - North,Other Small Contracts,Bradley House Home Care Services,786.24, 07-Aug-2015
1108,Revenue,CCHD,Home Care - Elderly - North,Other Small Contracts,Bradley House Home Care Services,773.28, 07-Aug-2015
1109,Revenue,CCHD,Home Care - Elderly - North,Other Small Contracts,Bradley House Home Care Services,743.04, 07-Aug-2015
1110,Revenue,CCHD,Home Care - Elderly - North,Other Small Contracts,Bradley House Home Care Services,725.76, 21-Aug-2015
1111,Revenue,CCHD,Home Care - Elderly - North,Other Small Contracts,Bradley House Home Care Services,764.64, 25-Aug-2015
1112,Revenue,CCHD,Home Care - Elderly - North,Day Care / Social Activities,Britannia House,924.8, 04-Aug-2015
1113,Revenue,CCHD,Home Care - Elderly - North,Day Care / Social Activities,Britannia House,693.6, 04-Aug-2015
1114,Revenue,CCHD,Home Care - Elderly - North,Day Care / Social Activities,Britannia House,693.6, 04-Aug-2015
1115,Revenue,CCHD,Home Care - Elderly - North,Day Care / Social Activities,Britannia House,924.8, 04-Aug-2015
1116,Revenue,CCHD,Home Care - Elderly - North,Private & Voluntary Home Care,Brunelcare,23503, 03-Aug-2015
1117,Revenue,CCHD,Home Care - Elderly - North,Private & Voluntary Home Care,Brunelcare,23503, 10-Aug-2015
1118,Revenue,CCHD,Home Care - Elderly - North,Private & Voluntary Home Care,Brunelcare,23503, 17-Aug-2015
1119,Revenue,CCHD,Home Care - Elderly - North,Private & Voluntary Home Care,Brunelcare,23503, 24-Aug-2015
1120,Revenue,CCHD,Home Care - Elderly - North,Private & Voluntary Home Care,Brunelcare,23503, 28-Aug-2015
1121,Revenue,CCHD,Home Care - Elderly - North,Other Small Contracts,Brunelcare,2672.11, 07-Aug-2015
1122,Revenue,CCHD,Home Care - Elderly - North,Other Small Contracts,Brunelcare,2659.72, 07-Aug-2015
1123,Revenue,CCHD,Home Care - Elderly - North,Day Care / Social Activities,Camphill Communities Thornbury Limited,1083.5, 05-Aug-2015
1124,Revenue,CCHD,Home Care - Elderly - North,Supported Living,Camphill Communities Thornbury Limited,1410.52, 05-Aug-2015
1125,Revenue,CCHD,Home Care - Elderly - North,Day Care / Social Activities,Camphill Communities Thornbury Limited,1083.5, 12-Aug-2015
1126,Revenue,CCHD,Home Care - Elderly - North,Supported Living,Camphill Communities Thornbury Limited,1394.76, 12-Aug-2015
1127,Revenue,CCHD,Home Care - Elderly - North,Day Care / Social Activities,Camphill Communities Thornbury Limited,823.46, 21-Aug-2015
1128,Revenue,CCHD,Home Care - Elderly - North,Supported Living,Camphill Communities Thornbury Limited,1454.93, 21-Aug-2015
1129,Revenue,CCHD,Home Care - Elderly - North,Day Care / Social Activities,Camphill Communities Thornbury Limited,543.72, 28-Aug-2015
1130,Revenue,CCHD,Home Care - Elderly - North,Supported Living,Camphill Communities Thornbury Limited,1245.04, 28-Aug-2015
1131,Revenue,CCHD,Home Care - Elderly - North,One-off Planned Direct Payment,Care 1st Homecare,21.25, 07-Aug-2015
1132,Revenue,CCHD,Home Care - Elderly - North,Other Small Contracts,Care 1st Homecare,3068.5, 07-Aug-2015
1133,Revenue,CCHD,Home Care - Elderly - North,One-off Planned Direct Payment,Care 1st Homecare,51, 07-Aug-2015
1134,Revenue,CCHD,Home Care - Elderly - North,Other Small Contracts,Care 1st Homecare,3561.5, 07-Aug-2015
1135,Revenue,CCHD,Home Care - Elderly - North,One-off Planned Direct Payment,Care 1st Homecare,55.25, 17-Aug-2015
1136,Revenue,CCHD,Home Care - Elderly - North,Other Small Contracts,Care 1st Homecare,4572.5, 17-Aug-2015
1137,Revenue,CCHD,Home Care - Elderly - North,One-off Planned Direct Payment,Care 1st Homecare,25.5, 17-Aug-2015
1138,Revenue,CCHD,Home Care - Elderly - North,Other Small Contracts,Care 1st Homecare,5213.2, 17-Aug-2015
1139,Revenue,CCHD,Home Care - Elderly - North,Day Care / Social Activities,Care Horizons Limited,162, 25-Aug-2015
1140,Revenue,CCHD,Home Care - Elderly - North,Other Small Contracts,Care Horizons Limited,247.5, 25-Aug-2015
1141,Revenue,CCHD,Home Care - Elderly - North,Day Care / Social Activities,Care Horizons Limited,162, 25-Aug-2015
1142,Revenue,CCHD,Home Care - Elderly - North,Day Care / Social Activities,Care Horizons Limited,162, 25-Aug-2015
1143,Revenue,CCHD,Home Care - Elderly - North,Other Small Contracts,Care Horizons Limited,252, 25-Aug-2015
1144,Revenue,CCHD,Home Care - Elderly - North,Day Care / Social Activities,Care Horizons Limited,162, 25-Aug-2015
1145,Revenue,CCHD,Home Care - Elderly - North,Day Care / Social Activities,Care Horizons Limited,162, 25-Aug-2015
1146,Revenue,CCHD,Home Care - Elderly - North,Other Small Contracts,Care UK,1996.91, 04-Aug-2015
1147,Revenue,CCHD,Home Care - Elderly - North,Other Small Contracts,Care UK,2020.73, 04-Aug-2015
1148,Revenue,CCHD,Home Care - Elderly - North,Other Small Contracts,Care UK,1933.39, 14-Aug-2015
1149,Revenue,CCHD,Home Care - Elderly - North,Other Small Contracts,Care UK,1770.62, 14-Aug-2015
1150,Revenue,CCHD,Home Care - Elderly - North,Other Small Contracts,Care UK,2104.1, 25-Aug-2015
1151,Revenue,CCHD,Home Care - Elderly - North,Other Small Contracts,Carers R Us (Bristol) Limited,218.16, 12-Aug-2015
1152,Revenue,CCHD,Home Care - Elderly - North,Other Small Contracts,Carers R Us (Bristol) Limited,218.16, 12-Aug-2015
1153,Revenue,CCHD,Home Care - Elderly - North,Other Small Contracts,Carers R Us (Bristol) Limited,16.16, 21-Aug-2015
1154,Revenue,CCHD,Home Care - Elderly - North,Other Small Contracts,Carers R Us (Bristol) Limited,16.16, 25-Aug-2015
1155,Revenue,CCHD,Home Care - Elderly - North,Other Small Contracts,Cherish Able Care Limited,1913.54, 06-Aug-2015
1156,Revenue,CCHD,Home Care - Elderly - North,Other Small Contracts,Cherish Able Care Limited,1917.76, 19-Aug-2015
1157,Revenue,CCHD,Home Care - Elderly - North,Other Small Contracts,Cherish Able Care Limited,1913.54, 21-Aug-2015
1158,Revenue,CCHD,Home Care - Elderly - North,Other Small Contracts,Cherish Able Care Limited,1913.54, 28-Aug-2015
1159,Revenue,CCHD,Home Care - Elderly - North,Other Small Contracts,Dhek Bhal,78.4, 24-Aug-2015
1160,Revenue,CCHD,Home Care - Elderly - North,Other Small Contracts,DoCare Ltd,6342.83, 04-Aug-2015
1161,Revenue,CCHD,Home Care - Elderly - North,Other Small Contracts,DoCare Ltd,6201.99, 04-Aug-2015
1162,Revenue,CCHD,Home Care - Elderly - North,Other Small Contracts,DoCare Ltd,6201.99, 25-Aug-2015
1163,Revenue,CCHD,Home Care - Elderly - North,Other Small Contracts,DoCare Ltd,5885.1, 25-Aug-2015
1164,Revenue,CCHD,Home Care - Elderly - North,Other Small Contracts,DoCare Ltd,5638.63, 25-Aug-2015
1165,Revenue,CCHD,Home Care - Elderly - North,Day Care / Social Activities,Easton Community Centre,526.08, 04-Aug-2015
1166,Revenue,CCHD,Home Care - Elderly - North,Day Care / Social Activities,Easton Community Centre,526.08, 04-Aug-2015
1167,Revenue,CCHD,Home Care - Elderly - North,Day Care / Social Activities,Eclipse Office Park,990.72, 04-Aug-2015
1168,Revenue,CCHD,Home Care - Elderly - North,Other Small Contracts,Elite Home Care Ltd,331.5, 03-Aug-2015
1169,Revenue,CCHD,Home Care - Elderly - North,Other Small Contracts,Elite Home Care Ltd,335.92, 03-Aug-2015
1170,Revenue,CCHD,Home Care - Elderly - North,Other Small Contracts,Elite Home Care Ltd,335.92, 03-Aug-2015
1171,Revenue,CCHD,Home Care - Elderly - North,Other Small Contracts,Elite Home Care Ltd,335.92, 21-Aug-2015
1172,Revenue,CCHD,Home Care - Elderly - North,Other Small Contracts,Elite Home Care Ltd,340.34, 21-Aug-2015
1173,Revenue,CCHD,Home Care - Elderly - North,Other Small Contracts,Elite Home Care Ltd,340.34, 21-Aug-2015
1174,Revenue,CCHD,Home Care - Elderly - North,Day Care / Social Activities,Everycare (Bristol) Ltd,111.8, 03-Aug-2015
1175,Revenue,CCHD,Home Care - Elderly - North,Other Small Contracts,Everycare (Bristol) Ltd,2549.9, 03-Aug-2015
1176,Revenue,CCHD,Home Care - Elderly - North,Day Care / Social Activities,Everycare (Bristol) Ltd,111.8, 03-Aug-2015
1177,Revenue,CCHD,Home Care - Elderly - North,Other Small Contracts,Everycare (Bristol) Ltd,2476.8, 03-Aug-2015
1178,Revenue,CCHD,Home Care - Elderly - North,Day Care / Social Activities,Everycare (Bristol) Ltd,111.8, 03-Aug-2015
1179,Revenue,CCHD,Home Care - Elderly - North,Other Small Contracts,Everycare (Bristol) Ltd,2296.2, 03-Aug-2015
1180,Revenue,CCHD,Home Care - Elderly - North,Day Care / Social Activities,Everycare (Bristol) Ltd,34.4, 17-Aug-2015
1181,Revenue,CCHD,Home Care - Elderly - North,Other Small Contracts,Everycare (Bristol) Ltd,2214.5, 17-Aug-2015
1182,Revenue,CCHD,Home Care - Elderly - North,Day Care / Social Activities,Everycare (Bristol) Ltd,111.8, 17-Aug-2015
1183,Revenue,CCHD,Home Care - Elderly - North,Other Small Contracts,Everycare (Bristol) Ltd,2317.7, 17-Aug-2015
1184,Revenue,CCHD,Home Care - Elderly - North,Day Care / Social Activities,Firstpoint Homecare Ltd,46.68, 03-Aug-2015
1185,Revenue,CCHD,Home Care - Elderly - North,Other Small Contracts,Firstpoint Homecare Ltd,1316.69, 03-Aug-2015
1186,Revenue,CCHD,Home Care - Elderly - North,Day Care / Social Activities,Firstpoint Homecare Ltd,38.9, 03-Aug-2015
1187,Revenue,CCHD,Home Care - Elderly - North,Other Small Contracts,Firstpoint Homecare Ltd,1198.14, 03-Aug-2015
1188,Revenue,CCHD,Home Care - Elderly - North,Day Care / Social Activities,Firstpoint Homecare Ltd,42.79, 07-Aug-2015
1189,Revenue,CCHD,Home Care - Elderly - North,Other Small Contracts,Firstpoint Homecare Ltd,1248.69, 07-Aug-2015
1190,Revenue,CCHD,Home Care - Elderly - North,Day Care / Social Activities,Firstpoint Homecare Ltd,42.79, 14-Aug-2015
1191,Revenue,CCHD,Home Care - Elderly - North,Other Small Contracts,Firstpoint Homecare Ltd,1159.22, 14-Aug-2015
1192,Revenue,CCHD,Home Care - Elderly - North,Day Care / Social Activities,Firstpoint Homecare Ltd,46.68, 17-Aug-2015
1193,Revenue,CCHD,Home Care - Elderly - North,Other Small Contracts,Firstpoint Homecare Ltd,1120.32, 17-Aug-2015
1194,Revenue,CCHD,Home Care - Elderly - North,Day Care / Social Activities,Headway Bristol,420.8, 05-Aug-2015
1195,Revenue,CCHD,Home Care - Elderly - North,Other Small Contracts,Headway Bristol,152.54, 05-Aug-2015
1196,Revenue,CCHD,Home Care - Elderly - North,Day Care / Social Activities,Headway Bristol,420.8, 17-Aug-2015
1197,Revenue,CCHD,Home Care - Elderly - North,Other Small Contracts,Headway Bristol,168.32, 17-Aug-2015
1198,Revenue,CCHD,Home Care - Elderly - North,Day Care / Social Activities,Headway Bristol,420.8, 17-Aug-2015
1199,Revenue,CCHD,Home Care - Elderly - North,Other Small Contracts,Headway Bristol,168.32, 17-Aug-2015
1200,Revenue,CCHD,Home Care - Elderly - North,Day Care / Social Activities,Headway Bristol,420.8, 25-Aug-2015
1201,Revenue,CCHD,Home Care - Elderly - North,Other Small Contracts,Headway Bristol,168.32, 25-Aug-2015
1202,Revenue,CCHD,Home Care - Elderly - North,Day Care / Social Activities,Headway Bristol,420.8, 28-Aug-2015
1203,Revenue,CCHD,Home Care - Elderly - North,Other Small Contracts,Headway Bristol,168.32, 28-Aug-2015
1204,Revenue,CCHD,Home Care - Elderly - North,Day Care / Social Activities,Helping Hands Homecare,187.68, 04-Aug-2015
1205,Revenue,CCHD,Home Care - Elderly - North,Other Small Contracts,Helping Hands Homecare,1556.18, 04-Aug-2015
1206,Revenue,CCHD,Home Care - Elderly - North,Day Care / Social Activities,Helping Hands Homecare,257.4, 17-Aug-2015
1207,Revenue,CCHD,Home Care - Elderly - North,Other Small Contracts,Helping Hands Homecare,1697.19, 17-Aug-2015
1208,Revenue,CCHD,Home Care - Elderly - North,Day Care / Social Activities,Helping Hands Homecare,245.52, 07-Aug-2015
1209,Revenue,CCHD,Home Care - Elderly - North,Other Small Contracts,Helping Hands Homecare,1759.8, 07-Aug-2015
1210,Revenue,CCHD,Home Care - Elderly - North,Day Care / Social Activities,Helping Hands Homecare,269.28, 07-Aug-2015
1211,Revenue,CCHD,Home Care - Elderly - North,Other Small Contracts,Helping Hands Homecare,1744.26, 07-Aug-2015
1212,Revenue,CCHD,Home Care - Elderly - North,Day Care / Social Activities,Helping Hands Homecare,217.8, 06-Aug-2015
1213,Revenue,CCHD,Home Care - Elderly - North,Other Small Contracts,Helping Hands Homecare,1732.63, 06-Aug-2015
1214,Revenue,CCHD,Home Care - Elderly - North,Other Small Contracts,Homecare 4U,645.61, 04-Aug-2015
1215,Revenue,CCHD,Home Care - Elderly - North,Other Small Contracts,Homecare 4U,605.51, 04-Aug-2015
1216,Revenue,CCHD,Home Care - Elderly - North,Other Small Contracts,Homecare 4U,629.57, 04-Aug-2015
1217,Revenue,CCHD,Home Care - Elderly - North,Other Small Contracts,Homecare 4U,537.34, 12-Aug-2015
1218,Revenue,CCHD,Home Care - Elderly - North,Other Small Contracts,Homecare 4U,545.36, 12-Aug-2015
1219,Revenue,CCHD,Home Care - Elderly - North,Private & Voluntary Home Care,Housing 21,38183.98, 10-Aug-2015
1220,Revenue,CCHD,Home Care - Elderly - North,Supported Living,Julia Simone- Supp. Ind.,1212.32, 04-Aug-2015
1221,Revenue,CCHD,Home Care - Elderly - North,Other Small Contracts,Kensington Community Care,3911.46, 14-Aug-2015
1222,Revenue,CCHD,Home Care - Elderly - North,Other Small Contracts,Kensington Community Care,3774.78, 12-Aug-2015
1223,Revenue,CCHD,Home Care - Elderly - North,Other Small Contracts,Kumari Care Limited,1131.07, 04-Aug-2015
1224,Revenue,CCHD,Home Care - Elderly - North,Other Small Contracts,Kumari Care Limited,833.86, 12-Aug-2015
1225,Revenue,CCHD,Home Care - Elderly - North,Day Care / Social Activities,Lower Kilcott,1481.84, 04-Aug-2015
1226,Revenue,CCHD,Home Care - Elderly - North,Day Care / Social Activities,Lower Kilcott,710.16, 04-Aug-2015
1227,Revenue,CCHD,Home Care - Elderly - North,Day Care / Social Activities,Lower Kilcott,566.68, 04-Aug-2015
1228,Revenue,CCHD,Home Care - Elderly - North,Other Small Contracts,Mears Care,3432, 04-Aug-2015
1229,Revenue,CCHD,Home Care - Elderly - North,Other Small Contracts,Mears Care,2995.2, 04-Aug-2015
1230,Revenue,CCHD,Home Care - Elderly - North,Other Small Contracts,Mears Care,2967.9, 25-Aug-2015
1231,Revenue,CCHD,Home Care - Elderly - North,Other Small Contracts,Mears Care,3166.8, 25-Aug-2015
1232,Revenue,CCHD,Home Care - Elderly - North,Other Small Contracts,Medacs Home Care,428.34, 24-Aug-2015
1233,Revenue,CCHD,Home Care - Elderly - North,Other Small Contracts,Medacs Home Care,421.26, 24-Aug-2015
1234,Revenue,CCHD,Home Care - Elderly - North,Other Small Contracts,Medacs Home Care,417.72, 24-Aug-2015
1235,Revenue,CCHD,Home Care - Elderly - North,Other Small Contracts,Medacs Home Care,442.5, 24-Aug-2015
1236,Revenue,CCHD,Home Care - Elderly - North,Other Small Contracts,Medacs Home Care,407.1, 24-Aug-2015
1237,Revenue,CCHD,Home Care - Elderly - North,Other Small Contracts,Medacs Home Care,442.5, 24-Aug-2015
1238,Revenue,CCHD,Home Care - Elderly - North,Supported Living,Milestones - Unit 10,4340.08, 04-Aug-2015
1239,Revenue,CCHD,Home Care - Elderly - North,Other Small Contracts,Milestones Homecare & Dementia Service,1784.1, 17-Aug-2015
1240,Revenue,CCHD,Home Care - Elderly - North,Other Small Contracts,Milestones Homecare & Dementia Service,1846.88, 07-Aug-2015
1241,Revenue,CCHD,Home Care - Elderly - North,Other Small Contracts,Milestones Homecare & Dementia Service,1733.16, 17-Aug-2015
1242,Revenue,CCHD,Home Care - Elderly - North,Other Small Contracts,Milestones Homecare & Dementia Service,1898.02, 24-Aug-2015
1243,Revenue,CCHD,Home Care - Elderly - North,Day Care / Social Activities,Milestones Supported Living Services,2880.61, 19-Aug-2015
1244,Revenue,CCHD,Home Care - Elderly - North,Other Small Contracts,Milestones Supported Living Services,284.48, 19-Aug-2015
1245,Revenue,CCHD,Home Care - Elderly - North,Supported Living,Milestones Supported Living Services,162.4, 19-Aug-2015
1246,Revenue,CCHD,Home Care - Elderly - North,Day Care / Social Activities,Milestones Supported Living Services,3217.69, 24-Aug-2015
1247,Revenue,CCHD,Home Care - Elderly - North,Other Small Contracts,Milestones Supported Living Services,284.48, 24-Aug-2015
1248,Revenue,CCHD,Home Care - Elderly - North,Supported Living,Milestones Supported Living Services,162.4, 24-Aug-2015
1249,Revenue,CCHD,Home Care - Elderly - North,Day Care / Social Activities,Milestones Supported Living Services,3014.64, 27-Aug-2015
1250,Revenue,CCHD,Home Care - Elderly - North,Other Small Contracts,Milestones Supported Living Services,360.68, 27-Aug-2015
1251,Revenue,CCHD,Home Care - Elderly - North,Supported Living,Milestones Supported Living Services,166.46, 27-Aug-2015
1252,Revenue,CCHD,Home Care - Elderly - North,Day Care / Social Activities,Mrs B Kimber -  CM2000,332.8, 04-Aug-2015
1253,Revenue,CCHD,Home Care - Elderly - North,Other Small Contracts,Mrs B Kimber -  CM2000,4842.24, 04-Aug-2015
1254,Revenue,CCHD,Home Care - Elderly - North,Day Care / Social Activities,Mrs B Kimber -  CM2000,416, 12-Aug-2015
1255,Revenue,CCHD,Home Care - Elderly - North,Other Small Contracts,Mrs B Kimber -  CM2000,5058.56, 12-Aug-2015
1256,Revenue,CCHD,Home Care - Elderly - North,Day Care / Social Activities,Mrs B Kimber -  CM2000,349.44, 14-Aug-2015
1257,Revenue,CCHD,Home Care - Elderly - North,Other Small Contracts,Mrs B Kimber -  CM2000,5116.8, 14-Aug-2015
1258,Revenue,CCHD,Home Care - Elderly - North,Day Care / Social Activities,NAS Services Limited,862.78, 28-Aug-2015
1259,Revenue,CCHD,Home Care - Elderly - North,Supported Living,NAS Services Limited,57.84, 28-Aug-2015
1260,Revenue,CCHD,Home Care - Elderly - North,Day Care / Social Activities,NAS Services Limited,959.18, 28-Aug-2015
1261,Revenue,CCHD,Home Care - Elderly - North,Other Small Contracts,NAS Services Limited,19.28, 28-Aug-2015
1262,Revenue,CCHD,Home Care - Elderly - North,Supported Living,NAS Services Limited,327.76, 28-Aug-2015
1263,Revenue,CCHD,Home Care - Elderly - North,Other Small Contracts,Nestor T/A Allied Healthcare,7988.75, 04-Aug-2015
1264,Revenue,CCHD,Home Care - Elderly - North,Other Small Contracts,Nestor T/A Allied Healthcare,7892.5, 12-Aug-2015
1265,Revenue,CCHD,Home Care - Elderly - North,Other Small Contracts,Nestor T/A Allied Healthcare,7904.05, 14-Aug-2015
1266,Revenue,CCHD,Home Care - Elderly - North,Day Care / Social Activities,Network Health & Social Care,31.04, 04-Aug-2015
1267,Revenue,CCHD,Home Care - Elderly - North,Other Small Contracts,Network Health & Social Care,2052.52, 04-Aug-2015
1268,Revenue,CCHD,Home Care - Elderly - North,Other Small Contracts,Nursing Solutions Limited,535.95, 04-Aug-2015
1269,Revenue,CCHD,Home Care - Elderly - North,Other Small Contracts,Nursing Solutions Limited,528.01, 04-Aug-2015
1270,Revenue,CCHD,Home Care - Elderly - North,Other Small Contracts,Nursing Solutions Limited,555.8, 04-Aug-2015
1271,Revenue,CCHD,Home Care - Elderly - North,Other Small Contracts,Nursing Solutions Limited,559.77, 21-Aug-2015
1272,Revenue,CCHD,Home Care - Elderly - North,Other Small Contracts,Nursing Solutions Limited,563.74, 21-Aug-2015
1273,Revenue,CCHD,Home Care - Elderly - North,Other Small Contracts,Nursing Solutions Limited,591.53, 21-Aug-2015
1274,Revenue,CCHD,Home Care - Elderly - North,Day Care / Social Activities,Premier Homecare Limited,82.98, 07-Aug-2015
1275,Revenue,CCHD,Home Care - Elderly - North,Other Small Contracts,Premier Homecare Limited,15747.76, 07-Aug-2015
1276,Revenue,CCHD,Home Care - Elderly - North,Day Care / Social Activities,Premier Homecare Limited,138.3, 07-Aug-2015
1277,Revenue,CCHD,Home Care - Elderly - North,Other Small Contracts,Premier Homecare Limited,16005.92, 07-Aug-2015
1278,Revenue,CCHD,Home Care - Elderly - North,Day Care / Social Activities,Premier Homecare Limited,138.3, 17-Aug-2015
1279,Revenue,CCHD,Home Care - Elderly - North,Other Small Contracts,Premier Homecare Limited,16052.03, 17-Aug-2015
1280,Revenue,CCHD,Home Care - Elderly - North,Day Care / Social Activities,Premier Homecare Limited,138.3, 21-Aug-2015
1281,Revenue,CCHD,Home Care - Elderly - North,Other Small Contracts,Premier Homecare Limited,15761.59, 21-Aug-2015
1282,Revenue,CCHD,Home Care - Elderly - North,Day Care / Social Activities,Premier Homecare Limited,138.3, 27-Aug-2015
1283,Revenue,CCHD,Home Care - Elderly - North,Other Small Contracts,Premier Homecare Limited,16167.27, 27-Aug-2015
1284,Revenue,CCHD,Home Care - Elderly - North,Other Small Contracts,Prestige Nursing,1439.75, 04-Aug-2015
1285,Revenue,CCHD,Home Care - Elderly - North,Other Small Contracts,Prestige Nursing,1426.46, 04-Aug-2015
1286,Revenue,CCHD,Home Care - Elderly - North,Other Small Contracts,Prestige Nursing,1435.32, 21-Aug-2015
1287,Revenue,CCHD,Home Care - Elderly - North,Other Small Contracts,Prestige Nursing,1435.32, 21-Aug-2015
1288,Revenue,CCHD,Home Care - Elderly - North,Supported Living,Smile Ind Living Support Limited,3060.8, 04-Aug-2015
1289,Revenue,CCHD,Home Care - Elderly - North,Supported Living,Smile Ind Living Support Limited,3060.8, 04-Aug-2015
1290,Revenue,CCHD,Home Care - Elderly - North,Supported Living,Smile Ind Living Support Limited,3060.8, 04-Aug-2015
1291,Revenue,CCHD,Home Care - Elderly - North,Day Care / Social Activities,Smile Independent Living Support Limited,448.32, 04-Aug-2015
1292,Revenue,CCHD,Home Care - Elderly - North,Supported Living,Smile Independent Living Support Limited,210.15, 04-Aug-2015
1293,Revenue,CCHD,Home Care - Elderly - North,Day Care / Social Activities,Smile Independent Living Support Limited,448.32, 04-Aug-2015
1294,Revenue,CCHD,Home Care - Elderly - North,Supported Living,Smile Independent Living Support Limited,210.15, 04-Aug-2015
1295,Revenue,CCHD,Home Care - Elderly - North,Day Care / Social Activities,Smile Independent Living Support Limited,751.87, 21-Aug-2015
1296,Revenue,CCHD,Home Care - Elderly - North,Supported Living,Smile Independent Living Support Limited,210.15, 21-Aug-2015
1297,Revenue,CCHD,Home Care - Elderly - North,Day Care / Social Activities,Smile Independent Living Support Limited,737.86, 21-Aug-2015
1298,Revenue,CCHD,Home Care - Elderly - North,Supported Living,Smile Independent Living Support Limited,210.15, 21-Aug-2015
1299,Revenue,CCHD,Home Care - Elderly - North,Day Care / Social Activities,Smile Independent Living Support Limited,742.53, 26-Aug-2015
1300,Revenue,CCHD,Home Care - Elderly - North,Supported Living,Smile Independent Living Support Limited,210.15, 26-Aug-2015
1301,Revenue,CCHD,Home Care - Elderly - North,Day Care / Social Activities,The Ann Coleman Centre,2301.6, 04-Aug-2015
1302,Revenue,CCHD,Home Care - Elderly - North,Day Care / Social Activities,The Ann Coleman Centre,3378.2, 04-Aug-2015
1303,Revenue,CCHD,Home Care - Elderly - North,Day Care / Social Activities,The Brandon Trust,948.24, 04-Aug-2015
1304,Revenue,CCHD,Home Care - Elderly - North,Other Small Contracts,The Brandon Trust,245.84, 04-Aug-2015
1305,Revenue,CCHD,Home Care - Elderly - North,Supported Living,The Brandon Trust,2051.84, 04-Aug-2015
1306,Revenue,CCHD,Home Care - Elderly - North,Day Care / Social Activities,The Brandon Trust,913.12, 12-Aug-2015
1307,Revenue,CCHD,Home Care - Elderly - North,Other Small Contracts,The Brandon Trust,193.16, 12-Aug-2015
1308,Revenue,CCHD,Home Care - Elderly - North,Supported Living,The Brandon Trust,2051.84, 12-Aug-2015
1309,Revenue,CCHD,Home Care - Elderly - North,Day Care / Social Activities,The Brandon Trust,623.38, 14-Aug-2015
1310,Revenue,CCHD,Home Care - Elderly - North,Other Small Contracts,The Brandon Trust,140.48, 14-Aug-2015
1311,Revenue,CCHD,Home Care - Elderly - North,Supported Living,The Brandon Trust,1955.36, 14-Aug-2015
1312,Revenue,CCHD,Home Care - Elderly - North,Day Care / Social Activities,The Brandon Trust,623.38, 20-Aug-2015
1313,Revenue,CCHD,Home Care - Elderly - North,Other Small Contracts,The Brandon Trust,140.48, 20-Aug-2015
1314,Revenue,CCHD,Home Care - Elderly - North,Supported Living,The Brandon Trust,1939.28, 20-Aug-2015
1315,Revenue,CCHD,Home Care - Elderly - North,Day Care / Social Activities,The Brandon Trust,61.46, 27-Aug-2015
1316,Revenue,CCHD,Home Care - Elderly - North,Other Small Contracts,The Brandon Trust,250.23, 27-Aug-2015
1317,Revenue,CCHD,Home Care - Elderly - North,Supported Living,The Brandon Trust,1939.28, 27-Aug-2015
1318,Revenue,CCHD,Home Care - Elderly - North,Day Care / Social Activities,The Cottage,660.72, 04-Aug-2015
1319,Revenue,CCHD,Home Care - Elderly - North,Day Care / Social Activities,The Cottage,540.72, 04-Aug-2015
1320,Revenue,CCHD,Home Care - Elderly - North,Supported Living,The Hatch Camphill Community,2038.56, 04-Aug-2015
1321,Revenue,CCHD,Home Care - Elderly - North,Supported Living,The Hatch Camphill Community,2162.6, 04-Aug-2015
1322,Revenue,CCHD,Home Care - Elderly - North,Supported Living,The Hatch Camphill Community,1224.92, 04-Aug-2015
1323,Revenue,CCHD,Home Care - Elderly - North,Supported Living,The Hatch Camphill Community,2322.4, 04-Aug-2015
1324,Revenue,CCHD,Home Care - Elderly - North,Supported Living,The Hatch Camphill Community,2309.76, 04-Aug-2015
1325,Revenue,CCHD,Home Care - Elderly - North,Supported Living,The Hatch Camphill Community,2283.28, 04-Aug-2015
1326,Revenue,CCHD,Home Care - Elderly - North,Supported Living,The Hatch Camphill Community,1815.28, 04-Aug-2015
1327,Revenue,CCHD,Home Care - Elderly - North,Supported Living,The Hatch Camphill Community,2078.52, 04-Aug-2015
1328,Revenue,CCHD,Home Care - Elderly - North,Supported Living,The Hatch Camphill Community,1893.52, 04-Aug-2015
1329,Revenue,CCHD,Home Care - Elderly - North,Supported Living,The Hatch Camphill Community,1716.88, 04-Aug-2015
1330,Revenue,CCHD,Home Care - Elderly - North,Supported Living,The Hatch Camphill Community,2080.6, 04-Aug-2015
1331,Revenue,CCHD,Home Care - Elderly - North,Supported Living,The Hatch Camphill Community,1272.88, 04-Aug-2015
1332,Revenue,CCHD,Home Care - Elderly - North,Supported Living,The Hatch Camphill Community,1859.84, 04-Aug-2015
1333,Revenue,CCHD,Home Care - Elderly - North,Supported Living,The Hatch Camphill Community,1583.16, 04-Aug-2015
1334,Revenue,CCHD,Home Care - Elderly - North,Supported Living,The Hatch Camphill Community,1666.44, 04-Aug-2015
1335,Revenue,CCHD,Home Care - Elderly - North,Supported Living,The Hatch Camphill Community,1288, 04-Aug-2015
1336,Revenue,CCHD,Home Care - Elderly - North,Supported Living,The Hatch Camphill Community,2078.52, 04-Aug-2015
1337,Revenue,CCHD,Home Care - Elderly - North,Supported Living,The Hatch Camphill Community,2044.88, 04-Aug-2015
1338,Revenue,CCHD,Home Care - Elderly - North,Day Care / Social Activities,The Manor House,1396.12, 04-Aug-2015
1339,Revenue,CCHD,Home Care - Elderly - North,Day Care / Social Activities,The Manor House,1703.4, 04-Aug-2015
1340,Revenue,CCHD,Home Care - Elderly - North,Day Care / Social Activities,The Manor House,1208.42, 04-Aug-2015
1341,Revenue,CCHD,Home Care - Elderly - North,Day Care / Social Activities,The Old School House,574.4, 04-Aug-2015
1342,Revenue,CCHD,Home Care - Elderly - North,Day Care / Social Activities,The Old School House,861.6, 04-Aug-2015
1343,Revenue,CCHD,Home Care - Elderly - North,Day Care / Social Activities,The Old School House,574.4, 04-Aug-2015
1344,Revenue,CCHD,Home Care - Elderly - North,Supported Living,Willowbank,955.48, 04-Aug-2015
1345,Revenue,CCHD,Home Care - Elderly - North,Supported Living,Willowbank,1577.8, 04-Aug-2015
1346,Revenue,CCHD,Home Care - Elderly - North,Supported Living,Willowbank,1304.8, 04-Aug-2015
1347,Revenue,CCHD,Home Care - Elderly - North,Supported Living,Willowbank,1433.2, 04-Aug-2015
1348,Revenue,CCHD,Home Care - Elderly - North,Supported Living,Willowbank,2933.8, 04-Aug-2015
1349,Revenue,CCHD,Home Care - Elderly - North,Supported Living,Willowbank,3821.92, 04-Aug-2015
1350,Revenue,CCHD,Home Care - Elderly - North,Supported Living,Willowbank,11314.94, 04-Aug-2015
1351,Revenue,CCHD,Home Care - Elderly - North,Supported Living,Willowbank,3481.52, 04-Aug-2015
1352,Revenue,CCHD,Home Care - Elderly - North,Supported Living,Willowbank,2736.88, 04-Aug-2015
1353,Revenue,CCHD,Home Care - Elderly - South,Day Care / Social Activities,3 Trees Community Support Ltd,90.4, 03-Aug-2015
1354,Revenue,CCHD,Home Care - Elderly - South,Day Care / Social Activities,3 Trees Community Support Ltd,90.4, 04-Aug-2015
1355,Revenue,CCHD,Home Care - Elderly - South,Day Care / Social Activities,3 Trees Community Support Ltd,198.88, 24-Aug-2015
1356,Revenue,CCHD,Home Care - Elderly - South,Day Care / Social Activities,Age Concern,2869, 04-Aug-2015
1357,Revenue,CCHD,Home Care - Elderly - South,Other Small Contracts,Agincare Chippenham,1859.55, 04-Aug-2015
1358,Revenue,CCHD,Home Care - Elderly - South,Other Small Contracts,Agincare Chippenham,1863.4, 21-Aug-2015
1359,Revenue,CCHD,Home Care - Elderly - South,Other Small Contracts,Agincare Chippenham,1905.75, 25-Aug-2015
1360,Revenue,CCHD,Home Care - Elderly - South,Other Small Contracts,Agincare Chippenham,1828.75, 25-Aug-2015
1361,Revenue,CCHD,Home Care - Elderly - South,Other Small Contracts,Agincare UK Limited,281.05, 04-Aug-2015
1362,Revenue,CCHD,Home Care - Elderly - South,Other Small Contracts,Agincare UK Limited,292.6, 04-Aug-2015
1363,Revenue,CCHD,Home Care - Elderly - South,Other Small Contracts,Agincare UK Nutfield,53.9, 04-Aug-2015
1364,Revenue,CCHD,Home Care - Elderly - South,Other Small Contracts,Agincare UK Nutfield,53.9, 21-Aug-2015
1365,Revenue,CCHD,Home Care - Elderly - South,Other Small Contracts,Agincare UK Nutfield,53.9, 21-Aug-2015
1366,Revenue,CCHD,Home Care - Elderly - South,Other Small Contracts,Agincare UK Nutfield,53.9, 25-Aug-2015
1367,Revenue,CCHD,Home Care - Elderly - South,Other Small Contracts,AliMo Care Ltd,1362.68, 05-Aug-2015
1368,Revenue,CCHD,Home Care - Elderly - South,Other Small Contracts,AliMo Care Ltd,1249.82, 05-Aug-2015
1369,Revenue,CCHD,Home Care - Elderly - South,Other Small Contracts,AliMo Care Ltd,1245.64, 05-Aug-2015
1370,Revenue,CCHD,Home Care - Elderly - South,Other Small Contracts,AliMo Care Ltd,1379.4, 12-Aug-2015
1371,Revenue,CCHD,Home Care - Elderly - South,Other Small Contracts,AliMo Care Ltd,1429.56, 20-Aug-2015
1372,Revenue,CCHD,Home Care - Elderly - South,Other Small Contracts,AliMo Care Ltd,1371.04, 26-Aug-2015
1373,Revenue,CCHD,Home Care - Elderly - South,Day Care / Social Activities,Aspirations Support Bristol Limited,4485.14, 25-Aug-2015
1374,Revenue,CCHD,Home Care - Elderly - South,Other Small Contracts,Aspirations Support Bristol Limited,3767.61, 25-Aug-2015
1375,Revenue,CCHD,Home Care - Elderly - South,Supported Living,Aspirations Support Bristol Limited,5451.81, 25-Aug-2015
1376,Revenue,CCHD,Home Care - Elderly - South,Day Care / Social Activities,Aspirations Support Bristol Limited,4318.27, 27-Aug-2015
1377,Revenue,CCHD,Home Care - Elderly - South,Other Small Contracts,Aspirations Support Bristol Limited,3579.07, 27-Aug-2015
1378,Revenue,CCHD,Home Care - Elderly - South,Supported Living,Aspirations Support Bristol Limited,5203.7, 27-Aug-2015
1379,Revenue,CCHD,Home Care - Elderly - South,Day Care / Social Activities,Aspirations Support Bristol Limited,4558.4, 25-Aug-2015
1380,Revenue,CCHD,Home Care - Elderly - South,Other Small Contracts,Aspirations Support Bristol Limited,3484.8, 25-Aug-2015
1381,Revenue,CCHD,Home Care - Elderly - South,Supported Living,Aspirations Support Bristol Limited,5315.46, 25-Aug-2015
1382,Revenue,CCHD,Home Care - Elderly - South,Day Care / Social Activities,Aspirations Support Bristol Limited,4562.47, 27-Aug-2015
1383,Revenue,CCHD,Home Care - Elderly - South,Other Small Contracts,Aspirations Support Bristol Limited,3272.94, 27-Aug-2015
1384,Revenue,CCHD,Home Care - Elderly - South,Supported Living,Aspirations Support Bristol Limited,5494.24, 27-Aug-2015
1385,Revenue,CCHD,Home Care - Elderly - South,Other Small Contracts,Bluebird Care (South Gloucestershire),69.3, 27-Aug-2015
1386,Revenue,CCHD,Home Care - Elderly - South,Other Small Contracts,Bluebird Care (South Gloucestershire),54.45, 27-Aug-2015
1387,Revenue,CCHD,Home Care - Elderly - South,Other Small Contracts,Bluebird Care (South Gloucestershire),69.3, 28-Aug-2015
1388,Revenue,CCHD,Home Care - Elderly - South,Other Small Contracts,Bristol Houses UK Limited,1175.64, 26-Aug-2015
1389,Revenue,CCHD,Home Care - Elderly - South,Day Care / Social Activities,Britannia House,924.8, 04-Aug-2015
1390,Revenue,CCHD,Home Care - Elderly - South,Day Care / Social Activities,Britannia House,693.6, 04-Aug-2015
1391,Revenue,CCHD,Home Care - Elderly - South,Day Care / Social Activities,Britannia House,2023, 04-Aug-2015
1392,Revenue,CCHD,Home Care - Elderly - South,Day Care / Social Activities,Britannia House,1156, 04-Aug-2015
1393,Revenue,CCHD,Home Care - Elderly - South,Day Care / Social Activities,Britannia House,693.6, 04-Aug-2015
1394,Revenue,CCHD,Home Care - Elderly - South,Day Care / Social Activities,Britannia House,1213.8, 04-Aug-2015
1395,Revenue,CCHD,Home Care - Elderly - South,Day Care / Social Activities,Britannia House,693.6, 04-Aug-2015
1396,Revenue,CCHD,Home Care - Elderly - South,Day Care / Social Activities,Britannia House,693.6, 04-Aug-2015
1397,Revenue,CCHD,Home Care - Elderly - South,Other Small Contracts,Brunelcare,2804.27, 07-Aug-2015
1398,Revenue,CCHD,Home Care - Elderly - South,Other Small Contracts,Brunelcare,2738.19, 07-Aug-2015
1399,Revenue,CCHD,Home Care - Elderly - South,Supported Living,Camphill Communities Thornbury Limited,220.64, 05-Aug-2015
1400,Revenue,CCHD,Home Care - Elderly - South,Supported Living,Camphill Communities Thornbury Limited,220.64, 12-Aug-2015
1401,Revenue,CCHD,Home Care - Elderly - South,Supported Living,Camphill Communities Thornbury Limited,224.58, 21-Aug-2015
1402,Revenue,CCHD,Home Care - Elderly - South,Supported Living,Camphill Communities Thornbury Limited,220.64, 28-Aug-2015
1403,Revenue,CCHD,Home Care - Elderly - South,Other Small Contracts,Care 1st Homecare,4301, 07-Aug-2015
1404,Revenue,CCHD,Home Care - Elderly - South,Other Small Contracts,Care 1st Homecare,4738.75, 07-Aug-2015
1405,Revenue,CCHD,Home Care - Elderly - South,Other Small Contracts,Care 1st Homecare,5070.25, 17-Aug-2015
1406,Revenue,CCHD,Home Care - Elderly - South,Other Small Contracts,Care 1st Homecare,5138.25, 17-Aug-2015
1407,Revenue,CCHD,Home Care - Elderly - South,Other Small Contracts,Care Horizons Limited,342, 25-Aug-2015
1408,Revenue,CCHD,Home Care - Elderly - South,Other Small Contracts,Care Horizons Limited,342, 25-Aug-2015
1409,Revenue,CCHD,Home Care - Elderly - South,Other Small Contracts,Care Horizons Limited,342, 25-Aug-2015
1410,Revenue,CCHD,Home Care - Elderly - South,Other Small Contracts,Care Horizons Limited,342, 25-Aug-2015
1411,Revenue,CCHD,Home Care - Elderly - South,Other Small Contracts,Care Horizons Limited,346.5, 25-Aug-2015
1412,Revenue,CCHD,Home Care - Elderly - South,Other Small Contracts,Care UK,3966.03, 04-Aug-2015
1413,Revenue,CCHD,Home Care - Elderly - South,Other Small Contracts,Care UK,3838.99, 04-Aug-2015
1414,Revenue,CCHD,Home Care - Elderly - South,Other Small Contracts,Care UK,4021.61, 14-Aug-2015
1415,Revenue,CCHD,Home Care - Elderly - South,Other Small Contracts,Care UK,3779.44, 14-Aug-2015
1416,Revenue,CCHD,Home Care - Elderly - South,Other Small Contracts,Care UK,3676.22, 25-Aug-2015
1417,Revenue,CCHD,Home Care - Elderly - South,Other Small Contracts,Carers R Us (Bristol) Limited,1135.24, 12-Aug-2015
1418,Revenue,CCHD,Home Care - Elderly - South,Other Small Contracts,Carers R Us (Bristol) Limited,1026.16, 12-Aug-2015
1419,Revenue,CCHD,Home Care - Elderly - South,Other Small Contracts,Carers R Us (Bristol) Limited,868.6, 21-Aug-2015
1420,Revenue,CCHD,Home Care - Elderly - South,Other Small Contracts,Carers R Us (Bristol) Limited,993.84, 25-Aug-2015
1421,Revenue,CCHD,Home Care - Elderly - South,Other Small Contracts,Cherish Able Care Limited,6367.98, 06-Aug-2015
1422,Revenue,CCHD,Home Care - Elderly - South,Other Small Contracts,Cherish Able Care Limited,6317.34, 19-Aug-2015
1423,Revenue,CCHD,Home Care - Elderly - South,Other Small Contracts,Cherish Able Care Limited,6047.26, 21-Aug-2015
1424,Revenue,CCHD,Home Care - Elderly - South,Other Small Contracts,Cherish Able Care Limited,5405.82, 28-Aug-2015
1425,Revenue,CCHD,Home Care - Elderly - South,Other Small Contracts,Cleeve Care Group,509.76, 14-Aug-2015
1426,Revenue,CCHD,Home Care - Elderly - South,Supported Living,Design House,2576.12, 04-Aug-2015
1427,Revenue,CCHD,Home Care - Elderly - South,Supported Living,Design House,3033.92, 04-Aug-2015
1428,Revenue,CCHD,Home Care - Elderly - South,Supported Living,Design House,3099.04, 04-Aug-2015
1429,Revenue,CCHD,Home Care - Elderly - South,Supported Living,Design House,2695.52, 04-Aug-2015
1430,Revenue,CCHD,Home Care - Elderly - South,Supported Living,Design House,2186.24, 04-Aug-2015
1431,Revenue,CCHD,Home Care - Elderly - South,Supported Living,Design House,3972.52, 04-Aug-2015
1432,Revenue,CCHD,Home Care - Elderly - South,Supported Living,Design House,2608.68, 04-Aug-2015
1433,Revenue,CCHD,Home Care - Elderly - South,Supported Living,Design House,2657.52, 04-Aug-2015
1434,Revenue,CCHD,Home Care - Elderly - South,Supported Living,Design House,1315.84, 04-Aug-2015
1435,Revenue,CCHD,Home Care - Elderly - South,Day Care / Social Activities,Dhek Bhal,249.9, 24-Aug-2015
1436,Revenue,CCHD,Home Care - Elderly - South,Other Small Contracts,Dhek Bhal,196, 24-Aug-2015
1437,Revenue,CCHD,Home Care - Elderly - South,Day Care / Social Activities,DoCare Ltd,40.24, 04-Aug-2015
1438,Revenue,CCHD,Home Care - Elderly - South,Other Small Contracts,DoCare Ltd,1835.95, 04-Aug-2015
1439,Revenue,CCHD,Home Care - Elderly - South,Day Care / Social Activities,DoCare Ltd,40.24, 04-Aug-2015
1440,Revenue,CCHD,Home Care - Elderly - South,Other Small Contracts,DoCare Ltd,2062.31, 04-Aug-2015
1441,Revenue,CCHD,Home Care - Elderly - South,Day Care / Social Activities,DoCare Ltd,40.24, 25-Aug-2015
1442,Revenue,CCHD,Home Care - Elderly - South,Other Small Contracts,DoCare Ltd,2012, 25-Aug-2015
1443,Revenue,CCHD,Home Care - Elderly - South,Day Care / Social Activities,DoCare Ltd,40.24, 25-Aug-2015
1444,Revenue,CCHD,Home Care - Elderly - South,Other Small Contracts,DoCare Ltd,2022.07, 25-Aug-2015
1445,Revenue,CCHD,Home Care - Elderly - South,Day Care / Social Activities,DoCare Ltd,40.24, 25-Aug-2015
1446,Revenue,CCHD,Home Care - Elderly - South,Other Small Contracts,DoCare Ltd,2102.54, 25-Aug-2015
1447,Revenue,CCHD,Home Care - Elderly - South,Day Care / Social Activities,Easton Community Centre,526.08, 04-Aug-2015
1448,Revenue,CCHD,Home Care - Elderly - South,Day Care / Social Activities,Easton Community Centre,526.08, 04-Aug-2015
1449,Revenue,CCHD,Home Care - Elderly - South,Day Care / Social Activities,Eclipse Office Park,743.04, 04-Aug-2015
1450,Revenue,CCHD,Home Care - Elderly - South,Day Care / Social Activities,Eclipse Office Park,619.2, 04-Aug-2015
1451,Revenue,CCHD,Home Care - Elderly - South,Day Care / Social Activities,Eclipse Office Park,866.88, 04-Aug-2015
1452,Revenue,CCHD,Home Care - Elderly - South,Day Care / Social Activities,Eclipse Office Park,743.04, 04-Aug-2015
1453,Revenue,CCHD,Home Care - Elderly - South,Day Care / Social Activities,Eclipse Office Park,866.88, 04-Aug-2015
1454,Revenue,CCHD,Home Care - Elderly - South,Day Care / Social Activities,Eclipse Office Park,1238.4, 04-Aug-2015
1455,Revenue,CCHD,Home Care - Elderly - South,Day Care / Social Activities,Eclipse Office Park,743.04, 04-Aug-2015
1456,Revenue,CCHD,Home Care - Elderly - South,Day Care / Social Activities,Eclipse Office Park,866.88, 04-Aug-2015
1457,Revenue,CCHD,Home Care - Elderly - South,Day Care / Social Activities,Eclipse Office Park,990.72, 04-Aug-2015
1458,Revenue,CCHD,Home Care - Elderly - South,Day Care / Social Activities,Elite Home Care Ltd,35.36, 03-Aug-2015
1459,Revenue,CCHD,Home Care - Elderly - South,Other Small Contracts,Elite Home Care Ltd,6797.96, 03-Aug-2015
1460,Revenue,CCHD,Home Care - Elderly - South,Day Care / Social Activities,Elite Home Care Ltd,35.36, 03-Aug-2015
1461,Revenue,CCHD,Home Care - Elderly - South,Other Small Contracts,Elite Home Care Ltd,6767.02, 03-Aug-2015
1462,Revenue,CCHD,Home Care - Elderly - South,Day Care / Social Activities,Elite Home Care Ltd,35.36, 03-Aug-2015
1463,Revenue,CCHD,Home Care - Elderly - South,Other Small Contracts,Elite Home Care Ltd,6506.24, 03-Aug-2015
1464,Revenue,CCHD,Home Care - Elderly - South,Day Care / Social Activities,Elite Home Care Ltd,39.78, 21-Aug-2015
1465,Revenue,CCHD,Home Care - Elderly - South,Other Small Contracts,Elite Home Care Ltd,6789.12, 21-Aug-2015
1466,Revenue,CCHD,Home Care - Elderly - South,Day Care / Social Activities,Elite Home Care Ltd,35.36, 21-Aug-2015
1467,Revenue,CCHD,Home Care - Elderly - South,Other Small Contracts,Elite Home Care Ltd,6780.28, 21-Aug-2015
1468,Revenue,CCHD,Home Care - Elderly - South,Day Care / Social Activities,Elite Home Care Ltd,35.36, 21-Aug-2015
1469,Revenue,CCHD,Home Care - Elderly - South,Other Small Contracts,Elite Home Care Ltd,6426.68, 21-Aug-2015
1470,Revenue,CCHD,Home Care - Elderly - South,Other Small Contracts,Everycare (Bristol) Ltd,3994.7, 03-Aug-2015
1471,Revenue,CCHD,Home Care - Elderly - South,Other Small Contracts,Everycare (Bristol) Ltd,3788.3, 03-Aug-2015
1472,Revenue,CCHD,Home Care - Elderly - South,Other Small Contracts,Everycare (Bristol) Ltd,3741, 03-Aug-2015
1473,Revenue,CCHD,Home Care - Elderly - South,Other Small Contracts,Everycare (Bristol) Ltd,3586.2, 17-Aug-2015
1474,Revenue,CCHD,Home Care - Elderly - South,Other Small Contracts,Everycare (Bristol) Ltd,3784, 17-Aug-2015
1475,Revenue,CCHD,Home Care - Elderly - South,Other Small Contracts,Firstpoint Homecare Ltd,1976.12, 03-Aug-2015
1476,Revenue,CCHD,Home Care - Elderly - South,Day Care / Social Activities,Firstpoint Homecare Ltd,35.01, 03-Aug-2015
1477,Revenue,CCHD,Home Care - Elderly - South,Other Small Contracts,Firstpoint Homecare Ltd,1952.78, 03-Aug-2015
1478,Revenue,CCHD,Home Care - Elderly - South,Other Small Contracts,Firstpoint Homecare Ltd,2151.17, 07-Aug-2015
1479,Revenue,CCHD,Home Care - Elderly - South,Other Small Contracts,Firstpoint Homecare Ltd,2127.83, 14-Aug-2015
1480,Revenue,CCHD,Home Care - Elderly - South,Other Small Contracts,Firstpoint Homecare Ltd,2174.51, 17-Aug-2015
1481,Revenue,CCHD,Home Care - Elderly - South,Day Care / Social Activities,Headway Bristol,483.92, 05-Aug-2015
1482,Revenue,CCHD,Home Care - Elderly - South,Day Care / Social Activities,Headway Bristol,504.96, 17-Aug-2015
1483,Revenue,CCHD,Home Care - Elderly - South,Day Care / Social Activities,Headway Bristol,483.92, 17-Aug-2015
1484,Revenue,CCHD,Home Care - Elderly - South,Day Care / Social Activities,Headway Bristol,568.08, 25-Aug-2015
1485,Revenue,CCHD,Home Care - Elderly - South,Day Care / Social Activities,Headway Bristol,483.92, 28-Aug-2015
1486,Revenue,CCHD,Home Care - Elderly - South,Day Care / Social Activities,Helping Hands Homecare,160.31, 04-Aug-2015
1487,Revenue,CCHD,Home Care - Elderly - South,Other Small Contracts,Helping Hands Homecare,1642.2, 04-Aug-2015
1488,Revenue,CCHD,Home Care - Elderly - South,Day Care / Social Activities,Helping Hands Homecare,194.04, 17-Aug-2015
1489,Revenue,CCHD,Home Care - Elderly - South,Other Small Contracts,Helping Hands Homecare,1647.36, 17-Aug-2015
1490,Revenue,CCHD,Home Care - Elderly - South,Day Care / Social Activities,Helping Hands Homecare,194.04, 07-Aug-2015
1491,Revenue,CCHD,Home Care - Elderly - South,Other Small Contracts,Helping Hands Homecare,1698.84, 07-Aug-2015
1492,Revenue,CCHD,Home Care - Elderly - South,Day Care / Social Activities,Helping Hands Homecare,190.08, 07-Aug-2015
1493,Revenue,CCHD,Home Care - Elderly - South,Other Small Contracts,Helping Hands Homecare,1631.52, 07-Aug-2015
1494,Revenue,CCHD,Home Care - Elderly - South,Day Care / Social Activities,Helping Hands Homecare,186.12, 06-Aug-2015
1495,Revenue,CCHD,Home Care - Elderly - South,Other Small Contracts,Helping Hands Homecare,1635.48, 06-Aug-2015
1496,Revenue,CCHD,Home Care - Elderly - South,Other Small Contracts,Homecare 4U,1219.04, 04-Aug-2015
1497,Revenue,CCHD,Home Care - Elderly - South,Other Small Contracts,Homecare 4U,1227.06, 04-Aug-2015
1498,Revenue,CCHD,Home Care - Elderly - South,Other Small Contracts,Homecare 4U,1174.93, 04-Aug-2015
1499,Revenue,CCHD,Home Care - Elderly - South,Other Small Contracts,Homecare 4U,1182.95, 12-Aug-2015
1500,Revenue,CCHD,Home Care - Elderly - South,Other Small Contracts,Homecare 4U,1162.9, 12-Aug-2015
1501,Revenue,CCHD,Home Care - Elderly - South,Private & Voluntary Home Care,Housing 21,532.02, 07-Aug-2015
1502,Revenue,CCHD,Home Care - Elderly - South,Supported Living,Julia Simone- Supp. Ind.,1178.36, 04-Aug-2015
1503,Revenue,CCHD,Home Care - Elderly - South,Other Small Contracts,Kensington Community Care,373.86, 14-Aug-2015
1504,Revenue,CCHD,Home Care - Elderly - South,Other Small Contracts,Kensington Community Care,747.72, 12-Aug-2015
1505,Revenue,CCHD,Home Care - Elderly - South,Other Small Contracts,Kumari Care Limited,2592.33, 04-Aug-2015
1506,Revenue,CCHD,Home Care - Elderly - South,Other Small Contracts,Kumari Care Limited,2588.42, 12-Aug-2015
1507,Revenue,CCHD,Home Care - Elderly - South,Day Care / Social Activities,Mears Care,97.5, 04-Aug-2015
1508,Revenue,CCHD,Home Care - Elderly - South,Other Small Contracts,Mears Care,1041.3, 04-Aug-2015
1509,Revenue,CCHD,Home Care - Elderly - South,Day Care / Social Activities,Mears Care,81.9, 04-Aug-2015
1510,Revenue,CCHD,Home Care - Elderly - South,Other Small Contracts,Mears Care,1049.1, 04-Aug-2015
1511,Revenue,CCHD,Home Care - Elderly - South,Day Care / Social Activities,Mears Care,89.7, 25-Aug-2015
1512,Revenue,CCHD,Home Care - Elderly - South,Other Small Contracts,Mears Care,787.8, 25-Aug-2015
1513,Revenue,CCHD,Home Care - Elderly - South,Other Small Contracts,Mears Care,834.6, 25-Aug-2015
1514,Revenue,CCHD,Home Care - Elderly - South,Private & Voluntary Home Care,Mears Care,49219, 28-Aug-2015
1515,Revenue,CCHD,Home Care - Elderly - South,Other Small Contracts,Medacs Home Care,364.62, 24-Aug-2015
1516,Revenue,CCHD,Home Care - Elderly - South,Other Small Contracts,Medacs Home Care,354, 24-Aug-2015
1517,Revenue,CCHD,Home Care - Elderly - South,Other Small Contracts,Medacs Home Care,357.54, 24-Aug-2015
1518,Revenue,CCHD,Home Care - Elderly - South,Other Small Contracts,Medacs Home Care,346.92, 24-Aug-2015
1519,Revenue,CCHD,Home Care - Elderly - South,Other Small Contracts,Medacs Home Care,336.3, 24-Aug-2015
1520,Revenue,CCHD,Home Care - Elderly - South,Other Small Contracts,Medacs Home Care,346.92, 24-Aug-2015
1521,Revenue,CCHD,Home Care - Elderly - South,Supported Living,Mike Durrant - Cherry Orchards,1394.88, 04-Aug-2015
1522,Revenue,CCHD,Home Care - Elderly - South,Supported Living,Milestones - Unit 10,18606.4, 04-Aug-2015
1523,Revenue,CCHD,Home Care - Elderly - South,Supported Living,Milestones - Unit 10,3631.76, 04-Aug-2015
1524,Revenue,CCHD,Home Care - Elderly - South,Supported Living,Milestones - Unit 10,3631.76, 04-Aug-2015
1525,Revenue,CCHD,Home Care - Elderly - South,Supported Living,Milestones - Unit 10,3643.6, 04-Aug-2015
1526,Revenue,CCHD,Home Care - Elderly - South,Supported Living,Milestones - Unit 10,2317.68, 04-Aug-2015
1527,Revenue,CCHD,Home Care - Elderly - South,Supported Living,Milestones - Unit 10,2232.52, 04-Aug-2015
1528,Revenue,CCHD,Home Care - Elderly - South,Supported Living,Milestones - Unit 10,2875.27, 04-Aug-2015
1529,Revenue,CCHD,Home Care - Elderly - South,Supported Living,Milestones - Unit 10,2189.32, 04-Aug-2015
1530,Revenue,CCHD,Home Care - Elderly - South,Day Care / Social Activities,Milestones Homecare & Dementia Service,27.51, 17-Aug-2015
1531,Revenue,CCHD,Home Care - Elderly - South,Other Small Contracts,Milestones Homecare & Dementia Service,1654.53, 17-Aug-2015
1532,Revenue,CCHD,Home Care - Elderly - South,Day Care / Social Activities,Milestones Homecare & Dementia Service,31.44, 07-Aug-2015
1533,Revenue,CCHD,Home Care - Elderly - South,Other Small Contracts,Milestones Homecare & Dementia Service,1623.09, 07-Aug-2015
1534,Revenue,CCHD,Home Care - Elderly - South,Day Care / Social Activities,Milestones Homecare & Dementia Service,35.37, 17-Aug-2015
1535,Revenue,CCHD,Home Care - Elderly - South,Other Small Contracts,Milestones Homecare & Dementia Service,1744.92, 17-Aug-2015
1536,Revenue,CCHD,Home Care - Elderly - South,Day Care / Social Activities,Milestones Homecare & Dementia Service,31.44, 24-Aug-2015
1537,Revenue,CCHD,Home Care - Elderly - South,Other Small Contracts,Milestones Homecare & Dementia Service,1591.65, 24-Aug-2015
1538,Revenue,CCHD,Home Care - Elderly - South,Day Care / Social Activities,Milestones Supported Living Services,9602.17, 19-Aug-2015
1539,Revenue,CCHD,Home Care - Elderly - South,Other Small Contracts,Milestones Supported Living Services,636.03, 19-Aug-2015
1540,Revenue,CCHD,Home Care - Elderly - South,Supported Living,Milestones Supported Living Services,2306.08, 19-Aug-2015
1541,Revenue,CCHD,Home Care - Elderly - South,Day Care / Social Activities,Milestones Supported Living Services,8260.96, 24-Aug-2015
1542,Revenue,CCHD,Home Care - Elderly - South,Other Small Contracts,Milestones Supported Living Services,653.19, 24-Aug-2015
1543,Revenue,CCHD,Home Care - Elderly - South,Supported Living,Milestones Supported Living Services,2837.94, 24-Aug-2015
1544,Revenue,CCHD,Home Care - Elderly - South,Day Care / Social Activities,Milestones Supported Living Services,8634.35, 27-Aug-2015
1545,Revenue,CCHD,Home Care - Elderly - South,Other Small Contracts,Milestones Supported Living Services,730.68, 27-Aug-2015
1546,Revenue,CCHD,Home Care - Elderly - South,Supported Living,Milestones Supported Living Services,3187.1, 27-Aug-2015
1547,Revenue,CCHD,Home Care - Elderly - South,Day Care / Social Activities,Mrs B Kimber -  CM2000,2064.96, 04-Aug-2015
1548,Revenue,CCHD,Home Care - Elderly - South,Other Small Contracts,Mrs B Kimber -  CM2000,10201.28, 04-Aug-2015
1549,Revenue,CCHD,Home Care - Elderly - South,Supported Living,Mrs B Kimber -  CM2000,33.28, 04-Aug-2015
1550,Revenue,CCHD,Home Care - Elderly - South,Day Care / Social Activities,Mrs B Kimber -  CM2000,2126.4, 12-Aug-2015
1551,Revenue,CCHD,Home Care - Elderly - South,Other Small Contracts,Mrs B Kimber -  CM2000,10168.64, 12-Aug-2015
1552,Revenue,CCHD,Home Care - Elderly - South,Supported Living,Mrs B Kimber -  CM2000,33.28, 12-Aug-2015
1553,Revenue,CCHD,Home Care - Elderly - South,Day Care / Social Activities,Mrs B Kimber -  CM2000,2064.96, 14-Aug-2015
1554,Revenue,CCHD,Home Care - Elderly - South,Other Small Contracts,Mrs B Kimber -  CM2000,9654.72, 14-Aug-2015
1555,Revenue,CCHD,Home Care - Elderly - South,Supported Living,Mrs B Kimber -  CM2000,33.28, 14-Aug-2015
1556,Revenue,CCHD,Home Care - Elderly - South,Day Care / Social Activities,NAS Services Limited,612.14, 28-Aug-2015
1557,Revenue,CCHD,Home Care - Elderly - South,Other Small Contracts,NAS Services Limited,38.56, 28-Aug-2015
1558,Revenue,CCHD,Home Care - Elderly - South,Supported Living,NAS Services Limited,19.28, 28-Aug-2015
1559,Revenue,CCHD,Home Care - Elderly - South,Day Care / Social Activities,NAS Services Limited,612.14, 28-Aug-2015
1560,Revenue,CCHD,Home Care - Elderly - South,Supported Living,NAS Services Limited,28.92, 28-Aug-2015
1561,Revenue,CCHD,Home Care - Elderly - South,Day Care / Social Activities,Nestor T/A Allied Healthcare,69.3, 04-Aug-2015
1562,Revenue,CCHD,Home Care - Elderly - South,Other Small Contracts,Nestor T/A Allied Healthcare,2900.35, 04-Aug-2015
1563,Revenue,CCHD,Home Care - Elderly - South,Day Care / Social Activities,Nestor T/A Allied Healthcare,69.3, 12-Aug-2015
1564,Revenue,CCHD,Home Care - Elderly - South,Other Small Contracts,Nestor T/A Allied Healthcare,2942.94, 12-Aug-2015
1565,Revenue,CCHD,Home Care - Elderly - South,Day Care / Social Activities,Nestor T/A Allied Healthcare,69.3, 14-Aug-2015
1566,Revenue,CCHD,Home Care - Elderly - South,Other Small Contracts,Nestor T/A Allied Healthcare,2777.32, 14-Aug-2015
1567,Revenue,CCHD,Home Care - Elderly - South,Other Small Contracts,Network Health & Social Care,589.76, 04-Aug-2015
1568,Revenue,CCHD,Home Care - Elderly - South,Day Care / Social Activities,Nursing Solutions Limited,79.4, 04-Aug-2015
1569,Revenue,CCHD,Home Care - Elderly - South,Other Small Contracts,Nursing Solutions Limited,3056.9, 04-Aug-2015
1570,Revenue,CCHD,Home Care - Elderly - South,Day Care / Social Activities,Nursing Solutions Limited,79.4, 04-Aug-2015
1571,Revenue,CCHD,Home Care - Elderly - South,Other Small Contracts,Nursing Solutions Limited,2651.96, 04-Aug-2015
1572,Revenue,CCHD,Home Care - Elderly - South,Day Care / Social Activities,Nursing Solutions Limited,87.34, 04-Aug-2015
1573,Revenue,CCHD,Home Care - Elderly - South,Other Small Contracts,Nursing Solutions Limited,3076.75, 04-Aug-2015
1574,Revenue,CCHD,Home Care - Elderly - South,Day Care / Social Activities,Nursing Solutions Limited,111.16, 21-Aug-2015
1575,Revenue,CCHD,Home Care - Elderly - South,Other Small Contracts,Nursing Solutions Limited,3021.17, 21-Aug-2015
1576,Revenue,CCHD,Home Care - Elderly - South,Day Care / Social Activities,Nursing Solutions Limited,55.58, 21-Aug-2015
1577,Revenue,CCHD,Home Care - Elderly - South,Other Small Contracts,Nursing Solutions Limited,3060.87, 21-Aug-2015
1578,Revenue,CCHD,Home Care - Elderly - South,Day Care / Social Activities,Nursing Solutions Limited,83.37, 21-Aug-2015
1579,Revenue,CCHD,Home Care - Elderly - South,Other Small Contracts,Nursing Solutions Limited,2981.47, 21-Aug-2015
1580,Revenue,CCHD,Home Care - Elderly - South,Other Small Contracts,Prestige Nursing,505.02, 04-Aug-2015
1581,Revenue,CCHD,Home Care - Elderly - South,Other Small Contracts,Prestige Nursing,558.18, 04-Aug-2015
1582,Revenue,CCHD,Home Care - Elderly - South,Other Small Contracts,Prestige Nursing,589.19, 21-Aug-2015
1583,Revenue,CCHD,Home Care - Elderly - South,Other Small Contracts,Prestige Nursing,558.18, 21-Aug-2015
1584,Revenue,CCHD,Home Care - Elderly - South,Supported Living,Selborrne House,1820.92, 04-Aug-2015
1585,Revenue,CCHD,Home Care - Elderly - South,Supported Living,Selborrne House,3491.36, 04-Aug-2015
1586,Revenue,CCHD,Home Care - Elderly - South,Supported Living,Selborrne House,3491.36, 04-Aug-2015
1587,Revenue,CCHD,Home Care - Elderly - South,Supported Living,Selborrne House,1820.92, 04-Aug-2015
1588,Revenue,CCHD,Home Care - Elderly - South,Day Care / Social Activities,Smile Independent Living Support Limited,649.13, 04-Aug-2015
1589,Revenue,CCHD,Home Care - Elderly - South,Other Small Contracts,Smile Independent Living Support Limited,252.18, 04-Aug-2015
1590,Revenue,CCHD,Home Care - Elderly - South,Day Care / Social Activities,Smile Independent Living Support Limited,583.75, 04-Aug-2015
1591,Revenue,CCHD,Home Care - Elderly - South,Other Small Contracts,Smile Independent Living Support Limited,168.12, 04-Aug-2015
1592,Revenue,CCHD,Home Care - Elderly - South,Day Care / Social Activities,Smile Independent Living Support Limited,644.46, 21-Aug-2015
1593,Revenue,CCHD,Home Care - Elderly - South,Other Small Contracts,Smile Independent Living Support Limited,205.48, 21-Aug-2015
1594,Revenue,CCHD,Home Care - Elderly - South,Day Care / Social Activities,Smile Independent Living Support Limited,644.46, 21-Aug-2015
1595,Revenue,CCHD,Home Care - Elderly - South,Other Small Contracts,Smile Independent Living Support Limited,158.78, 21-Aug-2015
1596,Revenue,CCHD,Home Care - Elderly - South,Day Care / Social Activities,Smile Independent Living Support Limited,415.63, 26-Aug-2015
1597,Revenue,CCHD,Home Care - Elderly - South,Other Small Contracts,Smile Independent Living Support Limited,317.56, 26-Aug-2015
1598,Revenue,CCHD,Home Care - Elderly - South,Day Care / Social Activities,St George Nursing Home,606.48, 04-Aug-2015
1599,Revenue,CCHD,Home Care - Elderly - South,Day Care / Social Activities,The Brandon Trust,4025.41, 04-Aug-2015
1600,Revenue,CCHD,Home Care - Elderly - South,Day Care / Social Activities,The Brandon Trust,3567.01, 12-Aug-2015
1601,Revenue,CCHD,Home Care - Elderly - South,Day Care / Social Activities,The Brandon Trust,4300.29, 14-Aug-2015
1602,Revenue,CCHD,Home Care - Elderly - South,Day Care / Social Activities,The Brandon Trust,4034.73, 20-Aug-2015
1603,Revenue,CCHD,Home Care - Elderly - South,Day Care / Social Activities,The Brandon Trust,3325.12, 27-Aug-2015
1604,Revenue,CCHD,Home Care - Elderly - South,Day Care / Social Activities,The Manor House,1487.2, 04-Aug-2015
1605,Revenue,CCHD,Home Care - Elderly - South,Day Care / Social Activities,The Manor House,1426.44, 04-Aug-2015
1606,Revenue,CCHD,Home Care - Elderly - South,Day Care / Social Activities,The Manor House,1814.68, 04-Aug-2015
1607,Revenue,CCHD,Home Care - Elderly - South,Day Care / Social Activities,The Manor House,1396.72, 04-Aug-2015
1608,Revenue,CCHD,Home Care - Elderly - South,Day Care / Social Activities,The Manor House,1396.12, 04-Aug-2015
1609,Revenue,CCHD,Home Care - Elderly - South,Supported Living,The Oaks,3064.56, 04-Aug-2015
1610,Revenue,CCHD,Home Care - Elderly - South,Day Care / Social Activities,The Old School House,574.4, 04-Aug-2015
1611,Revenue,CCHD,Home care - Elderly MH - North,Other Small Contracts,Helping Hands Homecare,62.56, 04-Aug-2015
1612,Revenue,CCHD,Home care - Elderly MH - North,Other Small Contracts,Helping Hands Homecare,63.36, 17-Aug-2015
1613,Revenue,CCHD,Home care - Elderly MH - North,Other Small Contracts,Helping Hands Homecare,63.36, 07-Aug-2015
1614,Revenue,CCHD,Home care - Elderly MH - North,Other Small Contracts,Helping Hands Homecare,71.28, 07-Aug-2015
1615,Revenue,CCHD,Home care - Elderly MH - North,Other Small Contracts,Helping Hands Homecare,67.32, 06-Aug-2015
1616,Revenue,CCHD,Home care - Elderly MH - North,Other Small Contracts,Milestones Homecare & Dementia Service,47.16, 17-Aug-2015
1617,Revenue,CCHD,Home care - Elderly MH - North,Other Small Contracts,Milestones Homecare & Dementia Service,58.95, 07-Aug-2015
1618,Revenue,CCHD,Home care - Elderly MH - North,Other Small Contracts,Milestones Homecare & Dementia Service,58.95, 17-Aug-2015
1619,Revenue,CCHD,Home care - Elderly MH - North,Other Small Contracts,Milestones Homecare & Dementia Service,55.02, 24-Aug-2015
1620,Revenue,CCHD,Home care - Elderly MH - North,Other Small Contracts,Milestones Supported Living Services,96.64, 19-Aug-2015
1621,Revenue,CCHD,Home care - Elderly MH - North,Other Small Contracts,Milestones Supported Living Services,92.63, 24-Aug-2015
1622,Revenue,CCHD,Home care - Elderly MH - North,Other Small Contracts,Milestones Supported Living Services,96.64, 27-Aug-2015
1623,Revenue,CCHD,Home care - Elderly MH - North,Other Small Contracts,Nestor T/A Allied Healthcare,53.9, 04-Aug-2015
1624,Revenue,CCHD,Home care - Elderly MH - North,Other Small Contracts,Nestor T/A Allied Healthcare,53.89, 12-Aug-2015
1625,Revenue,CCHD,Home care - Elderly MH - North,Other Small Contracts,Nestor T/A Allied Healthcare,53.9, 14-Aug-2015
1626,Revenue,CCHD,Home care - Elderly MH - North,Other Small Contracts,Premier Homecare Limited,129.08, 07-Aug-2015
1627,Revenue,CCHD,Home care - Elderly MH - North,Other Small Contracts,Premier Homecare Limited,129.08, 07-Aug-2015
1628,Revenue,CCHD,Home care - Elderly MH - North,Other Small Contracts,Premier Homecare Limited,133.69, 17-Aug-2015
1629,Revenue,CCHD,Home care - Elderly MH - North,Other Small Contracts,Premier Homecare Limited,129.08, 21-Aug-2015
1630,Revenue,CCHD,Home care - Elderly MH - North,Other Small Contracts,Premier Homecare Limited,129.08, 27-Aug-2015
1631,Revenue,CCHD,Homeless - Private Sector Leasing,Bed & Breakfast,Bristol Housing & Support Limited,420, 25-Aug-2015
1632,Revenue,CCHD,Homeless - Private Sector Leasing,Bed & Breakfast,Connolly & Callaghan Limited,686, 04-Aug-2015
1633,Revenue,CCHD,Homeless - Private Sector Leasing,Bed & Breakfast,Connolly & Callaghan Limited,441, 05-Aug-2015
1634,Revenue,CCHD,Homeless - Private Sector Leasing,Bed & Breakfast,Connolly & Callaghan Limited,546, 05-Aug-2015
1635,Revenue,CCHD,Homeless - Private Sector Leasing,Bed & Breakfast,Connolly & Callaghan Limited,686, 05-Aug-2015
1636,Revenue,CCHD,Homeless - Private Sector Leasing,Bed & Breakfast,Connolly & Callaghan Limited,441, 11-Aug-2015
1637,Revenue,CCHD,Homeless - Private Sector Leasing,Bed & Breakfast,Connolly & Callaghan Limited,546, 11-Aug-2015
1638,Revenue,CCHD,Homeless - Private Sector Leasing,Bed & Breakfast,Connolly & Callaghan Limited,686, 12-Aug-2015
1639,Revenue,CCHD,Homeless - Private Sector Leasing,Bed & Breakfast,Connolly & Callaghan Limited,686, 12-Aug-2015
1640,Revenue,CCHD,Homeless - Private Sector Leasing,Bed & Breakfast,Connolly & Callaghan Limited,511, 12-Aug-2015
1641,Revenue,CCHD,Homeless - Private Sector Leasing,Bed & Breakfast,Connolly & Callaghan Limited,441, 20-Aug-2015
1642,Revenue,CCHD,Homeless - Private Sector Leasing,Bed & Breakfast,Connolly & Callaghan Limited,546, 20-Aug-2015
1643,Revenue,CCHD,Homeless - Private Sector Leasing,Bed & Breakfast,Connolly & Callaghan Limited,686, 20-Aug-2015
1644,Revenue,CCHD,Homeless - Private Sector Leasing,Bed & Breakfast,Connolly & Callaghan Limited,686, 20-Aug-2015
1645,Revenue,CCHD,Homeless - Private Sector Leasing,Bed & Breakfast,Connolly & Callaghan Limited,511, 20-Aug-2015
1646,Revenue,CCHD,Homeless - Private Sector Leasing,Bed & Breakfast,Connolly & Callaghan Limited,441, 24-Aug-2015
1647,Revenue,CCHD,Homeless - Private Sector Leasing,Bed & Breakfast,Connolly & Callaghan Limited,546, 24-Aug-2015
1648,Revenue,CCHD,Homeless - Private Sector Leasing,Bed & Breakfast,Connolly & Callaghan Limited,686, 24-Aug-2015
1649,Revenue,CCHD,Homeless - Private Sector Leasing,Bed & Breakfast,Connolly & Callaghan Limited,686, 24-Aug-2015
1650,Revenue,CCHD,Homeless - Private Sector Leasing,Bed & Breakfast,Connolly & Callaghan Limited,511, 24-Aug-2015
1651,Revenue,CCHD,Homeless - Private Sector Leasing,Other Supplies & Services,Jill Collins,594, 14-Aug-2015
1652,Revenue,CCHD,Homeless - Private Sector Leasing,Other Supplies & Services,Mr D G & Mrs L K Jenkins,565, 21-Aug-2015
1653,Revenue,CCHD,Homeless - Private Sector Leasing,Radio Pager/Mobile Phones,Telefonica UK Limited,9.5, 11-Aug-2015
1654,Revenue,CCHD,Homeless - Private Sector Leasing,Radio Pager/Mobile Phones,Telefonica UK Limited,9.5, 27-Aug-2015
1655,Revenue,CCHD,Homeless - Private Sector Leasing,Prop.Serv. General Repairs,WE Care & Repair,3115.12, 03-Aug-2015
1656,Revenue,CCHD,Homeless - Private Sector Leasing,Prop.Serv. General Repairs,WE Care & Repair,2157.29, 03-Aug-2015
1657,Revenue,CCHD,Hospital Promoting Independence Team,Care Management/Assessment Staff Pay,Sugarman Group Ltd,1411.68, 06-Aug-2015
1658,Revenue,CCHD,Hospital Promoting Independence Team,Care Management/Assessment Staff Pay,Sugarman Group Ltd,1558.65, 20-Aug-2015
1659,Revenue,CCHD,Housing Needs,Storage & Removal,Ablemove-Wottons,504, 14-Aug-2015
1660,Revenue,CCHD,Housing Needs,Storage & Removal,Ablemove-Wottons,480, 18-Aug-2015
1661,Revenue,CCHD,Housing Needs,Storage & Removal,Ablemove-Wottons,608, 14-Aug-2015
1662,Revenue,CCHD,Housing Needs,Agency Staff (Admin/Support Staff) Pay,Venn Group Limited,624.63, 05-Aug-2015
1663,Revenue,CCHD,Housing Needs,Agency Staff (Admin/Support Staff) Pay,Venn Group Limited,820.07, 07-Aug-2015
1664,Revenue,CCHD,Housing Needs,Agency Staff (Admin/Support Staff) Pay,Venn Group Limited,650.82, 12-Aug-2015
1665,Revenue,CCHD,Housing Needs,Agency Staff (Admin/Support Staff) Pay,Venn Group Limited,754.7, 12-Aug-2015
1666,Revenue,CCHD,Housing Needs,Agency Staff (Admin/Support Staff) Pay,Venn Group Limited,713.93, 20-Aug-2015
1667,Revenue,CCHD,Housing Needs,Agency Staff (Admin/Support Staff) Pay,Venn Group Limited,787.73, 26-Aug-2015
1668,Revenue,CCHD,ICES / NRS Contract,Daily Living Equipment,Medequip Assistive Technology Ltd,16097.57, 24-Aug-2015
1669,Revenue,CCHD,ICES / NRS Contract,Daily Living Equipment,Medequip Assistive Technology Ltd,111139.68, 24-Aug-2015
1670,Revenue,CCHD,Information Systems - Software,Computer Equipment - Purchase,BT Global Services Solutions,985.98, 25-Aug-2015
1671,Revenue,CCHD,Information Systems - Software,Software Support & Maintenance,Northgate Public Services (UK) Ltd,30000, 13-Aug-2015
1672,Revenue,CCHD,Information Systems - Software,Software Support & Maintenance,Oracle Corporation UK Limited,2234.64, 07-Aug-2015
1673,Revenue,CCHD,Information Systems - Software,Software Support & Maintenance,Oracle Corporation UK Limited,596.4, 07-Aug-2015
1674,Revenue,CCHD,Information Systems - Software,Software Support & Maintenance,Oracle Corporation UK Limited,3989.76, 14-Aug-2015
1675,Revenue,CCHD,Information Systems - Software,Software Support & Maintenance,Oracle Corporation UK Limited,576, 28-Aug-2015
1676,Revenue,CCHD,Intermediate Care Accommodation,Other Supplies & Services,Merlin Housing Society,1212.41, 11-Aug-2015
1677,Revenue,CCHD,Kingswood Centre - Maple Suite,Agency Staff (Operational)/PCT Pay,Prestige Nursing,579.6, 04-Aug-2015
1678,Revenue,CCHD,Kingswood Centre - Maple Suite,Agency Staff (Operational)/PCT Pay,Prestige Nursing,772.8, 04-Aug-2015
1679,Revenue,CCHD,Kingswood Centre - Maple Suite,Agency Staff (Operational)/PCT Pay,Prestige Nursing,772.8, 04-Aug-2015
1680,Revenue,CCHD,Kingswood Centre - Maple Suite,Agency Staff (Operational)/PCT Pay,Prestige Nursing,1159.2, 18-Aug-2015
1681,Revenue,CCHD,Kingswood Centre - Maple Suite,Agency Staff (Operational)/PCT Pay,Prestige Nursing,579.6, 19-Aug-2015
1682,Revenue,CCHD,Leadership and Business Support,Other Small Contracts,NHS South Gloucestershire CCG,90243, 07-Aug-2015
1683,Revenue,CCHD,Learning Difficulties,Premises Hire,Circadian Trust,854, 13-Aug-2015
1684,Revenue,CCHD,Learning Difficulties Development Fund,Other Supplies & Services,Carers Support Centre,9308.01, 25-Aug-2015
1685,Revenue,CCHD,Learning Difficulties PSL,Other Supplies & Services,Individual,2105.5, 21-Aug-2015
1686,Revenue,CCHD,Learning Difficulties PSL,Rent,Individual,784.95, 21-Aug-2015
1687,Revenue,CCHD,Learning Difficulties PSL,Rent,Individual,905.71, 21-Aug-2015
1688,Revenue,CCHD,Learning Difficulties PSL,Rent,Individual,488, 21-Aug-2015
1689,Revenue,CCHD,Mental Capacity Act - Advocacy,Other Supplies & Services,Armadillo Youth Venue & Cafe,800, 28-Aug-2015
1690,Revenue,CCHD,MH Purchasing - Younger,Permanent Residential,Brightbow,1503.92, 04-Aug-2015
1691,Revenue,CCHD,MH Purchasing - Younger,Permanent Residential,Dunraven House,1875.4, 04-Aug-2015
1692,Revenue,CCHD,MH Purchasing - Younger,Permanent Residential,Milestones - Unit 10,866.8, 04-Aug-2015
1693,Revenue,CCHD,MH Purchasing - Younger,Permanent Residential,Milestones - Unit 10,1050.2, 04-Aug-2015
1694,Revenue,CCHD,MH Purchasing - Younger,Permanent Nursing,Milestones - Unit 10,950.96, 04-Aug-2015
1695,Revenue,CCHD,MH Purchasing - Younger,Permanent Nursing,Milestones - Unit 10,958.8, 04-Aug-2015
1696,Revenue,CCHD,MH Purchasing - Younger,Respite Planned - Residential,Milestones - Unit 10,3774.8, 04-Aug-2015
1697,Revenue,CCHD,MH Purchasing - Younger,Permanent Residential,Notaro Homes Ltd  Queensmead Court,3032.4, 04-Aug-2015
1698,Revenue,CCHD,MH Purchasing - Younger,Permanent Nursing,Stanley House,4422.4, 04-Aug-2015
1699,Revenue,CCHD,MH Purchasing - Younger,Permanent Residential,Ventura Residential Care Home,1400.32, 04-Aug-2015
1700,Revenue,CCHD,Minor Adaptations Service,Operational Equipment,Eastman & Co (Timber) Limited,1015.01, 21-Aug-2015
1701,Revenue,CCHD,Minor Adaptations Service,Premises Maintenance by Contractor,TVM Cheltenham Limited,1021.38, 17-Aug-2015
1702,Revenue,CCHD,Minor Adaptations Service,Premises Maintenance by Contractor,TVM Cheltenham Limited,1570, 21-Aug-2015
1703,Revenue,CCHD,Minor Adaptations Service,Daily Living Equipment,TVM Cheltenham Limited,1500, 21-Aug-2015
1704,Revenue,CCHD,Minor Adaptations Service,Daily Living Equipment,TVM Cheltenham Limited,3360, 21-Aug-2015
1705,Revenue,CCHD,Minor Adaptations Service,Premises Maintenance by Contractor,TVM Cheltenham Limited,2165, 21-Aug-2015
1706,Revenue,CCHD,Minor Adaptations Service,Daily Living Equipment,TVM Cheltenham Limited,1570, 21-Aug-2015
1707,Revenue,CCHD,Minor Adaptations Service,Daily Living Equipment,TVM Cheltenham Limited,884, 28-Aug-2015
1708,Revenue,CCHD,Minor Adaptations Service,Daily Living Equipment,TVM Cheltenham Limited,1509, 28-Aug-2015
1709,Revenue,CCHD,Minor Adaptations Service,Premises Maintenance by Contractor,TVM Cheltenham Limited,1740, 28-Aug-2015
1710,Revenue,CCHD,Minor Adaptations Service,Premises Maintenance by Contractor,TVM Cheltenham Limited,673.01, 28-Aug-2015
1711,Revenue,CCHD,Newton House,Security Systems,National Security Group,78.95, 13-Aug-2015
1712,Revenue,CCHD,Newton House,Electricity,West Mercia Energy,511.82, 05-Aug-2015
1713,Revenue,CCHD,NHS Health Checks & Tobacco Control,Drugs & Medical Supplies,Boots UK Ltd,622.84, 07-Aug-2015
1714,Revenue,CCHD,NHS Health Checks & Tobacco Control,Drugs & Medical Supplies,Boots UK Ltd,1491.48, 07-Aug-2015
1715,Revenue,CCHD,NHS Health Checks & Tobacco Control,Drugs & Medical Supplies,In2Print Ltd,546, 21-Aug-2015
1716,Revenue,CCHD,"Physical Activity, Nutrition & Obesity",Other Small Contracts,Weight Watchers UK Ltd,2126.5, 20-Aug-2015
1717,Revenue,CCHD,Planning and Partnerships Procurement,Other Supplies & Services,Eldercare,1552.97, 25-Aug-2015
1718,Revenue,CCHD,Planning and Partnerships Procurement,Other Supplies & Services,Tynetec Limited,2038.26, 12-Aug-2015
1719,Revenue,CCHD,Planning and Partnerships Procurement,Other Supplies & Services,Tynetec Limited,2110.05, 28-Aug-2015
1720,Revenue,CCHD,Planning and Partnerships Team,Conference Expenses,Local Government Association,450, 20-Aug-2015
1721,Revenue,CCHD,Public Health Project Funding,Other Supplies & Services,The Exchange Foundation,5560.32, 03-Aug-2015
1722,Revenue,CCHD,Purchase of Non-Res Care - North,Day Care / Social Activities,Care Futures,555.24, 14-Aug-2015
1723,Revenue,CCHD,Purchase of Non-Res Care - North,Day Care / Social Activities,Care Futures,608.12, 14-Aug-2015
1724,Revenue,CCHD,Purchase of Non-Res Care - North,Day Care / Social Activities,Care Horizons Limited,1432.07, 27-Aug-2015
1725,Revenue,CCHD,Purchase of Non-Res Care - North,Day Care / Social Activities,Care Horizons Limited,1851.9, 27-Aug-2015
1726,Revenue,CCHD,Purchase of Non-Res Care - North,Day Care / Social Activities,Design 4 Life Ltd,1061.28, 17-Aug-2015
1727,Revenue,CCHD,Purchase of Non-Res Care - North,Day Care / Social Activities,Design 4 Life Ltd,1857.24, 03-Aug-2015
1728,Revenue,CCHD,Purchase of Non-Res Care - North,Day Care / Social Activities,Design 4 Life Ltd,1724.58, 27-Aug-2015
1729,Revenue,CCHD,Purchase of Non-Res Care - North,Day Care / Social Activities,Design 4 Life Ltd,3391.47, 28-Aug-2015
1730,Revenue,CCHD,Purchase of Non-Res Care - North,Day Care / Social Activities,Milestones Trust,592.02, 13-Aug-2015
1731,Revenue,CCHD,Purchase of Non-Res Care - North,Day Care / Social Activities,Selborne Care Ltd,944.48, 27-Aug-2015
1732,Revenue,CCHD,Purchase of Non-Res Care - North,Day Care / Social Activities,Selborne Care Ltd,502.24, 27-Aug-2015
1733,Revenue,CCHD,Purchase of Non-Res Care - North,Day Care / Social Activities,Selborne Care Ltd,1700, 18-Aug-2015
1734,Revenue,CCHD,Purchase of Non-Res Care - North,Day Care / Social Activities,Selborne Care Ltd,952, 18-Aug-2015
1735,Revenue,CCHD,Purchase of Non-Res Care - North,Day Care / Social Activities,Selborne Care Ltd,816, 18-Aug-2015
1736,Revenue,CCHD,Purchase of Non-Res Care - North,Day Care / Social Activities,Selborne Care Ltd,748, 18-Aug-2015
1737,Revenue,CCHD,Purchase of Non-Res Care - North,Day Care / Social Activities,Silva Care Limited,5359.36, 10-Aug-2015
1738,Revenue,CCHD,Purchase of Non-Res Care - South,Day Care / Social Activities,Care Futures,2489.38, 11-Aug-2015
1739,Revenue,CCHD,Purchase of Non-Res Care - South,Day Care / Social Activities,Care Futures,2227.34, 14-Aug-2015
1740,Revenue,CCHD,Purchase of Non-Res Care - South,Day Care / Social Activities,Milestones Trust,872.38, 11-Aug-2015
1741,Revenue,CCHD,Purchase of RAC places,Other L.A.'s - General,Bath & North East Somerset Dist Council,6603.65, 12-Aug-2015
1742,Revenue,CCHD,Purchase of RAC places,Other L.A.'s - General,Bath & North East Somerset Dist Council,5282.92, 11-Aug-2015
1743,Revenue,CCHD,Purchase of RAC places,Other L.A.'s - General,Bath & North East Somerset Dist Council,1902.4, 11-Aug-2015
1744,Revenue,CCHD,Purchase of RAC places,Other L.A.'s - General,Bath & North East Somerset Dist Council,6271.32, 12-Aug-2015
1745,Revenue,CCHD,Purchase of RAC places,Other L.A.'s - General,Bath & North East Somerset Dist Council,5282.92, 12-Aug-2015
1746,Revenue,CCHD,Purchase of RAC places,Other L.A.'s - General,Bath & North East Somerset Dist Council,6603.65, 12-Aug-2015
1747,Revenue,CCHD,Purchase of RAC places,Other Supplies & Services,Mencap Employment,864, 25-Aug-2015
1748,Revenue,CCHD,Research & Conferences,Other Supplies & Services,Local Government Association,450, 19-Aug-2015
1749,Revenue,CCHD,S117 Placements PCT,Permanent Residential,Ash View House,7052.76, 04-Aug-2015
1750,Revenue,CCHD,S117 Placements PCT,Permanent Residential,Hesley Hall,18406.2, 04-Aug-2015
1751,Revenue,CCHD,S75 CCG Interim Beds,Permanent Nursing,Avon Lodge Care Centre,10200, 05-Aug-2015
1752,Revenue,CCHD,S75 CCG Interim Beds,Permanent Nursing,Avon Lodge Care Centre,10200, 26-Aug-2015
1753,Revenue,CCHD,S75 CCG Interim Beds,Permanent Nursing,Brunelcare,54600, 14-Aug-2015
1754,Revenue,CCHD,S75 CCG Interim Beds,Permanent Nursing,Brunelcare,15200, 10-Aug-2015
1755,Revenue,CCHD,S75 CCG Interim Beds,Permanent Nursing,Fairview Court Care Home,10200, 10-Aug-2015
1756,Revenue,CCHD,S75 CCG Interim Beds,Permanent Nursing,Windmill Care Limited,13040, 03-Aug-2015
1757,Revenue,CCHD,Section 117 Placements MH Younger,Permanent Residential,Ash View House,6565.76, 04-Aug-2015
1758,Revenue,CCHD,Section 117 Placements MH Younger,Permanent Residential,Bedrock Lodge,1885.04, 04-Aug-2015
1759,Revenue,CCHD,Section 117 Placements MH Younger,Permanent Residential,Church House,7649.04, 04-Aug-2015
1760,Revenue,CCHD,Section 117 Placements MH Younger,Permanent Residential,Gladstone House,2792, 04-Aug-2015
1761,Revenue,CCHD,Section 117 Placements MH Younger,Permanent Residential,Milestones - Unit 10,1372, 04-Aug-2015
1762,Revenue,CCHD,Section 117 Placements MH Younger,Permanent Residential,Milestones - Unit 10,1372, 04-Aug-2015
1763,Revenue,CCHD,Section 117 Placements MH Younger,Day Care / Social Activities,Moving On,1487.7, 19-Aug-2015
1764,Revenue,CCHD,Section 117 Placements MH Younger,Permanent Nursing,Oaklands,6154.56, 04-Aug-2015
1765,Revenue,CCHD,Sexual Health,Other Small Contracts,Almondsbury Surgery,578.12, 25-Aug-2015
1766,Revenue,CCHD,Sexual Health,Other Supplies & Services,Boots UK Ltd,1126.4, 05-Aug-2015
1767,Revenue,CCHD,Sexual Health,Other Small Contracts,Bradley Stoke Surgery,1300.78, 25-Aug-2015
1768,Revenue,CCHD,Sexual Health,Other Small Contracts,Close Farm Surgery,1063.34, 25-Aug-2015
1769,Revenue,CCHD,Sexual Health,Other Small Contracts,Courtside Surgery,1982.14, 25-Aug-2015
1770,Revenue,CCHD,Sexual Health,Other Small Contracts,Emersons Green Medical Centre,1011.72, 25-Aug-2015
1771,Revenue,CCHD,Sexual Health,Other Small Contracts,Frome Valley Medical Centre,2095.7, 25-Aug-2015
1772,Revenue,CCHD,Sexual Health,Other Small Contracts,Hanham Health,3231.3, 25-Aug-2015
1773,Revenue,CCHD,Sexual Health,Other Small Contracts,Kennedy Way Surgery,1703.4, 25-Aug-2015
1774,Revenue,CCHD,Sexual Health,Other Small Contracts,Kingswood Health Centre,2415.74, 25-Aug-2015
1775,Revenue,CCHD,Sexual Health,Other Small Contracts,Leap Valley Surgery,763.94, 25-Aug-2015
1776,Revenue,CCHD,Sexual Health,Other Small Contracts,Montpelier Health Pilning Surgery,619.44, 25-Aug-2015
1777,Revenue,CCHD,Sexual Health,Other Small Contracts,Northville Family Practice,732.98, 25-Aug-2015
1778,Revenue,CCHD,Sexual Health,Other Supplies & Services,Royal United Hospital,1811.66, 21-Aug-2015
1779,Revenue,CCHD,Sexual Health,Other Small Contracts,St Mary Street Surgery,722.66, 25-Aug-2015
1780,Revenue,CCHD,Sexual Health,Other Small Contracts,Stoke Gifford Medical Centre,2023.44, 25-Aug-2015
1781,Revenue,CCHD,Sexual Health,Other Small Contracts,The Orchard Medical Centre,1641.46, 25-Aug-2015
1782,Revenue,CCHD,Sexual Health,Other Small Contracts,The Willow Surgery,1806.64, 25-Aug-2015
1783,Revenue,CCHD,Sexual Health,Other Supplies & Services,University Hospitals Bristol,68316.79, 04-Aug-2015
1784,Revenue,CCHD,Sexual Health,Other Small Contracts,West Walk Surgery,1166.56, 25-Aug-2015
1785,Revenue,CCHD,Sexual Health,Other Supplies & Services,Weston Area Health Trust,660.22, 24-Aug-2015
1786,Revenue,CCHD,Shared Lives,Radio Pager/Mobile Phones,Telefonica UK Limited,7.76, 27-Aug-2015
1787,Revenue,CCHD,Social Lettings Agency,Other Supplies & Services,Individual,605.64, 24-Aug-2015
1788,Revenue,CCHD,Social Lettings Agency,Fees - General,Individual,16.46, 27-Aug-2015
1789,Revenue,CCHD,Social Lettings Agency,Other Supplies & Services,Individual,559.6, 27-Aug-2015
1790,Revenue,CCHD,Social Lettings Agency,Fees - General,Individual,12.22, 11-Aug-2015
1791,Revenue,CCHD,Social Lettings Agency,Other Supplies & Services,Individual,690.32, 11-Aug-2015
1792,Revenue,CCHD,Social Lettings Agency,Fees - General,Individual,12.22, 20-Aug-2015
1793,Revenue,CCHD,Social Lettings Agency,Other Supplies & Services,Individual,690.32, 20-Aug-2015
1794,Revenue,CCHD,Social Lettings Agency,Fees - General,Individual,10.53, 07-Aug-2015
1795,Revenue,CCHD,Social Lettings Agency,Other Supplies & Services,Individual,595.11, 07-Aug-2015
1796,Revenue,CCHD,Social Lettings Agency,Fees - General,Individual,10, 12-Aug-2015
1797,Revenue,CCHD,Social Lettings Agency,Other Supplies & Services,Individual,595.11, 12-Aug-2015
1798,Revenue,CCHD,Social Lettings Agency,Fees - General,Individual,10.53, 06-Aug-2015
1799,Revenue,CCHD,Social Lettings Agency,Other Supplies & Services,Individual,595.11, 06-Aug-2015
1800,Revenue,CCHD,Social Lettings Agency,Fees - General,Individual,10.53, 07-Aug-2015
1801,Revenue,CCHD,Social Lettings Agency,Other Supplies & Services,Individual,595.11, 07-Aug-2015
1802,Revenue,CCHD,Social Lettings Agency,Fees - General,Individual,10, 21-Aug-2015
1803,Revenue,CCHD,Social Lettings Agency,Other Supplies & Services,Individual,565, 21-Aug-2015
1804,Revenue,CCHD,Social Lettings Agency,Fees - General,Individual,8.6, 21-Aug-2015
1805,Revenue,CCHD,Social Lettings Agency,Other Supplies & Services,Individual,582, 21-Aug-2015
1806,Revenue,CCHD,Social Lettings Agency,Other Supplies & Services,Individual,1450.02, 10-Aug-2015
1807,Revenue,CCHD,Social Lettings Agency,Fees - General,Individual,10.53, 07-Aug-2015
1808,Revenue,CCHD,Social Lettings Agency,Other Supplies & Services,Individual,595.11, 07-Aug-2015
1809,Revenue,CCHD,Social Lettings Agency,Fees - General,Individual,12.22, 10-Aug-2015
1810,Revenue,CCHD,Social Lettings Agency,Other Supplies & Services,Individual,690.32, 10-Aug-2015
1811,Revenue,CCHD,Social Lettings Agency,Fees - General,Individual,10.53, 21-Aug-2015
1812,Revenue,CCHD,Social Lettings Agency,Other Supplies & Services,Individual,595.11, 21-Aug-2015
1813,Revenue,CCHD,Social Lettings Agency,Fees - General,Individual,16.85, 21-Aug-2015
1814,Revenue,CCHD,Social Lettings Agency,Other Supplies & Services,Individual,581.84, 21-Aug-2015
1815,Revenue,CCHD,Social Lettings Agency,Fees - General,Individual,12.22, 20-Aug-2015
1816,Revenue,CCHD,Social Lettings Agency,Other Supplies & Services,Individual,680.32, 20-Aug-2015
1817,Revenue,CCHD,Social Lettings Agency,Fees - General,Individual,10.53, 28-Aug-2015
1818,Revenue,CCHD,Social Lettings Agency,Other Supplies & Services,Individual,595.11, 28-Aug-2015
1819,Revenue,CCHD,Social Lettings Agency,Fees - General,Individual,10.53, 14-Aug-2015
1820,Revenue,CCHD,Social Lettings Agency,Other Supplies & Services,Individual,595.11, 14-Aug-2015
1821,Revenue,CCHD,Social Lettings Agency,Fees - General,Individual,10, 24-Aug-2015
1822,Revenue,CCHD,Social Lettings Agency,Other Supplies & Services,Individual,565, 24-Aug-2015
1823,Revenue,CCHD,Social Lettings Agency,Fees - General,Individual,10.53, 14-Aug-2015
1824,Revenue,CCHD,Social Lettings Agency,Other Supplies & Services,Individual,595.11, 14-Aug-2015
1825,Revenue,CCHD,Social Lettings Agency,Fees - General,Individual,10.53, 12-Aug-2015
1826,Revenue,CCHD,Social Lettings Agency,Other Supplies & Services,Individual,595.11, 12-Aug-2015
1827,Revenue,CCHD,Social Lettings Agency,Fees - General,Individual,10.53, 07-Aug-2015
1828,Revenue,CCHD,Social Lettings Agency,Other Supplies & Services,Individual,595.11, 07-Aug-2015
1829,Revenue,CCHD,Social Lettings Agency,Fees - General,Individual,17.13, 11-Aug-2015
1830,Revenue,CCHD,Social Lettings Agency,Other Supplies & Services,Individual,977.68, 11-Aug-2015
1831,Revenue,CCHD,Social Lettings Agency,Fees - General,Individual,10, 04-Aug-2015
1832,Revenue,CCHD,Social Lettings Agency,Other Supplies & Services,Individual,565, 04-Aug-2015
1833,Revenue,CCHD,Social Lettings Agency,Fees - General,Individual,10, 27-Aug-2015
1834,Revenue,CCHD,Social Lettings Agency,Other Supplies & Services,Individual,565, 27-Aug-2015
1835,Revenue,CCHD,Social Lettings Agency,Other Supplies & Services,Individual,640.72, 03-Aug-2015
1836,Revenue,CCHD,Social Lettings Agency,Fees - General,The Restore Trust,11.71, 13-Aug-2015
1837,Revenue,CCHD,Social Lettings Agency,Other Supplies & Services,The Restore Trust,661.96, 13-Aug-2015
1838,Revenue,CCHD,Social Lettings Agency,Fees - General,The Restore Trust,12.22, 14-Aug-2015
1839,Revenue,CCHD,Social Lettings Agency,Other Supplies & Services,The Restore Trust,690.32, 14-Aug-2015
1840,Revenue,CCHD,Social Lettings Agency,Fees - General,Individual,12.22, 17-Aug-2015
1841,Revenue,CCHD,Social Lettings Agency,Other Supplies & Services,Individual,690.32, 17-Aug-2015
1842,Revenue,CCHD,South Glos Users in all other LA Homes,Permanent Nursing,Bupa Care Services  Bridge House,616.56, 04-Aug-2015
1843,Revenue,CCHD,South Glos Users in all other LA Homes,Permanent Nursing,Leonard Cheshire  National Account Centr,616.56, 04-Aug-2015
1844,Revenue,CCHD,South Glos Users in South Glos Homes,Permanent Nursing,Beaufort Grange Care Home,1072, 04-Aug-2015
1845,Revenue,CCHD,South Glos Users in South Glos Homes,Permanent Nursing,Beaufort Grange Care Home,1760, 04-Aug-2015
1846,Revenue,CCHD,South Glos Users in South Glos Homes,Permanent Nursing,Beaufort Grange Care Home,601.97, 04-Aug-2015
1847,Revenue,CCHD,South Glos Users in South Glos Homes,Permanent Nursing,Beech House,768, 04-Aug-2015
1848,Revenue,CCHD,South Glos Users in South Glos Homes,Permanent Nursing,Beech House,1760, 04-Aug-2015
